Workbook

Sheet Benutzerhinweise
C5: Arbeitshilfe zum BNB_UN Version 2017
C8: EINFÜHRUNG
C36: Änderungen:
C37: 2018-03-08
C39: Änderungen:
C40: 2018-03-08 | D40: 2.2.2 | E40: Teilkriterium 4. "Technische Ausstattung": Punktzahl von 18 auf 10 Punkte korrigiert.
D41: 3.1.5 | E41: Teilkriterium 3. "Sichtverbindungen": Punktzahl von 25 auf 35 Punkte korrigiert
D42: 4.1.3 | E42: Teilkriterium 3.6 "Zugänglichkeit" nachgetragen.
C44: 2019-04-09 | D44: 3.1.3 | E44: Teilkriterium 2: Redaktionelle Änderungen der Begrifflichkeit "personenbezogene Lüftungsrate" zu "Außenluftvolumenstrom"
C46: 2019-10-23 | D46: 1.2.1 | E46: Korrektur der zu erreichenden Gesamtpunktzahl auf max. 100
D47: 3.1.5 | E47: Korrektur der zu erreichenden Gesamtpunktzahl auf max. 100
D48: 3.1.9 | E48: Korrektur der zu erreichenden Gesamtpunktzahl auf max. 100
D49: 3.2.4 | E49: Korrektur der zu erreichenden Gesamtpunktzahl auf max. 100
D50: 4.1.6 | E50: Korrektur der zu erreichenden Gesamtpunktzahl auf max. 100; zusätzlich Korrektur der Punktzuordnung der Teilkriterien

Sheet Zielvereinbarung
B1: ='BNB-System'!B1 -> Projekt: | C1: Projektbezeichnung | E1: Datum: | G1: 2019-10-23
B2: ='BNB-System'!B2 -> Bewertungssystem Nachhaltiges Bauen (BNB)
B3: ='BNB-System'!B3 -> Systemvariante Unterrichtsgebäude, Modul Neubau (BNB_UN) - Version 2017
B4: Nachhaltigkeitskriterien | D4: maximale Punktzahl | E4: Gewichtung Gesamt-bewertung | F4: Zielwert der Ziel-vereinbarung | H4: Kommentar | I4: erforderliche Leistungen, Maßnahmen, Methoden | J4: erforderliche Dokumente/ Nachweise | K4: Termin | L4: Zuständigkeit | N4: Zielwert | O4: Gesamt-bewertung gemäß End-bewertung
F5: Soll | G5: Punkt- zahl
B7: Gesamterfüllungsgrad | G7: =IF(SUM(O13:O204)>100%,100%,SUM(O13:O204)) -> 0
M8: qwertz
B10: ='BNB-System'!E6 -> Ökologische Qualität | E10: ='BNB-System'!J6 -> 0.225 | G10: =G13*(E13/100)+G14*(E14/100)+G15*(E15/100)+G16*(E16/100)+G17*(E17/100)+G18*(E18/100)+G19*(E19/100)+G21*(E21/100)+G25*(E25/100)+G26*(E26/100) -> 0 | N10: ='BNB-System'!K6 -> 1800
C12: Wirkungen auf die globale und lokale Umwelt
B13: ='BNB-System'!E9 -> 1.1.1 | C13: ='BNB-System'!F9 -> Treibhauspotenzial (GWP) | D13: ='BNB-System'!G9 -> 100 | E13: ='BNB-System'!J9 -> 0.0375 | F13: o | N13: ='BNB-System'!K9 -> 300 | O13: =IF(ISNUMBER(E13*G13/100),E13*G13/100,0) -> 0
B14: ='BNB-System'!E10 -> 1.1.2 | C14: ='BNB-System'!F10 -> Ozonschichtabbaupotenzial (ODP) | D14: ='BNB-System'!G10 -> 100 | E14: ='BNB-System'!J10 -> 0.0125 | F14: x | N14: ='BNB-System'!K10 -> 100 | O14: =IF(ISNUMBER(E14*G14/100),E14*G14/100,0) -> 0
B15: ='BNB-System'!E11 -> 1.1.3 | C15: ='BNB-System'!F11 -> Ozonbildungspotenzial (POCP) | D15: ='BNB-System'!G11 -> 100 | E15: ='BNB-System'!J11 -> 0.0125 | N15: ='BNB-System'!K11 -> 100 | O15: 0
B16: ='BNB-System'!E12 -> 1.1.4 | C16: ='BNB-System'!F12 -> Versauerungspotenzial (AP) | D16: ='BNB-System'!G12 -> 100 | E16: ='BNB-System'!J12 -> 0.0125 | N16: ='BNB-System'!K12 -> 100 | O16: 0
B17: ='BNB-System'!E13 -> 1.1.5 | C17: ='BNB-System'!F13 -> Überdüngungspotenzial (EP) | D17: ='BNB-System'!G13 -> 100 | E17: ='BNB-System'!J13 -> 0.0125 | N17: ='BNB-System'!K13 -> 100 | O17: 0
B18: ='BNB-System'!E14 -> 1.1.6 | C18: ='BNB-System'!F14 -> Risiken für die lokale Umwelt | D18: ='BNB-System'!G14 -> 100 | E18: ='BNB-System'!J14 -> 0.0375 | N18: ='BNB-System'!K14 -> 300 | O18: 0
B19: ='BNB-System'!E15 -> 1.1.7 | C19: ='BNB-System'!F15 -> Nachhaltige Materialgewinnung / Biodiversität | D19: ='BNB-System'!G15 -> 100 | E19: ='BNB-System'!J15 -> 0.0125 | N19: ='BNB-System'!K15 -> 100 | O19: 0
C20: ='BNB-System'!F16 -> Ressourceninanspruchnahme
B21: ='BNB-System'!E17 -> 1.2.1 | C21: ='BNB-System'!F17 -> Primärenergiebedarf | D21: ='BNB-System'!G17 -> 100 | E21: ='BNB-System'!J17 -> 0.0375 | G21: =IF(SUM(G22:G24)>100,100,SUM(G22:G24)) -> 0 | N21: ='BNB-System'!K17 -> 300 | O21: 0
C22: ='BNB-System'!F18 -> Primärenergiebedarf nicht erneuerbar (PEne) | D22: ='BNB-System'!G18 -> 60
C23: ='BNB-System'!F19 -> Gesamtenergiebedarf (PEges) | D23: ='BNB-System'!G19 -> 40
C24: ='BNB-System'!F20 -> Anteil erneuerbarer Primärenergie (PEe) | D24: ='BNB-System'!G20 -> 20
B25: ='BNB-System'!E21 -> 1.2.3 | C25: ='BNB-System'!F21 -> Trinkwasserbedarf und Abwasseraufkommen | D25: ='BNB-System'!G21 -> 100 | E25: ='BNB-System'!J21 -> 0.025 | N25: ='BNB-System'!K21 -> 200 | O25: =IF(ISNUMBER(E25*G25/100),E25*G25/100,0) -> 0
B26: ='BNB-System'!E22 -> 1.2.4 | C26: ='BNB-System'!F22 -> Flächeninanspruchnahme | D26: ='BNB-System'!G22 -> 100 | E26: ='BNB-System'!J22 -> 0.025 | N26: ='BNB-System'!K22 -> 200 | O26: 0
B28: ='BNB-System'!E24 -> Ökonomische Qualität | E28: ='BNB-System'!J24 -> 0.225 | G28: =G31*(E31/100)+G33*(E33/100) -> 0 | N28: ='BNB-System'!K24 -> 500
C30: ='BNB-System'!F26 -> Lebenszykluskosten
B31: ='BNB-System'!E27 -> 2.1.1 | C31: ='BNB-System'!F27 -> Gebäudebezogene Kosten im Lebenszyklus | D31: ='BNB-System'!G27 -> 100 | E31: ='BNB-System'!J27 -> 0.135 | N31: ='BNB-System'!K27 -> 300 | O31: =IF(ISNUMBER(E31*G31/100),E31*G31/100,0) -> 0
C32: ='BNB-System'!F28 -> Wertentwicklung
B33: ='BNB-System'!E29 -> 2.2.2 | C33: ='BNB-System'!F29 -> Anpassungsfähigkeit | D33: ='BNB-System'!G29 -> 100 | E33: ='BNB-System'!J29 -> 0.09 | F33: o | G33: =IF(SUM(G34:G39)>100,100,SUM(G34:G39)) -> 0 | N33: ='BNB-System'!K29 -> 200 | O33: =IF(ISNUMBER(E33*G33/100),E33*G33/100,0) -> 0
C34: ='BNB-System'!F30 -> Lichte Raumhöhe | D34: ='BNB-System'!G30 -> 15
C35: ='BNB-System'!F31 -> Gebäudetiefe | D35: ='BNB-System'!G31 -> 15
C36: ='BNB-System'!F32 -> Vertikale Erschlließung | D36: ='BNB-System'!G32 -> 15
C37: ='BNB-System'!F33 -> Grundrisse | D37: ='BNB-System'!G33 -> 25
C38: ='BNB-System'!F34 -> Konstruktion | D38: ='BNB-System'!G34 -> 20
C39: ='BNB-System'!F35 -> Technische Ausstattung | D39: ='BNB-System'!G35 -> 10
B41: ='BNB-System'!E37 -> Soziokulturelle und funktionale Qualität | E41: ='BNB-System'!J37 -> 0.225 | G41: =G44*(E44/100)+G55*(E55/100)+G58*(E58/100)+G68*(E68/100)+G76*(E76/100)+G86*(E86/100)+G91*(E91/100)+G92*(E92/100)+G98*(E98/100)+G99*(E99/100)+G104*(E104/100)+G109*(E109/100)+G117*(E117/100) -> 0 | N41: ='BNB-System'!K37 -> 2700
C43: ='BNB-System'!F39 -> Gesundheit, Behaglichkeit und Nutzerzufriedenheit
B44: ='BNB-System'!E40 -> 3.1.1 | C44: ='BNB-System'!F40 -> Thermischer Komfort | D44: ='BNB-System'!G40 -> 100 | E44: ='BNB-System'!J40 -> 0.025 | G44: =IF(SUM(G45:G54)>100,100,SUM(G45:G54)) -> 0 | N44: ='BNB-System'!K40 -> 300 | O44: =IF(ISNUMBER(E44*G44/100),E44*G44/100,0) -> 0
C45: ='BNB-System'!F41 -> Winter
C46: ='BNB-System'!F42 -> Operative Temperatur | D46: ='BNB-System'!G42 -> 10
C47: ='BNB-System'!F43 -> Zugluft | D47: ='BNB-System'!G43 -> 10
C48: ='BNB-System'!F44 -> Stahlungstemperaturasymmetrie und Fußbodentemperatur | D48: ='BNB-System'!G44 -> 10
C49: ='BNB-System'!F45 -> Relative Luftfeuchte | D49: ='BNB-System'!G45 -> 10
C50: ='BNB-System'!F46 -> Sommer
C51: ='BNB-System'!F47 -> Operative Temperatur | D51: ='BNB-System'!G47 -> 30
C52: ='BNB-System'!F48 -> Zugluft | D52: ='BNB-System'!G48 -> 10
C53: ='BNB-System'!F49 -> Stahlungstemperaturasymmetrie und Fußbodentemperatur | D53: ='BNB-System'!G49 -> 10
C54: ='BNB-System'!F50 -> Relative Luftfeuchte | D54: ='BNB-System'!G50 -> 10
B55: ='BNB-System'!E51 -> 3.1.3 | C55: ='BNB-System'!F51 -> Innenraumlufthygiene | D55: ='BNB-System'!G51 -> 100 | E55: ='BNB-System'!J51 -> 0.025 | G55: =IF(SUM(G56:G57)>100,100,SUM(G56:G57)) -> 0 | N55: ='BNB-System'!K51 -> 300 | O55: =IF(ISNUMBER(E55*G55/100),E55*G55/100,0) -> 0
C56: ='BNB-System'!F52 -> Flüchtige organische Stoffe (VOC) und Formaldehyd | D56: ='BNB-System'!G52 -> 50
C57: ='BNB-System'!F53 -> Außenluftvolumenstrom | D57: ='BNB-System'!G53 -> 50
B58: ='BNB-System'!E54 -> 3.1.4 | C58: ='BNB-System'!F54 -> Akustischer Komfort | D58: ='BNB-System'!G54 -> 100 | E58: ='BNB-System'!J54 -> 0.01666666667 | G58: =IF(SUM(G60:G67)>100,100,SUM(G60:G67)) -> 0 | N58: ='BNB-System'!K54 -> 200 | O58: =IF(ISNUMBER(E58*G58/100),E58*G58/100,0) -> 0
C59: ='BNB-System'!F55 -> Räume Gruppe A
C60: ='BNB-System'!F56 -> Musik | D60: ='BNB-System'!G56 -> 100
C61: ='BNB-System'!F57 -> Sprache/ Vortrag | D61: ='BNB-System'!G57 -> 100
C62: ='BNB-System'!F58 -> Unterricht/ Kommunikation | D62: ='BNB-System'!G58 -> 100
C63: ='BNB-System'!F59 -> Sport | D63: ='BNB-System'!G59 -> 100
C64: ='BNB-System'!F60 -> Räume Gruppe B
C65: ='BNB-System'!F61 -> Einzel- und Mehrpersonenbüros bis 100 m3 | D65: ='BNB-System'!G61 -> 100
C66: ='BNB-System'!F62 -> Mehrpersonenbüros über 100 m3 | D66: ='BNB-System'!G62 -> 100
C67: ='BNB-System'!F63 -> Weitere Räume | D67: ='BNB-System'!G63 -> 100
B68: ='BNB-System'!E64 -> 3.1.5 | C68: ='BNB-System'!F64 -> Visueller Komfort | D68: ='BNB-System'!G64 -> 100 | E68: ='BNB-System'!J64 -> 0.01666666667 | G68: =IF(SUM(G69:G75)>100,100,SUM(G69:G75)) -> 0 | N68: ='BNB-System'!K64 -> 200 | O68: =IF(ISNUMBER(E68*G68/100),E68*G68/100,0) -> 0
C69: ='BNB-System'!F65 -> Tageslichtverfügbarkeit Gesamtgebäude | D69: ='BNB-System'!G65 -> 15
C70: ='BNB-System'!F66 -> Tageslichtverfügbarkeit Unterrichtsräume und weitere ständige Arbeitsplätze | D70: ='BNB-System'!G66 -> 15
C71: ='BNB-System'!F67 -> Nachweis der Sichtverbindung nach außen | D71: ='BNB-System'!G67 -> 35
C72: ='BNB-System'!F68 -> Blendfreiheit Tageslicht | D72: ='BNB-System'!G68 -> 10
C73: ='BNB-System'!F69 -> Blendfreiheit Kunstlicht | D73: ='BNB-System'!G69 -> 5
C74: ='BNB-System'!F70 -> Lichtverteilung | D74: ='BNB-System'!G70 -> 20
C75: ='BNB-System'!F71 -> Farbwiedergabe | D75: ='BNB-System'!G71 -> 10
B76: ='BNB-System'!E72 -> 3.1.6 | C76: ='BNB-System'!F72 -> Einflussnahmemöglichkeiten durch Nutzer | D76: ='BNB-System'!G72 -> 100 | E76: ='BNB-System'!J72 -> 0.01666666667 | G76: =IF(SUM(G77:G85)>100,100,SUM(G77:G85)) -> 0 | N76: ='BNB-System'!K72 -> 200 | O76: =IF(ISNUMBER(E76*G76/100),E76*G76/100,0) -> 0
C77: ='BNB-System'!F73 -> Lüftung | D77: ='BNB-System'!G73 -> 10
C78: ='BNB-System'!F74 -> Sonnenschutz | D78: ='BNB-System'!G74 -> 10
C79: ='BNB-System'!F75 -> Blendschutz | D79: ='BNB-System'!G75 -> 10
C80: ='BNB-System'!F76 -> Temperaturen während der Heizperiode | D80: ='BNB-System'!G76 -> 10
C81: ='BNB-System'!F77 -> Temperaturen außerhalb der Heizperiode | D81: ='BNB-System'!G77 -> 15
C82: ='BNB-System'!F78 -> Steuerung von Tageslicht | D82: ='BNB-System'!G78 -> 10
C83: ='BNB-System'!F79 -> Steuerung von Kunstlicht | D83: ='BNB-System'!G79 -> 10
C84: ='BNB-System'!F80 -> Bedienfreundlichkeit | D84: ='BNB-System'!G80 -> 10
C85: ='BNB-System'!F81 -> Funktionskonzept der Haustechnik | D85: ='BNB-System'!G81 -> 15
B86: ='BNB-System'!E82 -> 3.1.7 | C86: ='BNB-System'!F82 -> Aufenthaltsmerkmale im Außenraum | D86: ='BNB-System'!G82 -> 100 | E86: ='BNB-System'!J82 -> 0.01666666667 | G86: =IF(SUM(G87:G90)>100,100,SUM(G87:G90)) -> 0 | N86: ='BNB-System'!K82 -> 200 | O86: =IF(ISNUMBER(E86*G86/100),E86*G86/100,0) -> 0
C87: ='BNB-System'!F83 -> Anzahl und Vielfalt Sitzgelegenheiten | D87: ='BNB-System'!G83 -> 30
C88: ='BNB-System'!F84 -> Anzahlund Vielfalt der Spiel- und Sportmöglichkeiten | D88: ='BNB-System'!G84 -> 15
C89: ='BNB-System'!F85 -> Zuordnung von Freibereichen zu Innenräumen | D89: ='BNB-System'!G85 -> 20
C90: ='BNB-System'!F86 -> Ausstattungsmerkmale | D90: ='BNB-System'!G86 -> 39
B91: ='BNB-System'!E87 -> 3.1.8 | C91: ='BNB-System'!F87 -> Sicherheit | D91: ='BNB-System'!G87 -> 100 | E91: ='BNB-System'!J87 -> 0.008333333333 | N91: ='BNB-System'!K87 -> 100 | O91: =IF(ISNUMBER(E91*G91/100),E91*G91/100,0) -> 0
B92: ='BNB-System'!E88 -> 3.1.9 | C92: ='BNB-System'!F88 -> Innenraumqualität | D92: ='BNB-System'!G88 -> 100 | E92: ='BNB-System'!J88 -> 0.025 | G92: =IF(SUM(G93:G96)>100,100,SUM(G93:G96)) -> 0 | N92: ='BNB-System'!K88 -> 300 | O92: =IF(ISNUMBER(E92*G92/100),E92*G92/100,0) -> 0
C93: ='BNB-System'!F89 -> Aufenthaltsqualitäten der Erschließungsflächen | D93: ='BNB-System'!G89 -> 45
C94: ='BNB-System'!F90 -> Innere Sitzbeziehung | D94: ='BNB-System'!G90 -> 15
C95: ='BNB-System'!F91 -> Flexibilität der Raumnutzung | D95: ='BNB-System'!G91 -> 30
C96: ='BNB-System'!F92 -> Aufbewahrungsmöglichkeiten | D96: ='BNB-System'!G92 -> 40
C97: ='BNB-System'!F93 -> Funktionalität
B98: ='BNB-System'!E94 -> 3.2.1 | C98: ='BNB-System'!F94 -> Barrierefreiheit | D98: ='BNB-System'!G94 -> 100 | E98: ='BNB-System'!J94 -> 0.01666666667 | N98: ='BNB-System'!K94 -> 200 | O98: =IF(ISNUMBER(E98*G98/100),E98*G98/100,0) -> 0
B99: ='BNB-System'!E95 -> 3.2.4 | C99: ='BNB-System'!F95 -> Zugänglichkeit | D99: ='BNB-System'!G95 -> 100 | E99: ='BNB-System'!J95 -> 0.01666666667 | G99: =IF(SUM(G100:G103)>100,100,SUM(G100:G103)) -> 0 | N99: ='BNB-System'!K95 -> 200 | O99: 0
C100: ='BNB-System'!F96 -> Grundsätzliche öffentliche Zugänglichkeit des Gebäudes | D100: ='BNB-System'!G96 -> 20
C101: ='BNB-System'!F97 -> Qualitative Merkmale der öffentlichen Zugänglichkeit des Gebäudes | D101: ='BNB-System'!G97 -> 50
C102: ='BNB-System'!F98 -> Nutzungsmerkmale der Zugänglichkeit | D102: ='BNB-System'!G98 -> 50
C103: ='BNB-System'!F99 -> Qualitative Aspekte der öffentlichen Zugänglichkeit der Freiflächen | D103: ='BNB-System'!G99 -> 20
B104: ='BNB-System'!E100 -> 3.2.5 | C104: ='BNB-System'!F100 -> Mobilitätsinfrastruktur | D104: ='BNB-System'!G100 -> 100 | E104: ='BNB-System'!J100 -> 0.008333333333 | G104: =IF(SUM(G105:G107)>100,100,SUM(G105:G107)) -> 0 | N104: ='BNB-System'!K100 -> 100 | O104: =IF(ISNUMBER(E104*G104/100),E104*G104/100,0) -> 0
C105: ='BNB-System'!F101 -> Anzahl der Fahrradstellplätze | D105: ='BNB-System'!G101 -> 40
C106: ='BNB-System'!F102 -> Anzahl der Lademöglichkeiten und Carsharing-Stellplätze | D106: ='BNB-System'!G102 -> 20
C107: ='BNB-System'!F103 -> Qualitative Anforderungen an Fahrradstellplätze | D107: ='BNB-System'!G103 -> 60
C108: ='BNB-System'!F104 -> Sicherung der Gestaltungsqualität
B109: ='BNB-System'!E105 -> 3.3.1 | C109: ='BNB-System'!F105 -> Gestalterische und städtebauliche Qualität | D109: ='BNB-System'!G105 -> 100 | E109: ='BNB-System'!J105 -> 0.025 | G109: =IF(AND(G110>0,G114<=G115),SUM(G110:G113),IF(AND(G110>0,G115<=G114),SUM(G110:G113),IF(G114>0,G114,IF(G115>0,G115,G116)))) -> 0 | N109: ='BNB-System'!K105 -> 300 | O109: =IF(ISNUMBER(E109*G109/100),E109*G109/100,0) -> 0
C110: ='BNB-System'!F106 -> Durchführung von Planungswettbewerben | D110: ='BNB-System'!G106 -> 20
C111: ='BNB-System'!F107 -> Wettbewerbsverfahren | D111: ='BNB-System'!G107 -> 40
C112: ='BNB-System'!F108 -> Ausführung des Entwurfs eines der Preisträger | D112: ='BNB-System'!G108 -> 30
C113: ='BNB-System'!F109 -> Beauftragung des Planungsteams | D113: ='BNB-System'!G109 -> 10
C114: ='BNB-System'!F110 -> Auszeichnung mit einem Architekturpreis | D114: ='BNB-System'!G110 -> 60
C115: ='BNB-System'!F111 -> Unabhängiges Expertengremium | D115: ='BNB-System'!G111 -> 40
C116: ='BNB-System'!F112 -> Sonderfall Mindestanforderung | D116: ='BNB-System'!G112 -> 10
B117: ='BNB-System'!E113 -> 3.3.2 | C117: ='BNB-System'!F113 -> Kunst am Bau | D117: ='BNB-System'!G113 -> 100 | E117: ='BNB-System'!J113 -> 0.008333333333 | G117: =IF(SUM(G118:G121)>100,100,SUM(G118:G121)) -> 0 | N117: ='BNB-System'!K113 -> 100 | O117: =IF(ISNUMBER(E117*G117/100),E117*G117/100,0) -> 0
C118: ='BNB-System'!F114 -> Mindestanforderung | D118: ='BNB-System'!G114 -> 10
C119: ='BNB-System'!F115 -> Bereitstellung von Mitteln im Rahmen der Bauaufgabe | D119: ='BNB-System'!G115 -> 30
C120: ='BNB-System'!F116 -> Umsetzung des Leitfadens Kunst am Bau | D120: ='BNB-System'!G116 -> 40
C121: ='BNB-System'!F117 -> Öffentlichkeitsarbeit, Rezeption der Kunst am Bau | D121: ='BNB-System'!G117 -> 20
B123: ='BNB-System'!E119 -> Technische Qualität | E123: ='BNB-System'!J119 -> 0.225 | G123: =G126*(E126/100)+G131*(E131/100)+G138*(E138/100)+G149*(E149/100)+G150*(E150/100)+G151*(E151/100) -> 0 | N123: ='BNB-System'!K119 -> 1000
C125: ='BNB-System'!F121 -> technische Ausführung
B126: ='BNB-System'!E122 -> 4.1.1 | C126: ='BNB-System'!F122 -> Schallschutz | D126: ='BNB-System'!G122 -> 100 | E126: ='BNB-System'!J122 -> 0.045 | G126: =IF(SUM(G127:G130)>100,100,SUM(G127:G130)) -> 0 | N126: ='BNB-System'!K122 -> 200 | O126: =IF(ISNUMBER(E126*G126/100),E126*G126/100,0) -> 0
C127: ='BNB-System'!F123 -> Luftschallschutz gegenüber Außenlärm | D127: ='BNB-System'!G123 -> 20
C128: ='BNB-System'!F124 -> Luftschallschutz | D128: ='BNB-System'!G124 -> 30
C129: ='BNB-System'!F125 -> Trittschallschutz | D129: ='BNB-System'!G125 -> 30
C130: ='BNB-System'!F126 -> Schallschutz gegenüber haustechnischen Anlagen | D130: ='BNB-System'!G126 -> 20
B131: ='BNB-System'!E127 -> 4.1.2 | C131: ='BNB-System'!F127 -> Wärme- und Tauwasserschutz | D131: ='BNB-System'!G127 -> 100 | E131: ='BNB-System'!J127 -> 0.045 | G131: =IF(SUM(G132:G137)>100,100,SUM(G132:G137)) -> 0 | N131: ='BNB-System'!K127 -> 200 | O131: =IF(ISNUMBER(E131*G131/100),E131*G131/100,0) -> 0
C132: ='BNB-System'!F128 -> Mittlere Wärmeduchgangskoeffizienten | D132: ='BNB-System'!G128 -> 30
C133: ='BNB-System'!F129 -> Wärmebrückenzuschlag | D133: ='BNB-System'!G129 -> 15
C134: ='BNB-System'!F130 -> Klassen der Luftdurchlässigkeit (Fugendurchlässigkeit) | D134: ='BNB-System'!G130 -> 15
C135: ='BNB-System'!F131 -> Tauwasserbildung | D135: ='BNB-System'!G131 -> 10
C136: ='BNB-System'!F132 -> Luftwechsel | D136: ='BNB-System'!G132 -> 15
C137: ='BNB-System'!F133 -> Sonneneintragswert | D137: ='BNB-System'!G133 -> 15
B138: ='BNB-System'!E134 -> 4.1.3 | C138: ='BNB-System'!F134 -> Reinigungs- und Instandhaltungsfreundlichkeit | D138: ='BNB-System'!G134 -> 100 | E138: ='BNB-System'!J134 -> 0.045 | G138: =IF(SUM(G139:G148)>100,100,SUM(G139:G148)) -> 0 | N138: ='BNB-System'!K134 -> 200 | O138: =IF(ISNUMBER(E138*G138/100),E138*G138/100,0) -> 0
C139: ='BNB-System'!F135 -> Tragkonstruktion | D139: ='BNB-System'!G135 -> 15
C140: ='BNB-System'!F136 -> Zugänglichkeit der Außenanlagen | D140: ='BNB-System'!G136 -> 12
C141: ='BNB-System'!F137 -> Außenbauteile | D141: ='BNB-System'!G137 -> 9
C142: ='BNB-System'!F138 -> Bodenbelag | D142: ='BNB-System'!G138 -> 9
C143: ='BNB-System'!F139 -> Schmutzfangzone | D143: ='BNB-System'!G139 -> 9
C144: ='BNB-System'!F140 -> Fußbodenleisten | D144: ='BNB-System'!G140 -> 9
C145: ='BNB-System'!F141 -> Hindernisfreie Grundrissgestaltung | D145: ='BNB-System'!G141 -> 9
C146: ='BNB-System'!F142 -> Einbauten | D146: ='BNB-System'!G142 -> 10
C147: ='BNB-System'!F143 -> Zugänglichkeit der Innenglasflächen | D147: ='BNB-System'!G143 -> 9
C148: ='BNB-System'!F144 -> Wände | D148: ='BNB-System'!G144 -> 9
B149: ='BNB-System'!E145 -> 4.1.4 | C149: ='BNB-System'!F145 -> Rückbau, Trennung und Verwertung | D149: ='BNB-System'!G145 -> 100 | E149: ='BNB-System'!J145 -> 0.045 | N149: ='BNB-System'!K145 -> 200 | O149: =IF(ISNUMBER(E149*G149/100),E149*G149/100,0) -> 0
B150: ='BNB-System'!E146 -> 4.1.5 | C150: ='BNB-System'!F146 -> Widerstandsfähigkeit gegen Naturgefahren | D150: ='BNB-System'!G146 -> 100 | E150: ='BNB-System'!J146 -> 0.0225 | N150: ='BNB-System'!K146 -> 100 | O150: 0
B151: ='BNB-System'!E147 -> 4.1.6 | C151: ='BNB-System'!F147 -> Bedienungs- und Instandhaltungsfreundlichkeit der TGA | D151: ='BNB-System'!G147 -> 100 | E151: ='BNB-System'!J147 -> 0.0225 | G151: =IF(SUM(G152:G158)>100,100,SUM(G152:G158)) -> 0 | N151: ='BNB-System'!K147 -> 100 | O151: =IF(ISNUMBER(E151*G151/100),E151*G151/100,0) -> 0
C152: ='BNB-System'!F148 -> KG 410 Abwasser-, Wasser-, Gasanlagen
C153: ='BNB-System'!F149 -> KG 420 Wärmeversorgungsanlagen
C154: ='BNB-System'!F150 -> KG 430 Lufttechnische Anlagen
C155: ='BNB-System'!F151 -> KG 435 Kälteversorgungsanlagen
C156: ='BNB-System'!F152 -> KG 440 Starkstromanlagen
C157: ='BNB-System'!F153 -> KG 460 Förderanlagen
C158: ='BNB-System'!F154 -> KG 480 Gebäudeautomation
B160: ='BNB-System'!E156 -> Prozessqualität | E160: ='BNB-System'!J156 -> 0.1 | G160: =G163*(E163/100)+G167*(E167/100)+G173*(E173/100)+G189*(E189/100)+G190*(E190/100)+G196*(E196/100)+G201*(E201/100)+G204*(E204/100) -> 0 | N160: ='BNB-System'!K156 -> 2100
C162: ='BNB-System'!F158 -> Planung
B163: ='BNB-System'!E159 -> 5.1.1 | C163: ='BNB-System'!F159 -> Projektvorbereitung | D163: ='BNB-System'!G159 -> 100 | E163: ='BNB-System'!J159 -> 0.01428571429 | G163: =IF(SUM(G164:G166)>100,100,SUM(G164:G166)) -> 0 | N163: ='BNB-System'!K159 -> 300 | O163: =IF(ISNUMBER(E163*G163/100),E163*G163/100,0) -> 0
C164: ='BNB-System'!F160 -> Bedarfsplanung oder vergleichbare Planung | D164: ='BNB-System'!G160 -> 35
C165: ='BNB-System'!F161 -> Zielvereinbarung | D165: ='BNB-System'!G161 -> 35
C166: ='BNB-System'!F162 -> Architektenwettbewerb | D166: ='BNB-System'!G162 -> 30
B167: ='BNB-System'!E163 -> 5.1.2 | C167: ='BNB-System'!F163 -> Integrale Planung | D167: ='BNB-System'!G163 -> 100 | E167: ='BNB-System'!J163 -> 0.01428571429 | G167: =IF(SUM(G168:G172)>100,100,SUM(G168:G172)) -> 0 | N167: ='BNB-System'!K163 -> 300 | O167: =IF(ISNUMBER(E167*G167/100),E167*G167/100,0) -> 0
C168: ='BNB-System'!F164 -> Interdisziplinäres Planungsteam | D168: ='BNB-System'!G164 -> 20
C169: ='BNB-System'!F165 -> Qualifikation des Planungsteams | D169: ='BNB-System'!G165 -> 20
C170: ='BNB-System'!F166 -> Integraler Planungsprozess | D170: ='BNB-System'!G166 -> 20
C171: ='BNB-System'!F167 -> Nutzerbeteiligung | D171: ='BNB-System'!G167 -> 30
C172: ='BNB-System'!F168 -> Öffentlichkeitsbeteiligung | D172: ='BNB-System'!G168 -> 10
B173: ='BNB-System'!E169 -> 5.1.3 | C173: ='BNB-System'!F169 -> Komplexität und Optimierung der Planung | D173: ='BNB-System'!G169 -> 100 | E173: ='BNB-System'!J169 -> 0.01428571429 | G173: =IF(SUM(G174:G188)>100,100,SUM(G174:G188)) -> 0 | N173: ='BNB-System'!K169 -> 300 | O173: =IF(ISNUMBER(E173*G173/100),E173*G173/100,0) -> 0
C174: ='BNB-System'!F170 -> SiGe-Plan | D174: ='BNB-System'!G170 -> 10
C175: ='BNB-System'!F171 -> Ver- und Entsiegelungskonzept | D175: ='BNB-System'!G171 -> 10
C176: ='BNB-System'!F172 -> Energiekonzept | D176: ='BNB-System'!G172 -> 15
C177: ='BNB-System'!F173 -> Mess- und Monitoringkonzept | D177: ='BNB-System'!G173 -> 15
C178: ='BNB-System'!F174 -> Wasserkonzept | D178: ='BNB-System'!G174 -> 10
C179: ='BNB-System'!F175 -> Konzept zur Vermeidung von Umwelt- und Gesundheitsrisiken aus Bauprodukten | D179: ='BNB-System'!G175 -> 10
C180: ='BNB-System'!F176 -> Lüftungskonzept | D180: ='BNB-System'!G176 -> 10
C181: ='BNB-System'!F177 -> Abfallkonzept / Wertstoffkonzept | D181: ='BNB-System'!G177 -> 5
C182: ='BNB-System'!F178 -> Tages- / Kunstlichtoptimierung | D182: ='BNB-System'!G178 -> 10
C183: ='BNB-System'!F179 -> Konzept zur Sicherung der Reinigungs- und Instandhaltungsfreundlichkeit | D183: ='BNB-System'!G179 -> 10
C184: ='BNB-System'!F180 -> Anpassbarkeits-, Rückbau- und Recyclingkonzept | D184: ='BNB-System'!G180 -> 10
C185: ='BNB-System'!F181 -> Konzept zur Vermeidung und Beherrschung von Risiken | D185: ='BNB-System'!G181 -> 10
C186: ='BNB-System'!F182 -> Sonstige Konzepte zum Nachhaltigen Bauen | D186: ='BNB-System'!G182 -> 10
C187: ='BNB-System'!F183 -> Prüfung der Planungsunterlagen durch unabhängige Dritte | D187: ='BNB-System'!G183 -> 5
C188: ='BNB-System'!F184 -> Durchführung von Variantenvergleichen | D188: ='BNB-System'!G184 -> 10
B189: ='BNB-System'!E185 -> 5.1.4 | C189: ='BNB-System'!F185 -> Ausschreibung und Vergabe | D189: ='BNB-System'!G185 -> 100 | E189: ='BNB-System'!J185 -> 0.009523809524 | N189: ='BNB-System'!K185 -> 200 | O189: =IF(ISNUMBER(E189*G189/100),E189*G189/100,0) -> 0
B190: ='BNB-System'!E186 -> 5.1.5 | C190: ='BNB-System'!F186 -> Voraussetzungen für eine optimale Bewirtschaftung | D190: ='BNB-System'!G186 -> 100 | E190: ='BNB-System'!J186 -> 0.009523809524 | G190: =IF(SUM(G191:G194)>100,100,SUM(G191:G194)) -> 0 | N190: ='BNB-System'!K186 -> 200 | O190: 0
C191: ='BNB-System'!F187 -> Erstellung einer Gebäudeakte / Objektdokumentation | D191: ='BNB-System'!G187 -> 25
C192: ='BNB-System'!F188 -> Erstellung von Wartungs-, Inspektions-, Betriebs-, und Pflegeanleitungen | D192: ='BNB-System'!G188 -> 25
C193: ='BNB-System'!F189 -> Anpassung der Pläne und Berechnungen an das realisierte Gebäude | D193: ='BNB-System'!G189 -> 25
C194: ='BNB-System'!F190 -> Erstellung eines Nutzerhandbuches | D194: ='BNB-System'!G190 -> 25
C195: ='BNB-System'!F191 -> Bauausführung
B196: ='BNB-System'!E192 -> 5.2.1 | C196: ='BNB-System'!F192 -> Baustelle / Bauprozess | D196: ='BNB-System'!G192 -> 100 | E196: ='BNB-System'!J192 -> 0.009523809524 | G196: =IF(SUM(G197:G200)>100,100,SUM(G197:G200)) -> 0 | N196: ='BNB-System'!K192 -> 200 | O196: =IF(ISNUMBER(E196*G196/100),E196*G196/100,0) -> 0
C197: ='BNB-System'!F193 -> Wertstoffoptimierte Baustelle | D197: ='BNB-System'!G193 -> 25
C198: ='BNB-System'!F194 -> Lärmarme Baustelle | D198: ='BNB-System'!G194 -> 25
C199: ='BNB-System'!F195 -> Staubarme Baustelle | D199: ='BNB-System'!G195 -> 25
C200: ='BNB-System'!F196 -> Bodenschutz auf der Baustelle | D200: ='BNB-System'!G196 -> 25
B201: ='BNB-System'!E197 -> 5.2.2 | C201: ='BNB-System'!F197 -> Qualitätssicherung der Bauausführung | D201: ='BNB-System'!G197 -> 100 | E201: ='BNB-System'!J197 -> 0.01428571429 | G201: =IF(SUM(G202:G203)>100,100,SUM(G202:G203)) -> 0 | N201: ='BNB-System'!K197 -> 300 | O201: =IF(ISNUMBER(E201*G201/100),E201*G201/100,0) -> 0
C202: ='BNB-System'!F198 -> Dokumentation | D202: ='BNB-System'!G198 -> 50
C203: ='BNB-System'!F199 -> Messungen zur Qualitätskontrolle | D203: ='BNB-System'!G199 -> 50
B204: ='BNB-System'!E200 -> 5.2.3 | C204: ='BNB-System'!F200 -> Systematische Inbetriebnahme | D204: ='BNB-System'!G200 -> 100 | E204: ='BNB-System'!J200 -> 0.01428571429 | N204: ='BNB-System'!K200 -> 300 | O204: =IF(ISNUMBER(E204*G204/100),E204*G204/100,0) -> 0
B207: ='BNB-System'!E203 -> Standortmerkmale | E207: ='BNB-System'!J203 -> 1 | G207: =G210*(E210/100)+G216*(E216/100)+G223*(E223/100)+G228*(E228/100)+G233*(E233/100)+G244*(E244/100) -> 0 | N207: ='BNB-System'!K203 -> 1300
C209: ='BNB-System'!F205 -> Standortmerkmale
B210: ='BNB-System'!E206 -> 6.1.1 | C210: ='BNB-System'!F206 -> Risiken am Mikrostandort | D210: ='BNB-System'!G206 -> 100 | E210: ='BNB-System'!J206 -> 0.1538461538 | G210: =IF(SUM(G211:G215)>100,100,SUM(G211:G215)) -> 0 | N210: ='BNB-System'!K206 -> 200 | O210: =IF(ISNUMBER(E210*G210/100),E210*G210/100,0) -> 0
C211: ='BNB-System'!F207 -> Risiken aus Man-Made-Hazards (Unfälle) | D211: ='BNB-System'!G207 -> 20
C212: ='BNB-System'!F208 -> Risiken aus Erdbeben | D212: ='BNB-System'!G208 -> 20
C213: ='BNB-System'!F209 -> Risiken aus Lawinen | D213: ='BNB-System'!G209 -> 20
C214: ='BNB-System'!F210 -> Risiken aus Sturm | D214: ='BNB-System'!G210 -> 20
... 34 more rows

Sheet Bewertung durch Anwender
B1: ='BNB-System'!B1 -> Projekt: | C1: =Zielvereinbarung!C1 -> Projektbezeichnung | N1: =Zielvereinbarung!$G$1 -> 2019-10-23
B2: ='BNB-System'!B2 -> Bewertungssystem Nachhaltiges Bauen (BNB)
B3: ='BNB-System'!B3 -> Systemvariante Unterrichtsgebäude, Modul Neubau (BNB_UN) - Version 2017
B4: Nachhaltigkeitskriterien | D4: maximale Punktzahl | E4: Gewichtung Gesamt-bewertung | F4: Zielwert aus der Ziel-vereinbarung | G4: Zielwert der Ziel-vereinbarung | H4: Zielwert der Ziel-vereinbarung | I4: 1. Korrektur Zielwert | J4: Kommentar | K4: 2. Korrektur Zielwert | L4: Kommentar | M4: Zwischen-bewertung | N4: Endbewertung | P4: Zielwert | Q4: Gesamt-bewertung gemäß End-bewertung
G5: Soll | H5: aus Registerkarte "Zielvereinbarung" | I5: =TODAY() -> 2019-10-23 | J5: Eintrag erforderlich für Zielwertkorrektur | K5: 2015-02-22 | L5: Eintrag erforderlich für Zielwertkorrektur | M5: =TODAY() -> 2019-10-23
B7: Gesamterfüllungsgrad | G7: =G10+G28+G41+G123+G160 -> 0 | H7: =Zielvereinbarung!G7 -> 0 | M7: =M10+M28+M41+M123+M160 -> 0 | N7: =N10+N28+N41+N123+N160 -> 0
M8: to_copy_zb | N8: to_insert_zb | O8: qwertz
B10: ='BNB-System'!E6 -> Ökologische Qualität | E10: 0.225 | G10: =G13*($E$13/100)+G14*($E$14/100)+G15*($E$15/100)+G16*($E$16/100)+G17*($E$17/100)+G18*($E$18/100)+G19*($E$19/100)+G21*($E$21/100)+G25*($E$25/100)+G26*($E$26/100) -> 0 | H10: =Zielvereinbarung!G10 -> 0 | M10: =M13*($E$13/100)+M14*($E$14/100)+M15*($E$15/100)+M16*($E$16/100)+M17*($E$17/100)+M18*($E$18/100)+M19*($E$19/100)+M21*($E$21/100)+M25*($E$25/100)+M26*($E$26/100) -> 0 | N10: =N13*($E$13/100)+N14*($E$14/100)+N15*($E$15/100)+N16*($E$16/100)+N17*($E$17/100)+N18*($E$18/100)+N19*($E$19/100)+N21*($E$21/100)+N25*($E$25/100)+N26*($E$26/100) -> 0 | P10: ='BNB-System'!K6 -> 1800
P11: ='BNB-System'!K7 -> 0
C12: Wirkungen auf die globale und lokale Umwelt | P12: ='BNB-System'!K8 -> 0
B13: ='BNB-System'!E9 -> 1.1.1 | C13: ='BNB-System'!F9 -> Treibhauspotenzial (GWP) | D13: ='BNB-System'!G9 -> 100 | E13: ='BNB-System'!J9 -> 0.0375 | F13: o | G13: =IF(AND(NOT(ISBLANK(K13)),NOT(ISBLANK(L13))),('Bewertung durch Anwender'!K13),IF(AND(NOT(ISBLANK(J13)),NOT(ISBLANK(I13))),('Bewertung durch Anwender'!I13),(Zielvereinbarung!G13))) -> 0 | H13: =Zielvereinbarung!G13 -> 0 | P13: ='BNB-System'!K9 -> 300 | Q13: =IF(ISNUMBER(E13*N13/100),E13*N13/100,0) -> 0
B14: ='BNB-System'!E10 -> 1.1.2 | C14: ='BNB-System'!F10 -> Ozonschichtabbaupotenzial (ODP) | D14: ='BNB-System'!G10 -> 100 | E14: ='BNB-System'!J10 -> 0.0125 | F14: x | G14: =IF(AND(NOT(ISBLANK(K14)),NOT(ISBLANK(L14))),('Bewertung durch Anwender'!K14),IF(AND(NOT(ISBLANK(J14)),NOT(ISBLANK(I14))),('Bewertung durch Anwender'!I14),(Zielvereinbarung!G14))) -> 0 | H14: =Zielvereinbarung!G14 -> 0 | P14: ='BNB-System'!K10 -> 100 | Q14: 0
B15: ='BNB-System'!E11 -> 1.1.3 | C15: ='BNB-System'!F11 -> Ozonbildungspotenzial (POCP) | D15: ='BNB-System'!G11 -> 100 | E15: ='BNB-System'!J11 -> 0.0125 | G15: =IF(AND(NOT(ISBLANK(K15)),NOT(ISBLANK(L15))),('Bewertung durch Anwender'!K15),IF(AND(NOT(ISBLANK(J15)),NOT(ISBLANK(I15))),('Bewertung durch Anwender'!I15),(Zielvereinbarung!G15))) -> 0 | H15: =Zielvereinbarung!G15 -> 0 | P15: ='BNB-System'!K11 -> 100 | Q15: 0
B16: ='BNB-System'!E12 -> 1.1.4 | C16: ='BNB-System'!F12 -> Versauerungspotenzial (AP) | D16: ='BNB-System'!G12 -> 100 | E16: ='BNB-System'!J12 -> 0.0125 | G16: =IF(AND(NOT(ISBLANK(K16)),NOT(ISBLANK(L16))),('Bewertung durch Anwender'!K16),IF(AND(NOT(ISBLANK(J16)),NOT(ISBLANK(I16))),('Bewertung durch Anwender'!I16),(Zielvereinbarung!G16))) -> 0 | H16: =Zielvereinbarung!G16 -> 0 | P16: ='BNB-System'!K12 -> 100 | Q16: 0
B17: ='BNB-System'!E13 -> 1.1.5 | C17: ='BNB-System'!F13 -> Überdüngungspotenzial (EP) | D17: ='BNB-System'!G13 -> 100 | E17: ='BNB-System'!J13 -> 0.0125 | G17: =IF(AND(NOT(ISBLANK(K17)),NOT(ISBLANK(L17))),('Bewertung durch Anwender'!K17),IF(AND(NOT(ISBLANK(J17)),NOT(ISBLANK(I17))),('Bewertung durch Anwender'!I17),(Zielvereinbarung!G17))) -> 0 | H17: =Zielvereinbarung!G17 -> 0 | P17: ='BNB-System'!K13 -> 100 | Q17: 0
B18: ='BNB-System'!E14 -> 1.1.6 | C18: ='BNB-System'!F14 -> Risiken für die lokale Umwelt | D18: ='BNB-System'!G14 -> 100 | E18: ='BNB-System'!J14 -> 0.0375 | G18: =IF(AND(NOT(ISBLANK(K18)),NOT(ISBLANK(L18))),('Bewertung durch Anwender'!K18),IF(AND(NOT(ISBLANK(J18)),NOT(ISBLANK(I18))),('Bewertung durch Anwender'!I18),(Zielvereinbarung!G18))) -> 0 | H18: =Zielvereinbarung!G18 -> 0 | P18: ='BNB-System'!K14 -> 300 | Q18: 0
B19: ='BNB-System'!E15 -> 1.1.7 | C19: ='BNB-System'!F15 -> Nachhaltige Materialgewinnung / Biodiversität | D19: ='BNB-System'!G15 -> 100 | E19: ='BNB-System'!J15 -> 0.0125 | G19: =IF(AND(NOT(ISBLANK(K19)),NOT(ISBLANK(L19))),('Bewertung durch Anwender'!K19),IF(AND(NOT(ISBLANK(J19)),NOT(ISBLANK(I19))),('Bewertung durch Anwender'!I19),(Zielvereinbarung!G19))) -> 0 | H19: =Zielvereinbarung!G19 -> 0 | P19: ='BNB-System'!K15 -> 100 | Q19: 0
C20: ='BNB-System'!F16 -> Ressourceninanspruchnahme | P20: ='BNB-System'!K16 -> 0
B21: ='BNB-System'!E17 -> 1.2.1 | C21: ='BNB-System'!F17 -> Primärenergiebedarf | D21: ='BNB-System'!G17 -> 100 | E21: ='BNB-System'!J17 -> 0.0375 | G21: =IF(AND(NOT(ISBLANK(K21)),NOT(ISBLANK(L21))),('Bewertung durch Anwender'!K21),IF(AND(NOT(ISBLANK(J21)),NOT(ISBLANK(I21))),('Bewertung durch Anwender'!I21),(Zielvereinbarung!G21))) -> 0 | H21: =Zielvereinbarung!G21 -> 0 | M21: =IF(SUM(M22:M24)>100,100,SUM(M22:M24)) -> 0 | N21: =IF(SUM(N22:N24)>100,100,SUM(N22:N24)) -> 0 | P21: ='BNB-System'!K17 -> 300 | Q21: =IF(ISNUMBER(E21*N21/100),E21*N21/100,0) -> 0
C22: ='BNB-System'!F18 -> Primärenergiebedarf nicht erneuerbar (PEne) | D22: ='BNB-System'!G18 -> 60 | G22: =IF(AND(NOT(ISBLANK(K22)),NOT(ISBLANK(L22))),('Bewertung durch Anwender'!K22),IF(AND(NOT(ISBLANK(J22)),NOT(ISBLANK(I22))),('Bewertung durch Anwender'!I22),(Zielvereinbarung!G22))) -> 0 | H22: =Zielvereinbarung!G22 -> 0 | P22: ='BNB-System'!K18 -> 0
C23: ='BNB-System'!F19 -> Gesamtenergiebedarf (PEges) | D23: ='BNB-System'!G19 -> 40 | G23: =IF(AND(NOT(ISBLANK(K23)),NOT(ISBLANK(L23))),('Bewertung durch Anwender'!K23),IF(AND(NOT(ISBLANK(J23)),NOT(ISBLANK(I23))),('Bewertung durch Anwender'!I23),(Zielvereinbarung!G23))) -> 0 | H23: =Zielvereinbarung!G23 -> 0 | P23: ='BNB-System'!K19 -> 0
C24: ='BNB-System'!F20 -> Anteil erneuerbarer Primärenergie (PEe) | D24: ='BNB-System'!G20 -> 20 | G24: =IF(AND(NOT(ISBLANK(K24)),NOT(ISBLANK(L24))),('Bewertung durch Anwender'!K24),IF(AND(NOT(ISBLANK(J24)),NOT(ISBLANK(I24))),('Bewertung durch Anwender'!I24),(Zielvereinbarung!G24))) -> 0 | H24: =Zielvereinbarung!G24 -> 0 | P24: ='BNB-System'!K20 -> 0
B25: ='BNB-System'!E21 -> 1.2.3 | C25: ='BNB-System'!F21 -> Trinkwasserbedarf und Abwasseraufkommen | D25: ='BNB-System'!G21 -> 100 | E25: ='BNB-System'!J21 -> 0.025 | G25: =IF(AND(NOT(ISBLANK(K25)),NOT(ISBLANK(L25))),('Bewertung durch Anwender'!K25),IF(AND(NOT(ISBLANK(J25)),NOT(ISBLANK(I25))),('Bewertung durch Anwender'!I25),(Zielvereinbarung!G25))) -> 0 | H25: =Zielvereinbarung!G25 -> 0 | P25: ='BNB-System'!K21 -> 200 | Q25: =IF(ISNUMBER(E25*N25/100),E25*N25/100,0) -> 0
B26: ='BNB-System'!E22 -> 1.2.4 | C26: ='BNB-System'!F22 -> Flächeninanspruchnahme | D26: ='BNB-System'!G22 -> 100 | E26: ='BNB-System'!J22 -> 0.025 | G26: =IF(AND(NOT(ISBLANK(K26)),NOT(ISBLANK(L26))),('Bewertung durch Anwender'!K26),IF(AND(NOT(ISBLANK(J26)),NOT(ISBLANK(I26))),('Bewertung durch Anwender'!I26),(Zielvereinbarung!G26))) -> 0 | H26: =Zielvereinbarung!G26 -> 0 | P26: ='BNB-System'!K22 -> 200 | Q26: =IF(ISNUMBER(E26*N26/100),E26*N26/100,0) -> 0
P27: ='BNB-System'!K23 -> 0
B28: ='BNB-System'!E24 -> Ökonomische Qualität | E28: ='BNB-System'!J24 -> 0.225 | G28: =IF(AND(NOT(ISBLANK(K28)),NOT(ISBLANK(L28))),('Bewertung durch Anwender'!K28),IF(AND(NOT(ISBLANK(J28)),NOT(ISBLANK(I28))),('Bewertung durch Anwender'!I28),(Zielvereinbarung!G28))) -> 0 | H28: =Zielvereinbarung!G28 -> 0 | M28: =M31*($E$31/100)+M33*($E$33/100) -> 0 | N28: =N31*($E$31/100)+N33*($E$33/100) -> 0 | P28: ='BNB-System'!K24 -> 500
P29: ='BNB-System'!K25 -> 0
C30: ='BNB-System'!F26 -> Lebenszykluskosten | P30: ='BNB-System'!K26 -> 0
B31: ='BNB-System'!E27 -> 2.1.1 | C31: ='BNB-System'!F27 -> Gebäudebezogene Kosten im Lebenszyklus | D31: ='BNB-System'!G27 -> 100 | E31: ='BNB-System'!J27 -> 0.135 | G31: =IF(AND(NOT(ISBLANK(K31)),NOT(ISBLANK(L31))),('Bewertung durch Anwender'!K31),IF(AND(NOT(ISBLANK(J31)),NOT(ISBLANK(I31))),('Bewertung durch Anwender'!I31),(Zielvereinbarung!G31))) -> 0 | H31: =Zielvereinbarung!G31 -> 0 | P31: ='BNB-System'!K27 -> 300 | Q31: =IF(ISNUMBER(E31*N31/100),E31*N31/100,0) -> 0
C32: ='BNB-System'!F28 -> Wertentwicklung | P32: ='BNB-System'!K28 -> 0
B33: ='BNB-System'!E29 -> 2.2.2 | C33: ='BNB-System'!F29 -> Anpassungsfähigkeit | D33: ='BNB-System'!G29 -> 100 | E33: ='BNB-System'!J29 -> 0.09 | F33: o | G33: =IF(AND(NOT(ISBLANK(K33)),NOT(ISBLANK(L33))),('Bewertung durch Anwender'!K33),IF(AND(NOT(ISBLANK(J33)),NOT(ISBLANK(I33))),('Bewertung durch Anwender'!I33),(Zielvereinbarung!G33))) -> 0 | H33: =Zielvereinbarung!G33 -> 0 | M33: =SUM(M34:M39) -> 0 | N33: =SUM(N34:N39) -> 0 | P33: ='BNB-System'!K29 -> 200 | Q33: =IF(ISNUMBER(E33*N33/100),E33*N33/100,0) -> 0
C34: ='BNB-System'!F30 -> Lichte Raumhöhe | D34: ='BNB-System'!G30 -> 15 | G34: =IF(AND(NOT(ISBLANK(K34)),NOT(ISBLANK(L34))),('Bewertung durch Anwender'!K34),IF(AND(NOT(ISBLANK(J34)),NOT(ISBLANK(I34))),('Bewertung durch Anwender'!I34),(Zielvereinbarung!G34))) -> 0 | H34: =Zielvereinbarung!G34 -> 0 | P34: ='BNB-System'!K30 -> 0
C35: ='BNB-System'!F31 -> Gebäudetiefe | D35: ='BNB-System'!G31 -> 15 | G35: =IF(AND(NOT(ISBLANK(K35)),NOT(ISBLANK(L35))),('Bewertung durch Anwender'!K35),IF(AND(NOT(ISBLANK(J35)),NOT(ISBLANK(I35))),('Bewertung durch Anwender'!I35),(Zielvereinbarung!G35))) -> 0 | H35: =Zielvereinbarung!G35 -> 0 | P35: ='BNB-System'!K31 -> 0
C36: ='BNB-System'!F32 -> Vertikale Erschlließung | D36: ='BNB-System'!G32 -> 15 | G36: =IF(AND(NOT(ISBLANK(K36)),NOT(ISBLANK(L36))),('Bewertung durch Anwender'!K36),IF(AND(NOT(ISBLANK(J36)),NOT(ISBLANK(I36))),('Bewertung durch Anwender'!I36),(Zielvereinbarung!G36))) -> 0 | H36: =Zielvereinbarung!G36 -> 0 | P36: ='BNB-System'!K32 -> 0
C37: ='BNB-System'!F33 -> Grundrisse | D37: ='BNB-System'!G33 -> 25 | G37: =IF(AND(NOT(ISBLANK(K37)),NOT(ISBLANK(L37))),('Bewertung durch Anwender'!K37),IF(AND(NOT(ISBLANK(J37)),NOT(ISBLANK(I37))),('Bewertung durch Anwender'!I37),(Zielvereinbarung!G37))) -> 0 | H37: =Zielvereinbarung!G37 -> 0 | P37: ='BNB-System'!K33 -> 0
C38: ='BNB-System'!F34 -> Konstruktion | D38: ='BNB-System'!G34 -> 20 | G38: =IF(AND(NOT(ISBLANK(K38)),NOT(ISBLANK(L38))),('Bewertung durch Anwender'!K38),IF(AND(NOT(ISBLANK(J38)),NOT(ISBLANK(I38))),('Bewertung durch Anwender'!I38),(Zielvereinbarung!G38))) -> 0 | H38: =Zielvereinbarung!G38 -> 0 | P38: ='BNB-System'!K34 -> 0
C39: ='BNB-System'!F35 -> Technische Ausstattung | D39: ='BNB-System'!G35 -> 10 | G39: =IF(AND(NOT(ISBLANK(K39)),NOT(ISBLANK(L39))),('Bewertung durch Anwender'!K39),IF(AND(NOT(ISBLANK(J39)),NOT(ISBLANK(I39))),('Bewertung durch Anwender'!I39),(Zielvereinbarung!G39))) -> 0 | H39: =Zielvereinbarung!G39 -> 0
P40: ='BNB-System'!K36 -> 0
B41: ='BNB-System'!E37 -> Soziokulturelle und funktionale Qualität | E41: ='BNB-System'!J37 -> 0.225 | G41: =IF(AND(NOT(ISBLANK(K41)),NOT(ISBLANK(L41))),('Bewertung durch Anwender'!K41),IF(AND(NOT(ISBLANK(J41)),NOT(ISBLANK(I41))),('Bewertung durch Anwender'!I41),(Zielvereinbarung!G41))) -> 0 | H41: =Zielvereinbarung!G41 -> 0 | M41: =M44*($E$44/100)+M55*($E$55/100)+M58*($E$58/100)+M68*($E$68/100)+M76*($E$76/100)+M86*($E$86/100)+M91*($E$91/100)+M92*($E$92/100)+M98*($E$98/100)+M99*($E$99/100)+M104*($E$104/100)+M109*($E$109/100)+M117*($E$117/100) -> 0 | N41: =N44*($E$44/100)+N55*($E$55/100)+N58*($E$58/100)+N68*($E$68/100)+N76*($E$76/100)+N86*($E$86/100)+N91*($E$91/100)+N92*($E$92/100)+N98*($E$98/100)+N99*($E$99/100)+N104*($E$104/100)+N109*($E$109/100)+N117*($E$117/100) -> 0 | P41: ='BNB-System'!K37 -> 2700
P42: ='BNB-System'!K38 -> 0
C43: ='BNB-System'!F39 -> Gesundheit, Behaglichkeit und Nutzerzufriedenheit | P43: ='BNB-System'!K39 -> 0
B44: ='BNB-System'!E40 -> 3.1.1 | C44: ='BNB-System'!F40 -> Thermischer Komfort | D44: ='BNB-System'!G40 -> 100 | E44: ='BNB-System'!J40 -> 0.025 | G44: =IF(AND(NOT(ISBLANK(K44)),NOT(ISBLANK(L44))),('Bewertung durch Anwender'!K44),IF(AND(NOT(ISBLANK(J44)),NOT(ISBLANK(I44))),('Bewertung durch Anwender'!I44),(Zielvereinbarung!G44))) -> 0 | H44: =Zielvereinbarung!G44 -> 0 | M44: =SUM(M45:M54) -> 0 | N44: =SUM(N45:N54) -> 0 | P44: ='BNB-System'!K40 -> 300 | Q44: =IF(ISNUMBER(E44*N44/100),E44*N44/100,0) -> 0
C45: ='BNB-System'!F41 -> Winter | G45: =IF(Zielvereinbarung!E45=0,"",Zielvereinbarung!E45) ->  | P45: ='BNB-System'!K42 -> 0
C46: ='BNB-System'!F42 -> Operative Temperatur | D46: ='BNB-System'!G42 -> 10 | G46: =IF(AND(NOT(ISBLANK(K46)),NOT(ISBLANK(L46))),('Bewertung durch Anwender'!K46),IF(AND(NOT(ISBLANK(J46)),NOT(ISBLANK(I46))),('Bewertung durch Anwender'!I46),(Zielvereinbarung!G46))) -> 0 | H46: =Zielvereinbarung!G46 -> 0 | P46: ='BNB-System'!#REF! -> 
C47: ='BNB-System'!F43 -> Zugluft | D47: ='BNB-System'!G43 -> 10 | G47: =IF(AND(NOT(ISBLANK(K47)),NOT(ISBLANK(L47))),('Bewertung durch Anwender'!K47),IF(AND(NOT(ISBLANK(J47)),NOT(ISBLANK(I47))),('Bewertung durch Anwender'!I47),(Zielvereinbarung!G47))) -> 0 | H47: =Zielvereinbarung!G47 -> 0
C48: ='BNB-System'!F44 -> Stahlungstemperaturasymmetrie und Fußbodentemperatur | D48: ='BNB-System'!G44 -> 10 | G48: =IF(AND(NOT(ISBLANK(K48)),NOT(ISBLANK(L48))),('Bewertung durch Anwender'!K48),IF(AND(NOT(ISBLANK(J48)),NOT(ISBLANK(I48))),('Bewertung durch Anwender'!I48),(Zielvereinbarung!G48))) -> 0 | H48: =Zielvereinbarung!G48 -> 0
C49: ='BNB-System'!F45 -> Relative Luftfeuchte | D49: ='BNB-System'!G45 -> 10 | G49: =IF(AND(NOT(ISBLANK(K49)),NOT(ISBLANK(L49))),('Bewertung durch Anwender'!K49),IF(AND(NOT(ISBLANK(J49)),NOT(ISBLANK(I49))),('Bewertung durch Anwender'!I49),(Zielvereinbarung!G49))) -> 0 | H49: =Zielvereinbarung!G49 -> 0
C50: ='BNB-System'!F46 -> Sommer | G50: =IF(Zielvereinbarung!E50=0,"",Zielvereinbarung!E50) -> 
C51: ='BNB-System'!F47 -> Operative Temperatur | D51: ='BNB-System'!G47 -> 30 | G51: =IF(AND(NOT(ISBLANK(K51)),NOT(ISBLANK(L51))),('Bewertung durch Anwender'!K51),IF(AND(NOT(ISBLANK(J51)),NOT(ISBLANK(I51))),('Bewertung durch Anwender'!I51),(Zielvereinbarung!G51))) -> 0 | H51: =Zielvereinbarung!G51 -> 0
C52: ='BNB-System'!F48 -> Zugluft | D52: ='BNB-System'!G48 -> 10 | G52: =IF(AND(NOT(ISBLANK(K52)),NOT(ISBLANK(L52))),('Bewertung durch Anwender'!K52),IF(AND(NOT(ISBLANK(J52)),NOT(ISBLANK(I52))),('Bewertung durch Anwender'!I52),(Zielvereinbarung!G52))) -> 0 | H52: =Zielvereinbarung!G52 -> 0
C53: ='BNB-System'!F49 -> Stahlungstemperaturasymmetrie und Fußbodentemperatur | D53: ='BNB-System'!G49 -> 10 | G53: =IF(AND(NOT(ISBLANK(K53)),NOT(ISBLANK(L53))),('Bewertung durch Anwender'!K53),IF(AND(NOT(ISBLANK(J53)),NOT(ISBLANK(I53))),('Bewertung durch Anwender'!I53),(Zielvereinbarung!G53))) -> 0 | H53: =Zielvereinbarung!G53 -> 0
C54: ='BNB-System'!F50 -> Relative Luftfeuchte | D54: ='BNB-System'!G50 -> 10 | G54: =IF(AND(NOT(ISBLANK(K54)),NOT(ISBLANK(L54))),('Bewertung durch Anwender'!K54),IF(AND(NOT(ISBLANK(J54)),NOT(ISBLANK(I54))),('Bewertung durch Anwender'!I54),(Zielvereinbarung!G54))) -> 0 | H54: =Zielvereinbarung!G54 -> 0
B55: ='BNB-System'!E51 -> 3.1.3 | C55: ='BNB-System'!F51 -> Innenraumlufthygiene | D55: ='BNB-System'!G51 -> 100 | E55: ='BNB-System'!J51 -> 0.025 | G55: =IF(AND(NOT(ISBLANK(K55)),NOT(ISBLANK(L55))),('Bewertung durch Anwender'!K55),IF(AND(NOT(ISBLANK(J55)),NOT(ISBLANK(I55))),('Bewertung durch Anwender'!I55),(Zielvereinbarung!G55))) -> 0 | H55: =Zielvereinbarung!G55 -> 0 | M55: =SUM(M56:M57) -> 0 | N55: =SUM(N56:N57) -> 0 | P55: ='BNB-System'!K51 -> 300 | Q55: =IF(ISNUMBER(E55*N55/100),E55*N55/100,0) -> 0
C56: ='BNB-System'!F52 -> Flüchtige organische Stoffe (VOC) und Formaldehyd | D56: ='BNB-System'!G52 -> 50 | G56: =IF(AND(NOT(ISBLANK(K56)),NOT(ISBLANK(L56))),('Bewertung durch Anwender'!K56),IF(AND(NOT(ISBLANK(J56)),NOT(ISBLANK(I56))),('Bewertung durch Anwender'!I56),(Zielvereinbarung!G56))) -> 0 | H56: =Zielvereinbarung!G56 -> 0 | P56: ='BNB-System'!K52 -> 0
C57: ='BNB-System'!F53 -> Außenluftvolumenstrom | D57: ='BNB-System'!G53 -> 50 | G57: =IF(AND(NOT(ISBLANK(K57)),NOT(ISBLANK(L57))),('Bewertung durch Anwender'!K57),IF(AND(NOT(ISBLANK(J57)),NOT(ISBLANK(I57))),('Bewertung durch Anwender'!I57),(Zielvereinbarung!G57))) -> 0 | H57: =Zielvereinbarung!G57 -> 0 | P57: ='BNB-System'!K53 -> 0
B58: ='BNB-System'!E54 -> 3.1.4 | C58: ='BNB-System'!F54 -> Akustischer Komfort | D58: ='BNB-System'!G54 -> 100 | E58: ='BNB-System'!J54 -> 0.01666666667 | G58: =IF(AND(NOT(ISBLANK(K58)),NOT(ISBLANK(L58))),('Bewertung durch Anwender'!K58),IF(AND(NOT(ISBLANK(J58)),NOT(ISBLANK(I58))),('Bewertung durch Anwender'!I58),(Zielvereinbarung!G58))) -> 0 | H58: =Zielvereinbarung!G58 -> 0 | M58: =SUM(M60:M67) -> 0 | N58: =SUM(N60:N67) -> 0 | P58: ='BNB-System'!K54 -> 200 | Q58: =IF(ISNUMBER(E58*N58/100),E58*N58/100,0) -> 0
C59: ='BNB-System'!F55 -> Räume Gruppe A
C60: ='BNB-System'!F56 -> Musik | D60: ='BNB-System'!G56 -> 100 | G60: =IF(AND(NOT(ISBLANK(K60)),NOT(ISBLANK(L60))),('Bewertung durch Anwender'!K60),IF(AND(NOT(ISBLANK(J60)),NOT(ISBLANK(I60))),('Bewertung durch Anwender'!I60),(Zielvereinbarung!G60))) -> 0 | H60: =Zielvereinbarung!G60 -> 0 | P60: ='BNB-System'!K56 -> 0
C61: ='BNB-System'!F57 -> Sprache/ Vortrag | D61: ='BNB-System'!G57 -> 100 | G61: =IF(AND(NOT(ISBLANK(K61)),NOT(ISBLANK(L61))),('Bewertung durch Anwender'!K61),IF(AND(NOT(ISBLANK(J61)),NOT(ISBLANK(I61))),('Bewertung durch Anwender'!I61),(Zielvereinbarung!G61))) -> 0 | H61: =Zielvereinbarung!G61 -> 0 | P61: ='BNB-System'!K57 -> 0
C62: ='BNB-System'!F58 -> Unterricht/ Kommunikation | D62: ='BNB-System'!G58 -> 100 | G62: =IF(AND(NOT(ISBLANK(K62)),NOT(ISBLANK(L62))),('Bewertung durch Anwender'!K62),IF(AND(NOT(ISBLANK(J62)),NOT(ISBLANK(I62))),('Bewertung durch Anwender'!I62),(Zielvereinbarung!G62))) -> 0 | H62: =Zielvereinbarung!G62 -> 0 | P62: ='BNB-System'!K58 -> 0
C63: ='BNB-System'!F59 -> Sport | D63: ='BNB-System'!G59 -> 100 | G63: =IF(AND(NOT(ISBLANK(K63)),NOT(ISBLANK(L63))),('Bewertung durch Anwender'!K63),IF(AND(NOT(ISBLANK(J63)),NOT(ISBLANK(I63))),('Bewertung durch Anwender'!I63),(Zielvereinbarung!G63))) -> 0 | H63: =Zielvereinbarung!G63 -> 0 | P63: ='BNB-System'!K59 -> 0
C64: ='BNB-System'!F60 -> Räume Gruppe B
C65: ='BNB-System'!F61 -> Einzel- und Mehrpersonenbüros bis 100 m3 | D65: ='BNB-System'!G61 -> 100 | G65: =IF(AND(NOT(ISBLANK(K65)),NOT(ISBLANK(L65))),('Bewertung durch Anwender'!K65),IF(AND(NOT(ISBLANK(J65)),NOT(ISBLANK(I65))),('Bewertung durch Anwender'!I65),(Zielvereinbarung!G65))) -> 0 | H65: =Zielvereinbarung!G65 -> 0 | P65: ='BNB-System'!K62 -> 0
C66: ='BNB-System'!F62 -> Mehrpersonenbüros über 100 m3 | D66: ='BNB-System'!G62 -> 100 | G66: =IF(AND(NOT(ISBLANK(K66)),NOT(ISBLANK(L66))),('Bewertung durch Anwender'!K66),IF(AND(NOT(ISBLANK(J66)),NOT(ISBLANK(I66))),('Bewertung durch Anwender'!I66),(Zielvereinbarung!G66))) -> 0 | H66: =Zielvereinbarung!G66 -> 0 | P66: ='BNB-System'!#REF! -> 
C67: ='BNB-System'!F63 -> Weitere Räume | D67: ='BNB-System'!G63 -> 100 | G67: =IF(AND(NOT(ISBLANK(K67)),NOT(ISBLANK(L67))),('Bewertung durch Anwender'!K67),IF(AND(NOT(ISBLANK(J67)),NOT(ISBLANK(I67))),('Bewertung durch Anwender'!I67),(Zielvereinbarung!G67))) -> 0 | H67: =Zielvereinbarung!G67 -> 0
B68: ='BNB-System'!E64 -> 3.1.5 | C68: ='BNB-System'!F64 -> Visueller Komfort | D68: ='BNB-System'!G64 -> 100 | E68: ='BNB-System'!J64 -> 0.01666666667 | G68: =IF(AND(NOT(ISBLANK(K68)),NOT(ISBLANK(L68))),('Bewertung durch Anwender'!K68),IF(AND(NOT(ISBLANK(J68)),NOT(ISBLANK(I68))),('Bewertung durch Anwender'!I68),(Zielvereinbarung!G68))) -> 0 | H68: =Zielvereinbarung!G68 -> 0 | M68: =IF(SUM(M69:M75)>100,100,SUM(M69:M75)) -> 0 | N68: =IF(SUM(N69:N75)>100,100,SUM(N69:N75)) -> 0 | P68: ='BNB-System'!K64 -> 200 | Q68: =IF(ISNUMBER(E68*N68/100),E68*N68/100,0) -> 0
C69: ='BNB-System'!F65 -> Tageslichtverfügbarkeit Gesamtgebäude | D69: ='BNB-System'!G65 -> 15 | G69: =IF(AND(NOT(ISBLANK(K69)),NOT(ISBLANK(L69))),('Bewertung durch Anwender'!K69),IF(AND(NOT(ISBLANK(J69)),NOT(ISBLANK(I69))),('Bewertung durch Anwender'!I69),(Zielvereinbarung!G69))) -> 0 | H69: =Zielvereinbarung!G69 -> 0 | P69: ='BNB-System'!K65 -> 0
C70: ='BNB-System'!F66 -> Tageslichtverfügbarkeit Unterrichtsräume und weitere ständige Arbeitsplätze | D70: ='BNB-System'!G66 -> 15 | G70: =IF(AND(NOT(ISBLANK(K70)),NOT(ISBLANK(L70))),('Bewertung durch Anwender'!K70),IF(AND(NOT(ISBLANK(J70)),NOT(ISBLANK(I70))),('Bewertung durch Anwender'!I70),(Zielvereinbarung!G70))) -> 0 | H70: =Zielvereinbarung!G70 -> 0 | P70: ='BNB-System'!K66 -> 0
C71: ='BNB-System'!F67 -> Nachweis der Sichtverbindung nach außen | D71: ='BNB-System'!G67 -> 35 | G71: =IF(AND(NOT(ISBLANK(K71)),NOT(ISBLANK(L71))),('Bewertung durch Anwender'!K71),IF(AND(NOT(ISBLANK(J71)),NOT(ISBLANK(I71))),('Bewertung durch Anwender'!I71),(Zielvereinbarung!G71))) -> 0 | H71: =Zielvereinbarung!G71 -> 0 | P71: ='BNB-System'!K67 -> 0
C72: ='BNB-System'!F68 -> Blendfreiheit Tageslicht | D72: ='BNB-System'!G68 -> 10 | G72: =IF(AND(NOT(ISBLANK(K72)),NOT(ISBLANK(L72))),('Bewertung durch Anwender'!K72),IF(AND(NOT(ISBLANK(J72)),NOT(ISBLANK(I72))),('Bewertung durch Anwender'!I72),(Zielvereinbarung!G72))) -> 0 | H72: =Zielvereinbarung!G72 -> 0 | P72: ='BNB-System'!K68 -> 0 | T72: ^^
C73: ='BNB-System'!F69 -> Blendfreiheit Kunstlicht | D73: ='BNB-System'!G69 -> 5 | G73: =IF(AND(NOT(ISBLANK(K73)),NOT(ISBLANK(L73))),('Bewertung durch Anwender'!K73),IF(AND(NOT(ISBLANK(J73)),NOT(ISBLANK(I73))),('Bewertung durch Anwender'!I73),(Zielvereinbarung!G73))) -> 0 | H73: =Zielvereinbarung!G73 -> 0 | P73: ='BNB-System'!K69 -> 0
C74: ='BNB-System'!F70 -> Lichtverteilung | D74: ='BNB-System'!G70 -> 20 | G74: =IF(AND(NOT(ISBLANK(K74)),NOT(ISBLANK(L74))),('Bewertung durch Anwender'!K74),IF(AND(NOT(ISBLANK(J74)),NOT(ISBLANK(I74))),('Bewertung durch Anwender'!I74),(Zielvereinbarung!G74))) -> 0 | H74: =Zielvereinbarung!G74 -> 0 | P74: ='BNB-System'!K70 -> 0
C75: ='BNB-System'!F71 -> Farbwiedergabe | D75: ='BNB-System'!G71 -> 10 | G75: =IF(AND(NOT(ISBLANK(K75)),NOT(ISBLANK(L75))),('Bewertung durch Anwender'!K75),IF(AND(NOT(ISBLANK(J75)),NOT(ISBLANK(I75))),('Bewertung durch Anwender'!I75),(Zielvereinbarung!G75))) -> 0 | H75: =Zielvereinbarung!G75 -> 0 | P75: ='BNB-System'!K71 -> 0
B76: ='BNB-System'!E72 -> 3.1.6 | C76: ='BNB-System'!F72 -> Einflussnahmemöglichkeiten durch Nutzer | D76: ='BNB-System'!G72 -> 100 | E76: ='BNB-System'!J72 -> 0.01666666667 | G76: =IF(AND(NOT(ISBLANK(K76)),NOT(ISBLANK(L76))),('Bewertung durch Anwender'!K76),IF(AND(NOT(ISBLANK(J76)),NOT(ISBLANK(I76))),('Bewertung durch Anwender'!I76),(Zielvereinbarung!G76))) -> 0 | H76: =Zielvereinbarung!G76 -> 0 | M76: =SUM(M77:M85) -> 0 | N76: =SUM(N77:N85) -> 0 | P76: ='BNB-System'!K72 -> 200 | Q76: =IF(ISNUMBER(E76*N76/100),E76*N76/100,0) -> 0
C77: ='BNB-System'!F73 -> Lüftung | D77: ='BNB-System'!G73 -> 10 | G77: =IF(AND(NOT(ISBLANK(K77)),NOT(ISBLANK(L77))),('Bewertung durch Anwender'!K77),IF(AND(NOT(ISBLANK(J77)),NOT(ISBLANK(I77))),('Bewertung durch Anwender'!I77),(Zielvereinbarung!G77))) -> 0 | H77: =Zielvereinbarung!G77 -> 0 | P77: ='BNB-System'!K73 -> 0
C78: ='BNB-System'!F74 -> Sonnenschutz | D78: ='BNB-System'!G74 -> 10 | G78: =IF(AND(NOT(ISBLANK(K78)),NOT(ISBLANK(L78))),('Bewertung durch Anwender'!K78),IF(AND(NOT(ISBLANK(J78)),NOT(ISBLANK(I78))),('Bewertung durch Anwender'!I78),(Zielvereinbarung!G78))) -> 0 | H78: =Zielvereinbarung!G78 -> 0 | P78: ='BNB-System'!K74 -> 0
C79: ='BNB-System'!F75 -> Blendschutz | D79: ='BNB-System'!G75 -> 10 | G79: =IF(AND(NOT(ISBLANK(K79)),NOT(ISBLANK(L79))),('Bewertung durch Anwender'!K79),IF(AND(NOT(ISBLANK(J79)),NOT(ISBLANK(I79))),('Bewertung durch Anwender'!I79),(Zielvereinbarung!G79))) -> 0 | H79: =Zielvereinbarung!G79 -> 0 | P79: ='BNB-System'!K75 -> 0
C80: ='BNB-System'!F76 -> Temperaturen während der Heizperiode | D80: ='BNB-System'!G76 -> 10 | G80: =IF(AND(NOT(ISBLANK(K80)),NOT(ISBLANK(L80))),('Bewertung durch Anwender'!K80),IF(AND(NOT(ISBLANK(J80)),NOT(ISBLANK(I80))),('Bewertung durch Anwender'!I80),(Zielvereinbarung!G80))) -> 0 | H80: =Zielvereinbarung!G80 -> 0 | P80: ='BNB-System'!K76 -> 0
C81: ='BNB-System'!F77 -> Temperaturen außerhalb der Heizperiode | D81: ='BNB-System'!G77 -> 15 | G81: =IF(AND(NOT(ISBLANK(K81)),NOT(ISBLANK(L81))),('Bewertung durch Anwender'!K81),IF(AND(NOT(ISBLANK(J81)),NOT(ISBLANK(I81))),('Bewertung durch Anwender'!I81),(Zielvereinbarung!G81))) -> 0 | H81: =Zielvereinbarung!G81 -> 0 | P81: ='BNB-System'!K77 -> 0
C82: ='BNB-System'!F78 -> Steuerung von Tageslicht | D82: ='BNB-System'!G78 -> 10 | G82: =IF(AND(NOT(ISBLANK(K82)),NOT(ISBLANK(L82))),('Bewertung durch Anwender'!K82),IF(AND(NOT(ISBLANK(J82)),NOT(ISBLANK(I82))),('Bewertung durch Anwender'!I82),(Zielvereinbarung!G82))) -> 0 | H82: =Zielvereinbarung!G82 -> 0 | P82: ='BNB-System'!K78 -> 0
C83: ='BNB-System'!F79 -> Steuerung von Kunstlicht | D83: ='BNB-System'!G79 -> 10 | G83: =IF(AND(NOT(ISBLANK(K83)),NOT(ISBLANK(L83))),('Bewertung durch Anwender'!K83),IF(AND(NOT(ISBLANK(J83)),NOT(ISBLANK(I83))),('Bewertung durch Anwender'!I83),(Zielvereinbarung!G83))) -> 0 | H83: =Zielvereinbarung!G83 -> 0
C84: ='BNB-System'!F80 -> Bedienfreundlichkeit | D84: ='BNB-System'!G80 -> 10 | G84: =IF(AND(NOT(ISBLANK(K84)),NOT(ISBLANK(L84))),('Bewertung durch Anwender'!K84),IF(AND(NOT(ISBLANK(J84)),NOT(ISBLANK(I84))),('Bewertung durch Anwender'!I84),(Zielvereinbarung!G84))) -> 0 | H84: =Zielvereinbarung!G84 -> 0 | P84: ='BNB-System'!K79 -> 0
C85: ='BNB-System'!F81 -> Funktionskonzept der Haustechnik | D85: ='BNB-System'!G81 -> 15 | G85: =IF(AND(NOT(ISBLANK(K85)),NOT(ISBLANK(L85))),('Bewertung durch Anwender'!K85),IF(AND(NOT(ISBLANK(J85)),NOT(ISBLANK(I85))),('Bewertung durch Anwender'!I85),(Zielvereinbarung!G85))) -> 0 | H85: =Zielvereinbarung!G85 -> 0 | P85: ='BNB-System'!K81 -> 0
B86: ='BNB-System'!E82 -> 3.1.7 | C86: ='BNB-System'!F82 -> Aufenthaltsmerkmale im Außenraum | D86: ='BNB-System'!G82 -> 100 | E86: ='BNB-System'!J82 -> 0.01666666667 | G86: =IF(AND(NOT(ISBLANK(K86)),NOT(ISBLANK(L86))),('Bewertung durch Anwender'!K86),IF(AND(NOT(ISBLANK(J86)),NOT(ISBLANK(I86))),('Bewertung durch Anwender'!I86),(Zielvereinbarung!G86))) -> 0 | H86: =Zielvereinbarung!G86 -> 0 | M86: =SUM(M87:M90) -> 0 | N86: =SUM(N87:N90) -> 0 | P86: ='BNB-System'!K82 -> 200 | Q86: =IF(ISNUMBER(E86*N86/100),E86*N86/100,0) -> 0
C87: ='BNB-System'!F83 -> Anzahl und Vielfalt Sitzgelegenheiten | D87: ='BNB-System'!G83 -> 30 | G87: =IF(AND(NOT(ISBLANK(K87)),NOT(ISBLANK(L87))),('Bewertung durch Anwender'!K87),IF(AND(NOT(ISBLANK(J87)),NOT(ISBLANK(I87))),('Bewertung durch Anwender'!I87),(Zielvereinbarung!G87))) -> 0 | H87: =Zielvereinbarung!G87 -> 0 | P87: ='BNB-System'!K83 -> 0
C88: ='BNB-System'!F84 -> Anzahlund Vielfalt der Spiel- und Sportmöglichkeiten | D88: ='BNB-System'!G84 -> 15 | G88: =IF(AND(NOT(ISBLANK(K88)),NOT(ISBLANK(L88))),('Bewertung durch Anwender'!K88),IF(AND(NOT(ISBLANK(J88)),NOT(ISBLANK(I88))),('Bewertung durch Anwender'!I88),(Zielvereinbarung!G88))) -> 0 | H88: =Zielvereinbarung!G88 -> 0 | P88: ='BNB-System'!K84 -> 0
C89: ='BNB-System'!F85 -> Zuordnung von Freibereichen zu Innenräumen | D89: ='BNB-System'!G85 -> 20 | G89: =IF(AND(NOT(ISBLANK(K89)),NOT(ISBLANK(L89))),('Bewertung durch Anwender'!K89),IF(AND(NOT(ISBLANK(J89)),NOT(ISBLANK(I89))),('Bewertung durch Anwender'!I89),(Zielvereinbarung!G89))) -> 0 | H89: =Zielvereinbarung!G89 -> 0 | P89: ='BNB-System'!K85 -> 0
C90: ='BNB-System'!F86 -> Ausstattungsmerkmale | D90: ='BNB-System'!G86 -> 39 | G90: =IF(AND(NOT(ISBLANK(K90)),NOT(ISBLANK(L90))),('Bewertung durch Anwender'!K90),IF(AND(NOT(ISBLANK(J90)),NOT(ISBLANK(I90))),('Bewertung durch Anwender'!I90),(Zielvereinbarung!G90))) -> 0 | H90: =Zielvereinbarung!G90 -> 0 | P90: ='BNB-System'!K86 -> 0
B91: ='BNB-System'!E87 -> 3.1.8 | C91: ='BNB-System'!F87 -> Sicherheit | D91: ='BNB-System'!G87 -> 100 | E91: ='BNB-System'!J87 -> 0.008333333333 | G91: =IF(AND(NOT(ISBLANK(K91)),NOT(ISBLANK(L91))),('Bewertung durch Anwender'!K91),IF(AND(NOT(ISBLANK(J91)),NOT(ISBLANK(I91))),('Bewertung durch Anwender'!I91),(Zielvereinbarung!G91))) -> 0 | H91: =Zielvereinbarung!G91 -> 0 | P91: ='BNB-System'!K87 -> 100 | Q91: =IF(ISNUMBER(E91*N91/100),E91*N91/100,0) -> 0
B92: ='BNB-System'!E88 -> 3.1.9 | C92: ='BNB-System'!F88 -> Innenraumqualität | D92: ='BNB-System'!G88 -> 100 | E92: ='BNB-System'!J88 -> 0.025 | G92: =IF(AND(NOT(ISBLANK(K92)),NOT(ISBLANK(L92))),('Bewertung durch Anwender'!K92),IF(AND(NOT(ISBLANK(J92)),NOT(ISBLANK(I92))),('Bewertung durch Anwender'!I92),(Zielvereinbarung!G92))) -> 0 | H92: =Zielvereinbarung!G92 -> 0 | M92: =IF(SUM(M93:M96)>100,100,SUM(M93:M96)) -> 0 | N92: =IF(SUM(N93:N96)>100,100,SUM(N93:N96)) -> 0
C93: ='BNB-System'!F89 -> Aufenthaltsqualitäten der Erschließungsflächen | D93: ='BNB-System'!G89 -> 45 | G93: =IF(AND(NOT(ISBLANK(K93)),NOT(ISBLANK(L93))),('Bewertung durch Anwender'!K93),IF(AND(NOT(ISBLANK(J93)),NOT(ISBLANK(I93))),('Bewertung durch Anwender'!I93),(Zielvereinbarung!G93))) -> 0 | H93: =Zielvereinbarung!G93 -> 0
C94: ='BNB-System'!F90 -> Innere Sitzbeziehung | D94: ='BNB-System'!G90 -> 15 | G94: =IF(AND(NOT(ISBLANK(K94)),NOT(ISBLANK(L94))),('Bewertung durch Anwender'!K94),IF(AND(NOT(ISBLANK(J94)),NOT(ISBLANK(I94))),('Bewertung durch Anwender'!I94),(Zielvereinbarung!G94))) -> 0 | H94: =Zielvereinbarung!G94 -> 0
C95: ='BNB-System'!F91 -> Flexibilität der Raumnutzung | D95: ='BNB-System'!G91 -> 30 | G95: =IF(AND(NOT(ISBLANK(K95)),NOT(ISBLANK(L95))),('Bewertung durch Anwender'!K95),IF(AND(NOT(ISBLANK(J95)),NOT(ISBLANK(I95))),('Bewertung durch Anwender'!I95),(Zielvereinbarung!G95))) -> 0 | H95: =Zielvereinbarung!G95 -> 0
C96: ='BNB-System'!F92 -> Aufbewahrungsmöglichkeiten | D96: ='BNB-System'!G92 -> 40 | G96: =IF(AND(NOT(ISBLANK(K96)),NOT(ISBLANK(L96))),('Bewertung durch Anwender'!K96),IF(AND(NOT(ISBLANK(J96)),NOT(ISBLANK(I96))),('Bewertung durch Anwender'!I96),(Zielvereinbarung!G96))) -> 0 | H96: =Zielvereinbarung!G96 -> 0
C97: ='BNB-System'!F93 -> Funktionalität | P97: ='BNB-System'!K93 -> 0
B98: ='BNB-System'!E94 -> 3.2.1 | C98: ='BNB-System'!F94 -> Barrierefreiheit | D98: ='BNB-System'!G94 -> 100 | E98: ='BNB-System'!J94 -> 0.01666666667 | G98: =IF(AND(NOT(ISBLANK(K98)),NOT(ISBLANK(L98))),('Bewertung durch Anwender'!K98),IF(AND(NOT(ISBLANK(J98)),NOT(ISBLANK(I98))),('Bewertung durch Anwender'!I98),(Zielvereinbarung!G98))) -> 0 | H98: =Zielvereinbarung!G98 -> 0 | P98: ='BNB-System'!K94 -> 200 | Q98: =IF(ISNUMBER(E98*N98/100),E98*N98/100,0) -> 0
B99: ='BNB-System'!E95 -> 3.2.4 | C99: ='BNB-System'!F95 -> Zugänglichkeit | D99: ='BNB-System'!G95 -> 100 | E99: ='BNB-System'!J95 -> 0.01666666667 | G99: =IF(AND(NOT(ISBLANK(K99)),NOT(ISBLANK(L99))),('Bewertung durch Anwender'!K99),IF(AND(NOT(ISBLANK(J99)),NOT(ISBLANK(I99))),('Bewertung durch Anwender'!I99),(Zielvereinbarung!G99))) -> 0 | H99: =Zielvereinbarung!G99 -> 0 | M99: =IF(SUM(M100:M103)>100,100,SUM(M100:M103)) -> 0 | N99: =IF(SUM(N100:N103)>100,100,SUM(N100:N103)) -> 0 | P99: ='BNB-System'!K95 -> 200 | Q99: =IF(ISNUMBER(E99*N99/100),E99*N99/100,0) -> 0
C100: ='BNB-System'!F96 -> Grundsätzliche öffentliche Zugänglichkeit des Gebäudes | D100: ='BNB-System'!G96 -> 20 | G100: =IF(AND(NOT(ISBLANK(K100)),NOT(ISBLANK(L100))),('Bewertung durch Anwender'!K100),IF(AND(NOT(ISBLANK(J100)),NOT(ISBLANK(I100))),('Bewertung durch Anwender'!I100),(Zielvereinbarung!G100))) -> 0 | H100: =Zielvereinbarung!G100 -> 0 | P100: ='BNB-System'!K96 -> 0
C101: ='BNB-System'!F97 -> Qualitative Merkmale der öffentlichen Zugänglichkeit des Gebäudes | D101: ='BNB-System'!G97 -> 50 | G101: =IF(AND(NOT(ISBLANK(K101)),NOT(ISBLANK(L101))),('Bewertung durch Anwender'!K101),IF(AND(NOT(ISBLANK(J101)),NOT(ISBLANK(I101))),('Bewertung durch Anwender'!I101),(Zielvereinbarung!G101))) -> 0 | H101: =Zielvereinbarung!G101 -> 0 | P101: ='BNB-System'!K97 -> 0
C102: ='BNB-System'!F98 -> Nutzungsmerkmale der Zugänglichkeit | D102: ='BNB-System'!G98 -> 50 | G102: =IF(AND(NOT(ISBLANK(K102)),NOT(ISBLANK(L102))),('Bewertung durch Anwender'!K102),IF(AND(NOT(ISBLANK(J102)),NOT(ISBLANK(I102))),('Bewertung durch Anwender'!I102),(Zielvereinbarung!G102))) -> 0 | H102: =Zielvereinbarung!G102 -> 0 | P102: ='BNB-System'!K98 -> 0
C103: ='BNB-System'!F99 -> Qualitative Aspekte der öffentlichen Zugänglichkeit der Freiflächen | D103: ='BNB-System'!G99 -> 20 | G103: =IF(AND(NOT(ISBLANK(K103)),NOT(ISBLANK(L103))),('Bewertung durch Anwender'!K103),IF(AND(NOT(ISBLANK(J103)),NOT(ISBLANK(I103))),('Bewertung durch Anwender'!I103),(Zielvereinbarung!G103))) -> 0 | H103: =Zielvereinbarung!G103 -> 0 | P103: ='BNB-System'!K99 -> 0
B104: ='BNB-System'!E100 -> 3.2.5 | C104: ='BNB-System'!F100 -> Mobilitätsinfrastruktur | D104: ='BNB-System'!G100 -> 100 | E104: ='BNB-System'!J100 -> 0.008333333333 | G104: =IF(AND(NOT(ISBLANK(K104)),NOT(ISBLANK(L104))),('Bewertung durch Anwender'!K104),IF(AND(NOT(ISBLANK(J104)),NOT(ISBLANK(I104))),('Bewertung durch Anwender'!I104),(Zielvereinbarung!G104))) -> 0 | H104: =Zielvereinbarung!G104 -> 0 | M104: =IF(SUM(M105:M107)>100,100,SUM(M105:M107)) -> 0 | N104: =IF(SUM(N105:N107)>100,100,SUM(N105:N107)) -> 0 | P104: ='BNB-System'!K100 -> 100 | Q104: =IF(ISNUMBER(E104*N104/100),E104*N104/100,0) -> 0
C105: ='BNB-System'!F101 -> Anzahl der Fahrradstellplätze | D105: ='BNB-System'!G101 -> 40 | G105: =IF(AND(NOT(ISBLANK(K105)),NOT(ISBLANK(L105))),('Bewertung durch Anwender'!K105),IF(AND(NOT(ISBLANK(J105)),NOT(ISBLANK(I105))),('Bewertung durch Anwender'!I105),(Zielvereinbarung!G105))) -> 0 | P105: ='BNB-System'!#REF! -> 
C106: ='BNB-System'!F102 -> Anzahl der Lademöglichkeiten und Carsharing-Stellplätze | D106: ='BNB-System'!G102 -> 20 | G106: =IF(AND(NOT(ISBLANK(K106)),NOT(ISBLANK(L106))),('Bewertung durch Anwender'!K106),IF(AND(NOT(ISBLANK(J106)),NOT(ISBLANK(I106))),('Bewertung durch Anwender'!I106),(Zielvereinbarung!G106))) -> 0
C107: ='BNB-System'!F103 -> Qualitative Anforderungen an Fahrradstellplätze | D107: ='BNB-System'!G103 -> 60 | G107: =IF(AND(NOT(ISBLANK(K107)),NOT(ISBLANK(L107))),('Bewertung durch Anwender'!K107),IF(AND(NOT(ISBLANK(J107)),NOT(ISBLANK(I107))),('Bewertung durch Anwender'!I107),(Zielvereinbarung!G107))) -> 0
C108: ='BNB-System'!F104 -> Sicherung der Gestaltungsqualität | P108: ='BNB-System'!K104 -> 0
B109: ='BNB-System'!E105 -> 3.3.1 | C109: ='BNB-System'!F105 -> Gestalterische und städtebauliche Qualität | D109: ='BNB-System'!G105 -> 100 | E109: ='BNB-System'!J105 -> 0.025 | G109: =IF(AND(NOT(ISBLANK(K109)),NOT(ISBLANK(L109))),('Bewertung durch Anwender'!K109),IF(AND(NOT(ISBLANK(J109)),NOT(ISBLANK(I109))),('Bewertung durch Anwender'!I109),(Zielvereinbarung!G109))) -> 0 | H109: =Zielvereinbarung!G109 -> 0 | M109: =IF(AND(M110>0,M114<=M115),SUM(M110:M113),IF(AND(M110>0,M115<=M114),SUM(M110:M113),IF(M114>0,M114,IF(M115>0,M115,M116)))) -> 0 | N109: =IF(AND(N110>0,N114<=N115),SUM(N110:N113),IF(AND(N110>0,N115<=N114),SUM(N110:N113),IF(N114>0,N114,IF(N115>0,N115,N116)))) -> 0 | P109: ='BNB-System'!K105 -> 300 | Q109: =IF(ISNUMBER(E109*N109/100),E109*N109/100,0) -> 0
C110: ='BNB-System'!F106 -> Durchführung von Planungswettbewerben | D110: ='BNB-System'!G106 -> 20 | G110: =IF(AND(NOT(ISBLANK(K110)),NOT(ISBLANK(L110))),('Bewertung durch Anwender'!K110),IF(AND(NOT(ISBLANK(J110)),NOT(ISBLANK(I110))),('Bewertung durch Anwender'!I110),(Zielvereinbarung!G110))) -> 0 | H110: =Zielvereinbarung!G110 -> 0 | P110: ='BNB-System'!K106 -> 0
C111: ='BNB-System'!F107 -> Wettbewerbsverfahren | D111: ='BNB-System'!G107 -> 40 | G111: =IF(AND(NOT(ISBLANK(K111)),NOT(ISBLANK(L111))),('Bewertung durch Anwender'!K111),IF(AND(NOT(ISBLANK(J111)),NOT(ISBLANK(I111))),('Bewertung durch Anwender'!I111),(Zielvereinbarung!G111))) -> 0 | H111: =Zielvereinbarung!G111 -> 0 | P111: ='BNB-System'!K107 -> 0
C112: ='BNB-System'!F108 -> Ausführung des Entwurfs eines der Preisträger | D112: ='BNB-System'!G108 -> 30 | G112: =IF(AND(NOT(ISBLANK(K112)),NOT(ISBLANK(L112))),('Bewertung durch Anwender'!K112),IF(AND(NOT(ISBLANK(J112)),NOT(ISBLANK(I112))),('Bewertung durch Anwender'!I112),(Zielvereinbarung!G112))) -> 0 | H112: =Zielvereinbarung!G112 -> 0 | P112: ='BNB-System'!K108 -> 0
C113: ='BNB-System'!F109 -> Beauftragung des Planungsteams | D113: ='BNB-System'!G109 -> 10 | G113: =IF(AND(NOT(ISBLANK(K113)),NOT(ISBLANK(L113))),('Bewertung durch Anwender'!K113),IF(AND(NOT(ISBLANK(J113)),NOT(ISBLANK(I113))),('Bewertung durch Anwender'!I113),(Zielvereinbarung!G113))) -> 0 | H113: =Zielvereinbarung!G113 -> 0 | P113: ='BNB-System'!K109 -> 0
C114: ='BNB-System'!F110 -> Auszeichnung mit einem Architekturpreis | D114: ='BNB-System'!G110 -> 60 | G114: =IF(AND(NOT(ISBLANK(K114)),NOT(ISBLANK(L114))),('Bewertung durch Anwender'!K114),IF(AND(NOT(ISBLANK(J114)),NOT(ISBLANK(I114))),('Bewertung durch Anwender'!I114),(Zielvereinbarung!G114))) -> 0 | H114: =Zielvereinbarung!G114 -> 0 | P114: ='BNB-System'!K110 -> 0
C115: ='BNB-System'!F111 -> Unabhängiges Expertengremium | D115: ='BNB-System'!G111 -> 40 | G115: =IF(AND(NOT(ISBLANK(K115)),NOT(ISBLANK(L115))),('Bewertung durch Anwender'!K115),IF(AND(NOT(ISBLANK(J115)),NOT(ISBLANK(I115))),('Bewertung durch Anwender'!I115),(Zielvereinbarung!G115))) -> 0 | H115: =Zielvereinbarung!G115 -> 0 | P115: ='BNB-System'!K111 -> 0
C116: ='BNB-System'!F112 -> Sonderfall Mindestanforderung | D116: ='BNB-System'!G112 -> 10 | G116: =IF(AND(NOT(ISBLANK(K116)),NOT(ISBLANK(L116))),('Bewertung durch Anwender'!K116),IF(AND(NOT(ISBLANK(J116)),NOT(ISBLANK(I116))),('Bewertung durch Anwender'!I116),(Zielvereinbarung!G116))) -> 0 | H116: =Zielvereinbarung!G116 -> 0 | P116: ='BNB-System'!K112 -> 0
B117: ='BNB-System'!E113 -> 3.3.2 | C117: ='BNB-System'!F113 -> Kunst am Bau | D117: ='BNB-System'!G113 -> 100 | E117: ='BNB-System'!J113 -> 0.008333333333 | G117: =IF(AND(NOT(ISBLANK(K117)),NOT(ISBLANK(L117))),('Bewertung durch Anwender'!K117),IF(AND(NOT(ISBLANK(J117)),NOT(ISBLANK(I117))),('Bewertung durch Anwender'!I117),(Zielvereinbarung!G117))) -> 0 | H117: =Zielvereinbarung!G117 -> 0 | M117: =SUM(M118:M121) -> 0 | N117: =SUM(N118:N121) -> 0 | P117: ='BNB-System'!K113 -> 100 | Q117: =IF(ISNUMBER(E117*N117/100),E117*N117/100,0) -> 0
C118: ='BNB-System'!F114 -> Mindestanforderung | D118: ='BNB-System'!G114 -> 10 | G118: =IF(AND(NOT(ISBLANK(K118)),NOT(ISBLANK(L118))),('Bewertung durch Anwender'!K118),IF(AND(NOT(ISBLANK(J118)),NOT(ISBLANK(I118))),('Bewertung durch Anwender'!I118),(Zielvereinbarung!G118))) -> 0 | H118: =Zielvereinbarung!G118 -> 0 | P118: ='BNB-System'!K114 -> 0
C119: ='BNB-System'!F115 -> Bereitstellung von Mitteln im Rahmen der Bauaufgabe | D119: ='BNB-System'!G115 -> 30 | G119: =IF(AND(NOT(ISBLANK(K119)),NOT(ISBLANK(L119))),('Bewertung durch Anwender'!K119),IF(AND(NOT(ISBLANK(J119)),NOT(ISBLANK(I119))),('Bewertung durch Anwender'!I119),(Zielvereinbarung!G119))) -> 0 | H119: =Zielvereinbarung!G119 -> 0 | P119: ='BNB-System'!K115 -> 0
C120: ='BNB-System'!F116 -> Umsetzung des Leitfadens Kunst am Bau | D120: ='BNB-System'!G116 -> 40 | G120: =IF(AND(NOT(ISBLANK(K120)),NOT(ISBLANK(L120))),('Bewertung durch Anwender'!K120),IF(AND(NOT(ISBLANK(J120)),NOT(ISBLANK(I120))),('Bewertung durch Anwender'!I120),(Zielvereinbarung!G120))) -> 0 | H120: =Zielvereinbarung!G120 -> 0 | P120: ='BNB-System'!K116 -> 0
C121: ='BNB-System'!F117 -> Öffentlichkeitsarbeit, Rezeption der Kunst am Bau | D121: ='BNB-System'!G117 -> 20 | G121: =IF(AND(NOT(ISBLANK(K121)),NOT(ISBLANK(L121))),('Bewertung durch Anwender'!K121),IF(AND(NOT(ISBLANK(J121)),NOT(ISBLANK(I121))),('Bewertung durch Anwender'!I121),(Zielvereinbarung!G121))) -> 0 | H121: =Zielvereinbarung!G121 -> 0 | P121: ='BNB-System'!K117 -> 0
P122: ='BNB-System'!K118 -> 0
B123: ='BNB-System'!E119 -> Technische Qualität | E123: ='BNB-System'!J119 -> 0.225 | G123: =IF(AND(NOT(ISBLANK(K123)),NOT(ISBLANK(L123))),('Bewertung durch Anwender'!K123),IF(AND(NOT(ISBLANK(J123)),NOT(ISBLANK(I123))),('Bewertung durch Anwender'!I123),(Zielvereinbarung!G123))) -> 0 | H123: =Zielvereinbarung!G123 -> 0 | M123: =M126*($E$126/100)+M131*($E$131/100)+M138*($E$138/100)+M149*($E$149/100)+M150*($E$150/100)+M151*($E$151/100) -> 0 | N123: =N126*($E$126/100)+N131*($E$131/100)+N138*($E$138/100)+N149*($E$149/100)+N150*($E$150/100)+N151*($E$151/100) -> 0 | P123: ='BNB-System'!K119 -> 1000
P124: ='BNB-System'!K120 -> 0
C125: ='BNB-System'!F121 -> technische Ausführung | P125: ='BNB-System'!K121 -> 0
B126: ='BNB-System'!E122 -> 4.1.1 | C126: ='BNB-System'!F122 -> Schallschutz | D126: ='BNB-System'!G122 -> 100 | E126: ='BNB-System'!J122 -> 0.045 | G126: =IF(AND(NOT(ISBLANK(K126)),NOT(ISBLANK(L126))),('Bewertung durch Anwender'!K126),IF(AND(NOT(ISBLANK(J126)),NOT(ISBLANK(I126))),('Bewertung durch Anwender'!I126),(Zielvereinbarung!G126))) -> 0 | H126: =Zielvereinbarung!G126 -> 0 | M126: =SUM(M127:M130) -> 0 | N126: =SUM(N127:N130) -> 0 | P126: ='BNB-System'!K122 -> 200 | Q126: =IF(ISNUMBER(E126*N126/100),E126*N126/100,0) -> 0
C127: ='BNB-System'!F123 -> Luftschallschutz gegenüber Außenlärm | D127: ='BNB-System'!G123 -> 20 | G127: =IF(AND(NOT(ISBLANK(K127)),NOT(ISBLANK(L127))),('Bewertung durch Anwender'!K127),IF(AND(NOT(ISBLANK(J127)),NOT(ISBLANK(I127))),('Bewertung durch Anwender'!I127),(Zielvereinbarung!G127))) -> 0 | H127: =Zielvereinbarung!G127 -> 0 | P127: ='BNB-System'!K123 -> 0
C128: ='BNB-System'!F124 -> Luftschallschutz | D128: ='BNB-System'!G124 -> 30 | G128: =IF(AND(NOT(ISBLANK(K128)),NOT(ISBLANK(L128))),('Bewertung durch Anwender'!K128),IF(AND(NOT(ISBLANK(J128)),NOT(ISBLANK(I128))),('Bewertung durch Anwender'!I128),(Zielvereinbarung!G128))) -> 0 | H128: =Zielvereinbarung!G128 -> 0 | P128: ='BNB-System'!K124 -> 0
C129: ='BNB-System'!F125 -> Trittschallschutz | D129: ='BNB-System'!G125 -> 30 | G129: =IF(AND(NOT(ISBLANK(K129)),NOT(ISBLANK(L129))),('Bewertung durch Anwender'!K129),IF(AND(NOT(ISBLANK(J129)),NOT(ISBLANK(I129))),('Bewertung durch Anwender'!I129),(Zielvereinbarung!G129))) -> 0 | H129: =Zielvereinbarung!G129 -> 0 | P129: ='BNB-System'!K125 -> 0
C130: ='BNB-System'!F126 -> Schallschutz gegenüber haustechnischen Anlagen | D130: ='BNB-System'!G126 -> 20 | G130: =IF(AND(NOT(ISBLANK(K130)),NOT(ISBLANK(L130))),('Bewertung durch Anwender'!K130),IF(AND(NOT(ISBLANK(J130)),NOT(ISBLANK(I130))),('Bewertung durch Anwender'!I130),(Zielvereinbarung!G130))) -> 0 | H130: =Zielvereinbarung!G130 -> 0 | P130: ='BNB-System'!K126 -> 0
B131: ='BNB-System'!E127 -> 4.1.2 | C131: ='BNB-System'!F127 -> Wärme- und Tauwasserschutz | D131: ='BNB-System'!G127 -> 100 | E131: ='BNB-System'!J127 -> 0.045 | G131: =IF(AND(NOT(ISBLANK(K131)),NOT(ISBLANK(L131))),('Bewertung durch Anwender'!K131),IF(AND(NOT(ISBLANK(J131)),NOT(ISBLANK(I131))),('Bewertung durch Anwender'!I131),(Zielvereinbarung!G131))) -> 0 | H131: =Zielvereinbarung!G131 -> 0 | M131: =SUM(M132:M137) -> 0 | N131: =SUM(N132:N137) -> 0 | P131: ='BNB-System'!K127 -> 200 | Q131: =IF(ISNUMBER(E131*N131/100),E131*N131/100,0) -> 0
C132: ='BNB-System'!F128 -> Mittlere Wärmeduchgangskoeffizienten | D132: ='BNB-System'!G128 -> 30 | G132: =IF(AND(NOT(ISBLANK(K132)),NOT(ISBLANK(L132))),('Bewertung durch Anwender'!K132),IF(AND(NOT(ISBLANK(J132)),NOT(ISBLANK(I132))),('Bewertung durch Anwender'!I132),(Zielvereinbarung!G132))) -> 0 | H132: =Zielvereinbarung!G132 -> 0 | P132: ='BNB-System'!K128 -> 0
C133: ='BNB-System'!F129 -> Wärmebrückenzuschlag | D133: ='BNB-System'!G129 -> 15 | G133: =IF(AND(NOT(ISBLANK(K133)),NOT(ISBLANK(L133))),('Bewertung durch Anwender'!K133),IF(AND(NOT(ISBLANK(J133)),NOT(ISBLANK(I133))),('Bewertung durch Anwender'!I133),(Zielvereinbarung!G133))) -> 0 | H133: =Zielvereinbarung!G133 -> 0 | P133: ='BNB-System'!K129 -> 0
C134: ='BNB-System'!F130 -> Klassen der Luftdurchlässigkeit (Fugendurchlässigkeit) | D134: ='BNB-System'!G130 -> 15 | G134: =IF(AND(NOT(ISBLANK(K134)),NOT(ISBLANK(L134))),('Bewertung durch Anwender'!K134),IF(AND(NOT(ISBLANK(J134)),NOT(ISBLANK(I134))),('Bewertung durch Anwender'!I134),(Zielvereinbarung!G134))) -> 0 | H134: =Zielvereinbarung!G134 -> 0 | P134: ='BNB-System'!K130 -> 0
C135: ='BNB-System'!F131 -> Tauwasserbildung | D135: ='BNB-System'!G131 -> 10 | G135: =IF(AND(NOT(ISBLANK(K135)),NOT(ISBLANK(L135))),('Bewertung durch Anwender'!K135),IF(AND(NOT(ISBLANK(J135)),NOT(ISBLANK(I135))),('Bewertung durch Anwender'!I135),(Zielvereinbarung!G135))) -> 0 | H135: =Zielvereinbarung!G135 -> 0 | P135: ='BNB-System'!K131 -> 0
C136: ='BNB-System'!F132 -> Luftwechsel | D136: ='BNB-System'!G132 -> 15 | G136: =IF(AND(NOT(ISBLANK(K136)),NOT(ISBLANK(L136))),('Bewertung durch Anwender'!K136),IF(AND(NOT(ISBLANK(J136)),NOT(ISBLANK(I136))),('Bewertung durch Anwender'!I136),(Zielvereinbarung!G136))) -> 0 | H136: =Zielvereinbarung!G136 -> 0 | P136: ='BNB-System'!K132 -> 0
C137: ='BNB-System'!F133 -> Sonneneintragswert | D137: ='BNB-System'!G133 -> 15 | G137: =IF(AND(NOT(ISBLANK(K137)),NOT(ISBLANK(L137))),('Bewertung durch Anwender'!K137),IF(AND(NOT(ISBLANK(J137)),NOT(ISBLANK(I137))),('Bewertung durch Anwender'!I137),(Zielvereinbarung!G137))) -> 0 | H137: =Zielvereinbarung!G137 -> 0 | P137: ='BNB-System'!K133 -> 0
B138: ='BNB-System'!E134 -> 4.1.3 | C138: ='BNB-System'!F134 -> Reinigungs- und Instandhaltungsfreundlichkeit | D138: ='BNB-System'!G134 -> 100 | E138: ='BNB-System'!J134 -> 0.045 | G138: =IF(AND(NOT(ISBLANK(K138)),NOT(ISBLANK(L138))),('Bewertung durch Anwender'!K138),IF(AND(NOT(ISBLANK(J138)),NOT(ISBLANK(I138))),('Bewertung durch Anwender'!I138),(Zielvereinbarung!G138))) -> 0 | H138: =Zielvereinbarung!G138 -> 0 | M138: =SUM(M139:M148) -> 0 | N138: =SUM(N139:N148) -> 0 | P138: ='BNB-System'!K134 -> 200 | Q138: =IF(ISNUMBER(E138*N138/100),E138*N138/100,0) -> 0
C139: ='BNB-System'!F135 -> Tragkonstruktion | D139: ='BNB-System'!G135 -> 15 | G139: =IF(AND(NOT(ISBLANK(K139)),NOT(ISBLANK(L139))),('Bewertung durch Anwender'!K139),IF(AND(NOT(ISBLANK(J139)),NOT(ISBLANK(I139))),('Bewertung durch Anwender'!I139),(Zielvereinbarung!G139))) -> 0 | H139: =Zielvereinbarung!G139 -> 0 | P139: ='BNB-System'!K135 -> 0
C140: ='BNB-System'!F136 -> Zugänglichkeit der Außenanlagen | D140: ='BNB-System'!G136 -> 12 | G140: =IF(AND(NOT(ISBLANK(K140)),NOT(ISBLANK(L140))),('Bewertung durch Anwender'!K140),IF(AND(NOT(ISBLANK(J140)),NOT(ISBLANK(I140))),('Bewertung durch Anwender'!I140),(Zielvereinbarung!G140))) -> 0 | H140: =Zielvereinbarung!G140 -> 0 | P140: ='BNB-System'!K136 -> 0
C141: ='BNB-System'!F137 -> Außenbauteile | D141: ='BNB-System'!G137 -> 9 | G141: =IF(AND(NOT(ISBLANK(K141)),NOT(ISBLANK(L141))),('Bewertung durch Anwender'!K141),IF(AND(NOT(ISBLANK(J141)),NOT(ISBLANK(I141))),('Bewertung durch Anwender'!I141),(Zielvereinbarung!G141))) -> 0 | H141: =Zielvereinbarung!G141 -> 0 | P141: ='BNB-System'!K137 -> 0
C142: ='BNB-System'!F138 -> Bodenbelag | D142: ='BNB-System'!G138 -> 9 | G142: =IF(AND(NOT(ISBLANK(K142)),NOT(ISBLANK(L142))),('Bewertung durch Anwender'!K142),IF(AND(NOT(ISBLANK(J142)),NOT(ISBLANK(I142))),('Bewertung durch Anwender'!I142),(Zielvereinbarung!G142))) -> 0 | H142: =Zielvereinbarung!G142 -> 0 | P142: ='BNB-System'!K138 -> 0
C143: ='BNB-System'!F139 -> Schmutzfangzone | D143: ='BNB-System'!G139 -> 9 | G143: =IF(AND(NOT(ISBLANK(K143)),NOT(ISBLANK(L143))),('Bewertung durch Anwender'!K143),IF(AND(NOT(ISBLANK(J143)),NOT(ISBLANK(I143))),('Bewertung durch Anwender'!I143),(Zielvereinbarung!G143))) -> 0 | H143: =Zielvereinbarung!G143 -> 0 | P143: ='BNB-System'!K139 -> 0
C144: ='BNB-System'!F140 -> Fußbodenleisten | D144: ='BNB-System'!G140 -> 9 | G144: =IF(AND(NOT(ISBLANK(K144)),NOT(ISBLANK(L144))),('Bewertung durch Anwender'!K144),IF(AND(NOT(ISBLANK(J144)),NOT(ISBLANK(I144))),('Bewertung durch Anwender'!I144),(Zielvereinbarung!G144))) -> 0 | H144: =Zielvereinbarung!G144 -> 0 | P144: ='BNB-System'!K140 -> 0
C145: ='BNB-System'!F141 -> Hindernisfreie Grundrissgestaltung | D145: ='BNB-System'!G141 -> 9 | G145: =IF(AND(NOT(ISBLANK(K145)),NOT(ISBLANK(L145))),('Bewertung durch Anwender'!K145),IF(AND(NOT(ISBLANK(J145)),NOT(ISBLANK(I145))),('Bewertung durch Anwender'!I145),(Zielvereinbarung!G145))) -> 0 | H145: =Zielvereinbarung!G145 -> 0 | P145: ='BNB-System'!K141 -> 0
C146: ='BNB-System'!F142 -> Einbauten | D146: ='BNB-System'!G142 -> 10 | G146: =IF(AND(NOT(ISBLANK(K146)),NOT(ISBLANK(L146))),('Bewertung durch Anwender'!K146),IF(AND(NOT(ISBLANK(J146)),NOT(ISBLANK(I146))),('Bewertung durch Anwender'!I146),(Zielvereinbarung!G146))) -> 0 | H146: =Zielvereinbarung!G146 -> 0 | P146: ='BNB-System'!K142 -> 0
C147: ='BNB-System'!F143 -> Zugänglichkeit der Innenglasflächen | D147: ='BNB-System'!G143 -> 9 | G147: =IF(AND(NOT(ISBLANK(K147)),NOT(ISBLANK(L147))),('Bewertung durch Anwender'!K147),IF(AND(NOT(ISBLANK(J147)),NOT(ISBLANK(I147))),('Bewertung durch Anwender'!I147),(Zielvereinbarung!G148))) -> 0 | H147: =Zielvereinbarung!G148 -> 0
C148: ='BNB-System'!F144 -> Wände | D148: ='BNB-System'!G144 -> 9 | G148: =IF(AND(NOT(ISBLANK(K148)),NOT(ISBLANK(L148))),('Bewertung durch Anwender'!K148),IF(AND(NOT(ISBLANK(J148)),NOT(ISBLANK(I148))),('Bewertung durch Anwender'!I148),(Zielvereinbarung!G148))) -> 0 | H148: =Zielvereinbarung!G148 -> 0 | P148: ='BNB-System'!K144 -> 0
B149: ='BNB-System'!E145 -> 4.1.4 | C149: ='BNB-System'!F145 -> Rückbau, Trennung und Verwertung | D149: ='BNB-System'!G145 -> 100 | E149: ='BNB-System'!J145 -> 0.045 | G149: =IF(AND(NOT(ISBLANK(K149)),NOT(ISBLANK(L149))),('Bewertung durch Anwender'!K149),IF(AND(NOT(ISBLANK(J149)),NOT(ISBLANK(I149))),('Bewertung durch Anwender'!I149),(Zielvereinbarung!G149))) -> 0 | H149: =Zielvereinbarung!G149 -> 0 | P149: ='BNB-System'!K145 -> 200 | Q149: =IF(ISNUMBER(E149*N149/100),E149*N149/100,0) -> 0
B150: ='BNB-System'!E146 -> 4.1.5 | C150: ='BNB-System'!F146 -> Widerstandsfähigkeit gegen Naturgefahren | D150: ='BNB-System'!G146 -> 100 | E150: ='BNB-System'!J146 -> 0.0225 | G150: =IF(AND(NOT(ISBLANK(K150)),NOT(ISBLANK(L150))),('Bewertung durch Anwender'!K150),IF(AND(NOT(ISBLANK(J150)),NOT(ISBLANK(I150))),('Bewertung durch Anwender'!I150),(Zielvereinbarung!G150))) -> 0 | H150: =Zielvereinbarung!G150 -> 0 | P150: ='BNB-System'!K146 -> 100 | Q150: =IF(ISNUMBER(E150*N150/100),E150*N150/100,0) -> 0
B151: ='BNB-System'!E147 -> 4.1.6 | C151: ='BNB-System'!F147 -> Bedienungs- und Instandhaltungsfreundlichkeit der TGA | D151: ='BNB-System'!G147 -> 100 | E151: ='BNB-System'!J147 -> 0.0225 | G151: =IF(AND(NOT(ISBLANK(K151)),NOT(ISBLANK(L151))),('Bewertung durch Anwender'!K151),IF(AND(NOT(ISBLANK(J151)),NOT(ISBLANK(I151))),('Bewertung durch Anwender'!I151),(Zielvereinbarung!G151))) -> 0 | H151: =Zielvereinbarung!G151 -> 0 | M151: =IF(SUM(M152:M158)>100,100,SUM(M152:M158)) -> 0 | N151: =IF(SUM(N152:N158)>100,100,SUM(N152:N158)) -> 0 | P151: ='BNB-System'!K147 -> 100 | Q151: =IF(ISNUMBER(E151*N151/100),E151*N151/100,0) -> 0
C152: ='BNB-System'!F148 -> KG 410 Abwasser-, Wasser-, Gasanlagen | D152: ='BNB-System'!G148 -> 12 | G152: =IF(AND(NOT(ISBLANK(K152)),NOT(ISBLANK(L152))),('Bewertung durch Anwender'!K152),IF(AND(NOT(ISBLANK(J152)),NOT(ISBLANK(I152))),('Bewertung durch Anwender'!I152),(Zielvereinbarung!G152))) -> 0 | H152: =Zielvereinbarung!G152 -> 0
C153: ='BNB-System'!F149 -> KG 420 Wärmeversorgungsanlagen | D153: ='BNB-System'!G149 -> 15 | G153: =IF(AND(NOT(ISBLANK(K153)),NOT(ISBLANK(L153))),('Bewertung durch Anwender'!K153),IF(AND(NOT(ISBLANK(J153)),NOT(ISBLANK(I153))),('Bewertung durch Anwender'!I153),(Zielvereinbarung!G153))) -> 0 | H153: =Zielvereinbarung!G153 -> 0
C154: ='BNB-System'!F150 -> KG 430 Lufttechnische Anlagen | D154: ='BNB-System'!G150 -> 18 | G154: =IF(AND(NOT(ISBLANK(K154)),NOT(ISBLANK(L154))),('Bewertung durch Anwender'!K154),IF(AND(NOT(ISBLANK(J154)),NOT(ISBLANK(I154))),('Bewertung durch Anwender'!I154),(Zielvereinbarung!G154))) -> 0 | H154: =Zielvereinbarung!G154 -> 0
C155: ='BNB-System'!F151 -> KG 435 Kälteversorgungsanlagen | D155: ='BNB-System'!G151 -> 15 | G155: =IF(AND(NOT(ISBLANK(K155)),NOT(ISBLANK(L155))),('Bewertung durch Anwender'!K155),IF(AND(NOT(ISBLANK(J155)),NOT(ISBLANK(I155))),('Bewertung durch Anwender'!I155),(Zielvereinbarung!G155))) -> 0 | H155: =Zielvereinbarung!G155 -> 0
C156: ='BNB-System'!F152 -> KG 440 Starkstromanlagen | D156: ='BNB-System'!G152 -> 24 | G156: =IF(AND(NOT(ISBLANK(K156)),NOT(ISBLANK(L156))),('Bewertung durch Anwender'!K156),IF(AND(NOT(ISBLANK(J156)),NOT(ISBLANK(I156))),('Bewertung durch Anwender'!I156),(Zielvereinbarung!G156))) -> 0 | H156: =Zielvereinbarung!G156 -> 0
C157: ='BNB-System'!F153 -> KG 460 Förderanlagen | D157: ='BNB-System'!G153 -> 4 | G157: =IF(AND(NOT(ISBLANK(K157)),NOT(ISBLANK(L157))),('Bewertung durch Anwender'!K157),IF(AND(NOT(ISBLANK(J157)),NOT(ISBLANK(I157))),('Bewertung durch Anwender'!I157),(Zielvereinbarung!G157))) -> 0 | H157: =Zielvereinbarung!G157 -> 0
C158: ='BNB-System'!F154 -> KG 480 Gebäudeautomation | D158: ='BNB-System'!G154 -> 25 | G158: =IF(AND(NOT(ISBLANK(K158)),NOT(ISBLANK(L158))),('Bewertung durch Anwender'!K158),IF(AND(NOT(ISBLANK(J158)),NOT(ISBLANK(I158))),('Bewertung durch Anwender'!I158),(Zielvereinbarung!G158))) -> 0 | H158: =Zielvereinbarung!G158 -> 0
P159: ='BNB-System'!K155 -> 0
B160: ='BNB-System'!E156 -> Prozessqualität | E160: ='BNB-System'!J156 -> 0.1 | G160: =IF(AND(NOT(ISBLANK(K160)),NOT(ISBLANK(L160))),('Bewertung durch Anwender'!K160),IF(AND(NOT(ISBLANK(J160)),NOT(ISBLANK(I160))),('Bewertung durch Anwender'!I160),(Zielvereinbarung!G160))) -> 0 | H160: =Zielvereinbarung!G160 -> 0 | M160: =M163*($E$163/100)+M167*($E$167/100)+M173*($E$173/100)+M189*($E$189/100)+M190*($E$190/100)+M196*($E$196/100)+M201*($E$201/100)+M204*($E$204/100) -> 0 | N160: =N163*($E$163/100)+N167*($E$167/100)+N173*($E$173/100)+N189*($E$189/100)+N190*($E$190/100)+N196*($E$196/100)+N201*($E$201/100)+N204*($E$204/100) -> 0 | P160: ='BNB-System'!K156 -> 2100
P161: ='BNB-System'!K157 -> 0
C162: ='BNB-System'!F158 -> Planung | P162: ='BNB-System'!K158 -> 0
B163: ='BNB-System'!E159 -> 5.1.1 | C163: ='BNB-System'!F159 -> Projektvorbereitung | D163: ='BNB-System'!G159 -> 100 | E163: ='BNB-System'!J159 -> 0.01428571429 | G163: =IF(AND(NOT(ISBLANK(K163)),NOT(ISBLANK(L163))),('Bewertung durch Anwender'!K163),IF(AND(NOT(ISBLANK(J163)),NOT(ISBLANK(I163))),('Bewertung durch Anwender'!I163),(Zielvereinbarung!G163))) -> 0 | H163: =Zielvereinbarung!G163 -> 0 | M163: =SUM(M164:M166) -> 0 | N163: =SUM(N164:N166) -> 0 | P163: ='BNB-System'!K159 -> 300 | Q163: =IF(ISNUMBER(E163*N163/100),E163*N163/100,0) -> 0
C164: ='BNB-System'!F160 -> Bedarfsplanung oder vergleichbare Planung | D164: ='BNB-System'!G160 -> 35 | G164: =IF(AND(NOT(ISBLANK(K164)),NOT(ISBLANK(L164))),('Bewertung durch Anwender'!K164),IF(AND(NOT(ISBLANK(J164)),NOT(ISBLANK(I164))),('Bewertung durch Anwender'!I164),(Zielvereinbarung!G164))) -> 0 | H164: =Zielvereinbarung!G164 -> 0
C165: ='BNB-System'!F161 -> Zielvereinbarung | D165: ='BNB-System'!G161 -> 35 | G165: =IF(AND(NOT(ISBLANK(K165)),NOT(ISBLANK(L165))),('Bewertung durch Anwender'!K165),IF(AND(NOT(ISBLANK(J165)),NOT(ISBLANK(I165))),('Bewertung durch Anwender'!I165),(Zielvereinbarung!G165))) -> 0 | H165: =Zielvereinbarung!G165 -> 0
C166: ='BNB-System'!F162 -> Architektenwettbewerb | D166: ='BNB-System'!G162 -> 30 | G166: =IF(AND(NOT(ISBLANK(K166)),NOT(ISBLANK(L166))),('Bewertung durch Anwender'!K166),IF(AND(NOT(ISBLANK(J166)),NOT(ISBLANK(I166))),('Bewertung durch Anwender'!I166),(Zielvereinbarung!G166))) -> 0 | H166: =Zielvereinbarung!G166 -> 0
B167: ='BNB-System'!E163 -> 5.1.2 | C167: ='BNB-System'!F163 -> Integrale Planung | D167: ='BNB-System'!G163 -> 100 | E167: ='BNB-System'!J163 -> 0.01428571429 | G167: =IF(AND(NOT(ISBLANK(K167)),NOT(ISBLANK(L167))),('Bewertung durch Anwender'!K167),IF(AND(NOT(ISBLANK(J167)),NOT(ISBLANK(I167))),('Bewertung durch Anwender'!I167),(Zielvereinbarung!G167))) -> 0 | H167: =Zielvereinbarung!G167 -> 0 | M167: =SUM(M168:M172) -> 0 | N167: =SUM(N168:N172) -> 0 | P167: ='BNB-System'!K163 -> 300 | Q167: =IF(ISNUMBER(E167*N167/100),E167*N167/100,0) -> 0
C168: ='BNB-System'!F164 -> Interdisziplinäres Planungsteam | D168: ='BNB-System'!G164 -> 20 | G168: =IF(AND(NOT(ISBLANK(K168)),NOT(ISBLANK(L168))),('Bewertung durch Anwender'!K168),IF(AND(NOT(ISBLANK(J168)),NOT(ISBLANK(I168))),('Bewertung durch Anwender'!I168),(Zielvereinbarung!G168))) -> 0 | H168: =Zielvereinbarung!G168 -> 0 | P168: ='BNB-System'!K164 -> 0
C169: ='BNB-System'!F165 -> Qualifikation des Planungsteams | D169: ='BNB-System'!G165 -> 20 | G169: =IF(AND(NOT(ISBLANK(K169)),NOT(ISBLANK(L169))),('Bewertung durch Anwender'!K169),IF(AND(NOT(ISBLANK(J169)),NOT(ISBLANK(I169))),('Bewertung durch Anwender'!I169),(Zielvereinbarung!G169))) -> 0 | H169: =Zielvereinbarung!G169 -> 0 | P169: ='BNB-System'!K165 -> 0
C170: ='BNB-System'!F166 -> Integraler Planungsprozess | D170: ='BNB-System'!G166 -> 20 | G170: =IF(AND(NOT(ISBLANK(K170)),NOT(ISBLANK(L170))),('Bewertung durch Anwender'!K170),IF(AND(NOT(ISBLANK(J170)),NOT(ISBLANK(I170))),('Bewertung durch Anwender'!I170),(Zielvereinbarung!G170))) -> 0 | H170: =Zielvereinbarung!G170 -> 0 | P170: ='BNB-System'!K166 -> 0
C171: ='BNB-System'!F167 -> Nutzerbeteiligung | D171: ='BNB-System'!G167 -> 30 | G171: =IF(AND(NOT(ISBLANK(K171)),NOT(ISBLANK(L171))),('Bewertung durch Anwender'!K171),IF(AND(NOT(ISBLANK(J171)),NOT(ISBLANK(I171))),('Bewertung durch Anwender'!I171),(Zielvereinbarung!G171))) -> 0 | H171: =Zielvereinbarung!G171 -> 0 | P171: ='BNB-System'!K167 -> 0
C172: ='BNB-System'!F168 -> Öffentlichkeitsbeteiligung | D172: ='BNB-System'!G168 -> 10 | G172: =IF(AND(NOT(ISBLANK(K172)),NOT(ISBLANK(L172))),('Bewertung durch Anwender'!K172),IF(AND(NOT(ISBLANK(J172)),NOT(ISBLANK(I172))),('Bewertung durch Anwender'!I172),(Zielvereinbarung!G172))) -> 0 | H172: =Zielvereinbarung!G172 -> 0 | P172: ='BNB-System'!K168 -> 0
B173: ='BNB-System'!E169 -> 5.1.3 | C173: ='BNB-System'!F169 -> Komplexität und Optimierung der Planung | D173: ='BNB-System'!G169 -> 100 | E173: ='BNB-System'!J169 -> 0.01428571429 | G173: =IF(AND(NOT(ISBLANK(K173)),NOT(ISBLANK(L173))),('Bewertung durch Anwender'!K173),IF(AND(NOT(ISBLANK(J173)),NOT(ISBLANK(I173))),('Bewertung durch Anwender'!I173),(Zielvereinbarung!G173))) -> 0 | H173: =Zielvereinbarung!G173 -> 0 | M173: =IF(SUM(M174:M188)>100,100,SUM(M174:M188)) -> 0 | N173: =IF(SUM(N174:N188)>100,100,SUM(N174:N188)) -> 0 | P173: ='BNB-System'!K169 -> 300 | Q173: =IF(ISNUMBER(E173*N173/100),E173*N173/100,0) -> 0
C174: ='BNB-System'!F170 -> SiGe-Plan | D174: ='BNB-System'!G170 -> 10 | G174: =IF(AND(NOT(ISBLANK(K174)),NOT(ISBLANK(L174))),('Bewertung durch Anwender'!K174),IF(AND(NOT(ISBLANK(J174)),NOT(ISBLANK(I174))),('Bewertung durch Anwender'!I174),(Zielvereinbarung!G174))) -> 0 | H174: =Zielvereinbarung!G174 -> 0 | P174: ='BNB-System'!K170 -> 0
C175: ='BNB-System'!F171 -> Ver- und Entsiegelungskonzept | D175: ='BNB-System'!G171 -> 10 | G175: =IF(AND(NOT(ISBLANK(K175)),NOT(ISBLANK(L175))),('Bewertung durch Anwender'!K175),IF(AND(NOT(ISBLANK(J175)),NOT(ISBLANK(I175))),('Bewertung durch Anwender'!I175),(Zielvereinbarung!G175))) -> 0 | H175: =Zielvereinbarung!G175 -> 0 | P175: ='BNB-System'!K171 -> 0
C176: ='BNB-System'!F172 -> Energiekonzept | D176: ='BNB-System'!G172 -> 15 | G176: =IF(AND(NOT(ISBLANK(K176)),NOT(ISBLANK(L176))),('Bewertung durch Anwender'!K176),IF(AND(NOT(ISBLANK(J176)),NOT(ISBLANK(I176))),('Bewertung durch Anwender'!I176),(Zielvereinbarung!G176))) -> 0 | H176: =Zielvereinbarung!G176 -> 0 | P176: ='BNB-System'!K172 -> 0
C177: ='BNB-System'!F173 -> Mess- und Monitoringkonzept | D177: ='BNB-System'!G173 -> 15 | G177: =IF(AND(NOT(ISBLANK(K177)),NOT(ISBLANK(L177))),('Bewertung durch Anwender'!K177),IF(AND(NOT(ISBLANK(J177)),NOT(ISBLANK(I177))),('Bewertung durch Anwender'!I177),(Zielvereinbarung!G177))) -> 0 | H177: =Zielvereinbarung!G177 -> 0 | P177: ='BNB-System'!K173 -> 0
C178: ='BNB-System'!F174 -> Wasserkonzept | D178: ='BNB-System'!G174 -> 10 | G178: =IF(AND(NOT(ISBLANK(K178)),NOT(ISBLANK(L178))),('Bewertung durch Anwender'!K178),IF(AND(NOT(ISBLANK(J178)),NOT(ISBLANK(I178))),('Bewertung durch Anwender'!I178),(Zielvereinbarung!G178))) -> 0 | H178: =Zielvereinbarung!G178 -> 0 | P178: ='BNB-System'!K174 -> 0
C179: ='BNB-System'!F175 -> Konzept zur Vermeidung von Umwelt- und Gesundheitsrisiken aus Bauprodukten | D179: ='BNB-System'!G175 -> 10 | G179: =IF(AND(NOT(ISBLANK(K179)),NOT(ISBLANK(L179))),('Bewertung durch Anwender'!K179),IF(AND(NOT(ISBLANK(J179)),NOT(ISBLANK(I179))),('Bewertung durch Anwender'!I179),(Zielvereinbarung!G179))) -> 0 | H179: =Zielvereinbarung!G179 -> 0 | P179: ='BNB-System'!K175 -> 0
C180: ='BNB-System'!F176 -> Lüftungskonzept | D180: ='BNB-System'!G176 -> 10 | G180: =IF(AND(NOT(ISBLANK(K180)),NOT(ISBLANK(L180))),('Bewertung durch Anwender'!K180),IF(AND(NOT(ISBLANK(J180)),NOT(ISBLANK(I180))),('Bewertung durch Anwender'!I180),(Zielvereinbarung!G180))) -> 0 | H180: =Zielvereinbarung!G180 -> 0 | P180: ='BNB-System'!K176 -> 0
C181: ='BNB-System'!F177 -> Abfallkonzept / Wertstoffkonzept | D181: ='BNB-System'!G177 -> 5 | G181: =IF(AND(NOT(ISBLANK(K181)),NOT(ISBLANK(L181))),('Bewertung durch Anwender'!K181),IF(AND(NOT(ISBLANK(J181)),NOT(ISBLANK(I181))),('Bewertung durch Anwender'!I181),(Zielvereinbarung!G181))) -> 0 | H181: =Zielvereinbarung!G181 -> 0 | P181: ='BNB-System'!K177 -> 0
C182: ='BNB-System'!F178 -> Tages- / Kunstlichtoptimierung | D182: ='BNB-System'!G178 -> 10 | G182: =IF(AND(NOT(ISBLANK(K182)),NOT(ISBLANK(L182))),('Bewertung durch Anwender'!K182),IF(AND(NOT(ISBLANK(J182)),NOT(ISBLANK(I182))),('Bewertung durch Anwender'!I182),(Zielvereinbarung!G182))) -> 0 | H182: =Zielvereinbarung!G182 -> 0 | P182: ='BNB-System'!K178 -> 0
C183: ='BNB-System'!F179 -> Konzept zur Sicherung der Reinigungs- und Instandhaltungsfreundlichkeit | D183: ='BNB-System'!G179 -> 10 | G183: =IF(AND(NOT(ISBLANK(K183)),NOT(ISBLANK(L183))),('Bewertung durch Anwender'!K183),IF(AND(NOT(ISBLANK(J183)),NOT(ISBLANK(I183))),('Bewertung durch Anwender'!I183),(Zielvereinbarung!G183))) -> 0 | H183: =Zielvereinbarung!G183 -> 0 | P183: ='BNB-System'!K179 -> 0
C184: ='BNB-System'!F180 -> Anpassbarkeits-, Rückbau- und Recyclingkonzept | D184: ='BNB-System'!G180 -> 10 | G184: =IF(AND(NOT(ISBLANK(K184)),NOT(ISBLANK(L184))),('Bewertung durch Anwender'!K184),IF(AND(NOT(ISBLANK(J184)),NOT(ISBLANK(I184))),('Bewertung durch Anwender'!I184),(Zielvereinbarung!G184))) -> 0 | H184: =Zielvereinbarung!G184 -> 0 | P184: ='BNB-System'!K180 -> 0
C185: ='BNB-System'!F181 -> Konzept zur Vermeidung und Beherrschung von Risiken | D185: ='BNB-System'!G181 -> 10 | G185: =IF(AND(NOT(ISBLANK(K185)),NOT(ISBLANK(L185))),('Bewertung durch Anwender'!K185),IF(AND(NOT(ISBLANK(J185)),NOT(ISBLANK(I185))),('Bewertung durch Anwender'!I185),(Zielvereinbarung!G185))) -> 0 | H185: =Zielvereinbarung!G185 -> 0 | P185: ='BNB-System'!K181 -> 0
C186: ='BNB-System'!F182 -> Sonstige Konzepte zum Nachhaltigen Bauen | D186: ='BNB-System'!G182 -> 10 | G186: =IF(AND(NOT(ISBLANK(K186)),NOT(ISBLANK(L186))),('Bewertung durch Anwender'!K186),IF(AND(NOT(ISBLANK(J186)),NOT(ISBLANK(I186))),('Bewertung durch Anwender'!I186),(Zielvereinbarung!G186))) -> 0 | H186: =Zielvereinbarung!G186 -> 0 | P186: ='BNB-System'!K182 -> 0
C187: ='BNB-System'!F183 -> Prüfung der Planungsunterlagen durch unabhängige Dritte | D187: ='BNB-System'!G183 -> 5 | G187: =IF(AND(NOT(ISBLANK(K187)),NOT(ISBLANK(L187))),('Bewertung durch Anwender'!K187),IF(AND(NOT(ISBLANK(J187)),NOT(ISBLANK(I187))),('Bewertung durch Anwender'!I187),(Zielvereinbarung!G187))) -> 0 | H187: =Zielvereinbarung!G187 -> 0 | P187: ='BNB-System'!K183 -> 0
C188: ='BNB-System'!F184 -> Durchführung von Variantenvergleichen | D188: ='BNB-System'!G184 -> 10 | G188: =IF(AND(NOT(ISBLANK(K188)),NOT(ISBLANK(L188))),('Bewertung durch Anwender'!K188),IF(AND(NOT(ISBLANK(J188)),NOT(ISBLANK(I188))),('Bewertung durch Anwender'!I188),(Zielvereinbarung!G188))) -> 0 | H188: =Zielvereinbarung!G188 -> 0 | P188: ='BNB-System'!K184 -> 0
B189: ='BNB-System'!E185 -> 5.1.4 | C189: ='BNB-System'!F185 -> Ausschreibung und Vergabe | D189: ='BNB-System'!G185 -> 100 | E189: ='BNB-System'!J185 -> 0.009523809524 | G189: =IF(AND(NOT(ISBLANK(K189)),NOT(ISBLANK(L189))),('Bewertung durch Anwender'!K189),IF(AND(NOT(ISBLANK(J189)),NOT(ISBLANK(I189))),('Bewertung durch Anwender'!I189),(Zielvereinbarung!G189))) -> 0 | H189: =Zielvereinbarung!G189 -> 0 | P189: ='BNB-System'!K185 -> 200 | Q189: =IF(ISNUMBER(E189*N189/100),E189*N189/100,0) -> 0
B190: ='BNB-System'!E186 -> 5.1.5 | C190: ='BNB-System'!F186 -> Voraussetzungen für eine optimale Bewirtschaftung | D190: ='BNB-System'!G186 -> 100 | E190: ='BNB-System'!J186 -> 0.009523809524 | G190: =IF(AND(NOT(ISBLANK(K190)),NOT(ISBLANK(L190))),('Bewertung durch Anwender'!K190),IF(AND(NOT(ISBLANK(J190)),NOT(ISBLANK(I190))),('Bewertung durch Anwender'!I190),(Zielvereinbarung!G190))) -> 0 | H190: =Zielvereinbarung!G190 -> 0 | M190: =SUM(M191:M194) -> 0 | N190: =SUM(N191:N194) -> 0 | P190: ='BNB-System'!K186 -> 200 | Q190: =IF(ISNUMBER(E190*N190/100),E190*N190/100,0) -> 0
C191: ='BNB-System'!F187 -> Erstellung einer Gebäudeakte / Objektdokumentation | D191: ='BNB-System'!G187 -> 25 | G191: =IF(AND(NOT(ISBLANK(K191)),NOT(ISBLANK(L191))),('Bewertung durch Anwender'!K191),IF(AND(NOT(ISBLANK(J191)),NOT(ISBLANK(I191))),('Bewertung durch Anwender'!I191),(Zielvereinbarung!G191))) -> 0 | H191: =Zielvereinbarung!G191 -> 0 | P191: ='BNB-System'!K187 -> 0
C192: ='BNB-System'!F188 -> Erstellung von Wartungs-, Inspektions-, Betriebs-, und Pflegeanleitungen | D192: ='BNB-System'!G188 -> 25 | G192: =IF(AND(NOT(ISBLANK(K192)),NOT(ISBLANK(L192))),('Bewertung durch Anwender'!K192),IF(AND(NOT(ISBLANK(J192)),NOT(ISBLANK(I192))),('Bewertung durch Anwender'!I192),(Zielvereinbarung!G192))) -> 0 | H192: =Zielvereinbarung!G192 -> 0 | P192: ='BNB-System'!K188 -> 0
C193: ='BNB-System'!F189 -> Anpassung der Pläne und Berechnungen an das realisierte Gebäude | D193: ='BNB-System'!G189 -> 25 | G193: =IF(AND(NOT(ISBLANK(K193)),NOT(ISBLANK(L193))),('Bewertung durch Anwender'!K193),IF(AND(NOT(ISBLANK(J193)),NOT(ISBLANK(I193))),('Bewertung durch Anwender'!I193),(Zielvereinbarung!G193))) -> 0 | H193: =Zielvereinbarung!G193 -> 0 | P193: ='BNB-System'!K189 -> 0
C194: ='BNB-System'!F190 -> Erstellung eines Nutzerhandbuches | D194: ='BNB-System'!G190 -> 25 | G194: =IF(AND(NOT(ISBLANK(K194)),NOT(ISBLANK(L194))),('Bewertung durch Anwender'!K194),IF(AND(NOT(ISBLANK(J194)),NOT(ISBLANK(I194))),('Bewertung durch Anwender'!I194),(Zielvereinbarung!G194))) -> 0 | H194: =Zielvereinbarung!G194 -> 0 | P194: ='BNB-System'!K190 -> 0
C195: ='BNB-System'!F191 -> Bauausführung | P195: ='BNB-System'!K191 -> 0
B196: ='BNB-System'!E192 -> 5.2.1 | C196: ='BNB-System'!F192 -> Baustelle / Bauprozess | D196: ='BNB-System'!G192 -> 100 | E196: ='BNB-System'!J192 -> 0.009523809524 | G196: =IF(AND(NOT(ISBLANK(K196)),NOT(ISBLANK(L196))),('Bewertung durch Anwender'!K196),IF(AND(NOT(ISBLANK(J196)),NOT(ISBLANK(I196))),('Bewertung durch Anwender'!I196),(Zielvereinbarung!G196))) -> 0 | H196: =Zielvereinbarung!G196 -> 0 | M196: =SUM(M197:M200) -> 0 | N196: =SUM(N197:N200) -> 0 | P196: ='BNB-System'!K192 -> 200 | Q196: =IF(ISNUMBER(E196*N196/100),E196*N196/100,0) -> 0
C197: ='BNB-System'!F193 -> Wertstoffoptimierte Baustelle | D197: ='BNB-System'!G193 -> 25 | G197: =IF(AND(NOT(ISBLANK(K197)),NOT(ISBLANK(L197))),('Bewertung durch Anwender'!K197),IF(AND(NOT(ISBLANK(J197)),NOT(ISBLANK(I197))),('Bewertung durch Anwender'!I197),(Zielvereinbarung!G197))) -> 0 | H197: =Zielvereinbarung!G197 -> 0 | P197: ='BNB-System'!K193 -> 0
C198: ='BNB-System'!F194 -> Lärmarme Baustelle | D198: ='BNB-System'!G194 -> 25 | G198: =IF(AND(NOT(ISBLANK(K198)),NOT(ISBLANK(L198))),('Bewertung durch Anwender'!K198),IF(AND(NOT(ISBLANK(J198)),NOT(ISBLANK(I198))),('Bewertung durch Anwender'!I198),(Zielvereinbarung!G198))) -> 0 | H198: =Zielvereinbarung!G198 -> 0 | P198: ='BNB-System'!K194 -> 0
C199: ='BNB-System'!F195 -> Staubarme Baustelle | D199: ='BNB-System'!G195 -> 25 | G199: =IF(AND(NOT(ISBLANK(K199)),NOT(ISBLANK(L199))),('Bewertung durch Anwender'!K199),IF(AND(NOT(ISBLANK(J199)),NOT(ISBLANK(I199))),('Bewertung durch Anwender'!I199),(Zielvereinbarung!G199))) -> 0 | H199: =Zielvereinbarung!G199 -> 0 | P199: ='BNB-System'!K195 -> 0
C200: ='BNB-System'!F196 -> Bodenschutz auf der Baustelle | D200: ='BNB-System'!G196 -> 25 | G200: =IF(AND(NOT(ISBLANK(K200)),NOT(ISBLANK(L200))),('Bewertung durch Anwender'!K200),IF(AND(NOT(ISBLANK(J200)),NOT(ISBLANK(I200))),('Bewertung durch Anwender'!I200),(Zielvereinbarung!G200))) -> 0 | H200: =Zielvereinbarung!G200 -> 0 | P200: ='BNB-System'!K196 -> 0
B201: ='BNB-System'!E197 -> 5.2.2 | C201: ='BNB-System'!F197 -> Qualitätssicherung der Bauausführung | D201: ='BNB-System'!G197 -> 100 | E201: ='BNB-System'!J197 -> 0.01428571429 | G201: =IF(AND(NOT(ISBLANK(K201)),NOT(ISBLANK(L201))),('Bewertung durch Anwender'!K201),IF(AND(NOT(ISBLANK(J201)),NOT(ISBLANK(I201))),('Bewertung durch Anwender'!I201),(Zielvereinbarung!G201))) -> 0 | H201: =Zielvereinbarung!G201 -> 0 | M201: =SUM(M202:M203) -> 0 | N201: =SUM(N202:N203) -> 0 | P201: ='BNB-System'!K197 -> 300 | Q201: =IF(ISNUMBER(E201*N201/100),E201*N201/100,0) -> 0
C202: ='BNB-System'!F198 -> Dokumentation | D202: ='BNB-System'!G198 -> 50 | G202: =IF(AND(NOT(ISBLANK(K202)),NOT(ISBLANK(L202))),('Bewertung durch Anwender'!K202),IF(AND(NOT(ISBLANK(J202)),NOT(ISBLANK(I202))),('Bewertung durch Anwender'!I202),(Zielvereinbarung!G202))) -> 0 | H202: =Zielvereinbarung!G202 -> 0 | P202: ='BNB-System'!K198 -> 0
... 45 more rows

Sheet Konformitätsprüfung (hidden)
B1: ='BNB-System'!B1 -> Projekt: | C1: =Zielvereinbarung!C1 -> Projektbezeichnung
B2: ='BNB-System'!B2 -> Bewertungssystem Nachhaltiges Bauen (BNB)
B3: ='BNB-System'!B3 -> Systemvariante Unterrichtsgebäude, Modul Neubau (BNB_UN) - Version 2017
B4: Nachhaltigkeitskriterien | D4: maximale Punktzahl | E4: Gewichtung Gesamt- bewertung | F4: Punkt- zahl | G4: Eingereichte Endbewertung | I4: Bemerkung Konformitätsprüfung Prüfung vom: | J4: Bearbeiter | L4: Zielwert | M4: Gesamt-bewertung Anwender | N4: Gesamt-bewertung Konformitäts- prüfung
F5: Ziel- vereinbarung | G5: Anwender | H5: Konformitätsprüfung | I5: =TODAY() -> 2019-10-23
B7: Gesamterfüllungsgrad | F7: =Zielvereinbarung!$G$7 -> 0 | G7: ='Bewertung durch Anwender'!N7 -> 0 | H7: =H10+H28+H41+H123+H160 -> 0
H8: ende | K8: qwertz
B10: ='BNB-System'!E6 -> Ökologische Qualität | E10: ='BNB-System'!J6 -> 0.225 | F10: ='Bewertung durch Anwender'!G10 -> 0 | G10: ='Bewertung durch Anwender'!N10 -> 0 | H10: =H13*(E13/100)+H14*(E14/100)+H15*(E15/100)+H16*(E16/100)+H17*(E17/100)+H18*(E18/100)+H19*(E19/100)+H21*(E21/100)+H25*(E25/100)+H26*(E26/100) -> 0 | L10: ='BNB-System'!K6 -> 1800
C12: Wirkungen auf die globale und lokale Umwelt
B13: ='BNB-System'!E9 -> 1.1.1 | C13: ='BNB-System'!F9 -> Treibhauspotenzial (GWP) | D13: ='BNB-System'!G9 -> 100 | E13: ='BNB-System'!J9 -> 0.0375 | F13: ='Bewertung durch Anwender'!G13 -> 0 | G13: ='Bewertung durch Anwender'!N13 -> 0 | L13: ='BNB-System'!K9 -> 300 | M13: =IF(ISNUMBER(G13*E13/100),G13*E13/100,0) -> 0 | N13: =IF(ISNUMBER(H13*E13/100),H13*E13/100,0) -> 0
B14: ='BNB-System'!E10 -> 1.1.2 | C14: ='BNB-System'!F10 -> Ozonschichtabbaupotenzial (ODP) | D14: ='BNB-System'!G10 -> 100 | E14: ='BNB-System'!J10 -> 0.0125 | F14: ='Bewertung durch Anwender'!G14 -> 0 | G14: ='Bewertung durch Anwender'!N14 -> 0 | L14: ='BNB-System'!K10 -> 100 | M14: =IF(ISNUMBER(G14*E14/100),G14*E14/100,0) -> 0 | N14: 0
B15: ='BNB-System'!E11 -> 1.1.3 | C15: ='BNB-System'!F11 -> Ozonbildungspotenzial (POCP) | D15: ='BNB-System'!G11 -> 100 | E15: ='BNB-System'!J11 -> 0.0125 | F15: ='Bewertung durch Anwender'!G15 -> 0 | G15: ='Bewertung durch Anwender'!N15 -> 0 | L15: ='BNB-System'!K11 -> 100 | M15: 0 | N15: 0
B16: ='BNB-System'!E12 -> 1.1.4 | C16: ='BNB-System'!F12 -> Versauerungspotenzial (AP) | D16: ='BNB-System'!G12 -> 100 | E16: ='BNB-System'!J12 -> 0.0125 | F16: ='Bewertung durch Anwender'!G16 -> 0 | G16: ='Bewertung durch Anwender'!N16 -> 0 | L16: ='BNB-System'!K12 -> 100 | M16: 0 | N16: 0
B17: ='BNB-System'!E13 -> 1.1.5 | C17: ='BNB-System'!F13 -> Überdüngungspotenzial (EP) | D17: ='BNB-System'!G13 -> 100 | E17: ='BNB-System'!J13 -> 0.0125 | F17: ='Bewertung durch Anwender'!G17 -> 0 | G17: ='Bewertung durch Anwender'!N17 -> 0 | L17: ='BNB-System'!K13 -> 100 | M17: 0 | N17: 0
B18: ='BNB-System'!E14 -> 1.1.6 | C18: ='BNB-System'!F14 -> Risiken für die lokale Umwelt | D18: ='BNB-System'!G14 -> 100 | E18: ='BNB-System'!J14 -> 0.0375 | F18: ='Bewertung durch Anwender'!G18 -> 0 | G18: ='Bewertung durch Anwender'!N18 -> 0 | L18: ='BNB-System'!K14 -> 300 | M18: 0 | N18: 0
B19: ='BNB-System'!E15 -> 1.1.7 | C19: ='BNB-System'!F15 -> Nachhaltige Materialgewinnung / Biodiversität | D19: ='BNB-System'!G15 -> 100 | E19: ='BNB-System'!J15 -> 0.0125 | F19: ='Bewertung durch Anwender'!G19 -> 0 | G19: ='Bewertung durch Anwender'!N19 -> 0 | L19: ='BNB-System'!K15 -> 100 | M19: 0 | N19: 0
C20: ='BNB-System'!F16 -> Ressourceninanspruchnahme
B21: ='BNB-System'!E17 -> 1.2.1 | C21: ='BNB-System'!F17 -> Primärenergiebedarf | D21: ='BNB-System'!G17 -> 100 | E21: ='BNB-System'!J17 -> 0.0375 | F21: ='Bewertung durch Anwender'!G21 -> 0 | G21: ='Bewertung durch Anwender'!N21 -> 0 | H21: =SUM(H22:H24) -> 0 | L21: ='BNB-System'!K17 -> 300 | M21: =IF(ISNUMBER(G21*E21/100),G21*E21/100,0) -> 0 | N21: =IF(ISNUMBER(H21*E21/100),H21*E21/100,0) -> 0
C22: ='BNB-System'!F18 -> Primärenergiebedarf nicht erneuerbar (PEne) | D22: ='BNB-System'!G18 -> 60 | F22: ='Bewertung durch Anwender'!G22 -> 0 | G22: ='Bewertung durch Anwender'!N22 -> 0
C23: ='BNB-System'!F19 -> Gesamtenergiebedarf (PEges) | D23: ='BNB-System'!G19 -> 40 | F23: ='Bewertung durch Anwender'!G23 -> 0 | G23: ='Bewertung durch Anwender'!N23 -> 0
C24: ='BNB-System'!F20 -> Anteil erneuerbarer Primärenergie (PEe) | D24: ='BNB-System'!G20 -> 20 | F24: ='Bewertung durch Anwender'!G24 -> 0 | G24: ='Bewertung durch Anwender'!N24 -> 0
B25: ='BNB-System'!E21 -> 1.2.3 | C25: ='BNB-System'!F21 -> Trinkwasserbedarf und Abwasseraufkommen | D25: ='BNB-System'!G21 -> 100 | E25: ='BNB-System'!J21 -> 0.025 | F25: ='Bewertung durch Anwender'!G25 -> 0 | G25: ='Bewertung durch Anwender'!N25 -> 0 | L25: ='BNB-System'!K21 -> 200 | M25: =IF(ISNUMBER(G25*E25/100),G25*E25/100,0) -> 0 | N25: =IF(ISNUMBER(H25*E25/100),H25*E25/100,0) -> 0
B26: ='BNB-System'!E22 -> 1.2.4 | C26: ='BNB-System'!F22 -> Flächeninanspruchnahme | D26: ='BNB-System'!G22 -> 100 | E26: ='BNB-System'!J22 -> 0.025 | F26: ='Bewertung durch Anwender'!G26 -> 0 | G26: ='Bewertung durch Anwender'!N26 -> 0 | L26: ='BNB-System'!K22 -> 200 | M26: =IF(ISNUMBER(G26*E26/100),G26*E26/100,0) -> 0 | N26: =IF(ISNUMBER(H26*E26/100),H26*E26/100,0) -> 0
B28: ='BNB-System'!E24 -> Ökonomische Qualität | E28: ='BNB-System'!J24 -> 0.225 | F28: ='Bewertung durch Anwender'!G28 -> 0 | G28: ='Bewertung durch Anwender'!N28 -> 0 | H28: =H31*($E$31/100)+H33*($E$33/100) -> 0 | L28: ='BNB-System'!K24 -> 500
C30: ='BNB-System'!F26 -> Lebenszykluskosten
B31: ='BNB-System'!E27 -> 2.1.1 | C31: ='BNB-System'!F27 -> Gebäudebezogene Kosten im Lebenszyklus | D31: ='BNB-System'!G27 -> 100 | E31: ='BNB-System'!J27 -> 0.135 | F31: ='Bewertung durch Anwender'!G31 -> 0 | G31: ='Bewertung durch Anwender'!N31 -> 0 | L31: ='BNB-System'!K27 -> 300 | M31: =IF(ISNUMBER(G31*E31/100),G31*E31/100,0) -> 0 | N31: =IF(ISNUMBER(H31*E31/100),H31*E31/100,0) -> 0
C32: ='BNB-System'!F28 -> Wertentwicklung
B33: ='BNB-System'!E29 -> 2.2.2 | C33: ='BNB-System'!F29 -> Anpassungsfähigkeit | D33: ='BNB-System'!G29 -> 100 | E33: ='BNB-System'!J29 -> 0.09 | F33: ='Bewertung durch Anwender'!G33 -> 0 | G33: ='Bewertung durch Anwender'!N33 -> 0 | H33: =SUM(H34:H39) -> 0 | L33: ='BNB-System'!K29 -> 200 | M33: =IF(ISNUMBER(G33*E33/100),G33*E33/100,0) -> 0 | N33: =IF(ISNUMBER(H33*E33/100),H33*E33/100,0) -> 0
C34: ='BNB-System'!F30 -> Lichte Raumhöhe | D34: ='BNB-System'!G30 -> 15 | F34: ='Bewertung durch Anwender'!G34 -> 0 | G34: ='Bewertung durch Anwender'!N34 -> 0
C35: ='BNB-System'!F31 -> Gebäudetiefe | D35: ='BNB-System'!G31 -> 15 | F35: ='Bewertung durch Anwender'!G35 -> 0 | G35: ='Bewertung durch Anwender'!N35 -> 0
C36: ='BNB-System'!F32 -> Vertikale Erschlließung | D36: ='BNB-System'!G32 -> 15 | F36: ='Bewertung durch Anwender'!G36 -> 0 | G36: ='Bewertung durch Anwender'!N36 -> 0
C37: ='BNB-System'!F33 -> Grundrisse | D37: ='BNB-System'!G33 -> 25 | F37: ='Bewertung durch Anwender'!G37 -> 0 | G37: ='Bewertung durch Anwender'!N37 -> 0
C38: ='BNB-System'!F34 -> Konstruktion | D38: ='BNB-System'!G34 -> 20 | F38: ='Bewertung durch Anwender'!G38 -> 0 | G38: ='Bewertung durch Anwender'!N38 -> 0
C39: ='BNB-System'!F35 -> Technische Ausstattung | D39: ='BNB-System'!G35 -> 10 | F39: ='Bewertung durch Anwender'!G39 -> 0 | G39: ='Bewertung durch Anwender'!N39 -> 0
B41: ='BNB-System'!E37 -> Soziokulturelle und funktionale Qualität | E41: ='BNB-System'!J37 -> 0.225 | F41: ='Bewertung durch Anwender'!G41 -> 0 | G41: ='Bewertung durch Anwender'!N41 -> 0 | H41: =H44*($E$44/100)+H55*($E$55/100)+H58*($E$58/100)+H68*($E$68/100)+H76*($E$76/100)+H86*($E$86/100)+H91*($E$91/100)+H98*($E$98/100)+H99*($E$99/100)+H104*($E$104/100)+H109*($E$109/100)+H117*($E$117/100) -> 0 | L41: ='BNB-System'!K37 -> 2700
C43: ='BNB-System'!F39 -> Gesundheit, Behaglichkeit und Nutzerzufriedenheit
B44: ='BNB-System'!E40 -> 3.1.1 | C44: ='BNB-System'!F40 -> Thermischer Komfort | D44: ='BNB-System'!G40 -> 100 | E44: ='BNB-System'!J40 -> 0.025 | F44: ='Bewertung durch Anwender'!G44 -> 0 | G44: ='Bewertung durch Anwender'!N44 -> 0 | H44: =SUM(H45:H54) -> 0 | L44: ='BNB-System'!K40 -> 300 | M44: =IF(ISNUMBER(G44*E44/100),G44*E44/100,0) -> 0 | N44: =IF(ISNUMBER(H44*E44/100),H44*E44/100,0) -> 0
C45: ='BNB-System'!F41 -> Winter
C46: ='BNB-System'!F42 -> Operative Temperatur | D46: ='BNB-System'!G42 -> 10 | F46: ='Bewertung durch Anwender'!G46 -> 0 | G46: ='Bewertung durch Anwender'!N46 -> 0
C47: ='BNB-System'!F43 -> Zugluft | D47: ='BNB-System'!G43 -> 10 | F47: ='Bewertung durch Anwender'!G47 -> 0 | G47: ='Bewertung durch Anwender'!N47 -> 0
C48: ='BNB-System'!F44 -> Stahlungstemperaturasymmetrie und Fußbodentemperatur | D48: ='BNB-System'!G44 -> 10 | F48: ='Bewertung durch Anwender'!G48 -> 0 | G48: ='Bewertung durch Anwender'!N48 -> 0
C49: ='BNB-System'!F45 -> Relative Luftfeuchte | D49: ='BNB-System'!G45 -> 10 | F49: ='Bewertung durch Anwender'!G49 -> 0 | G49: ='Bewertung durch Anwender'!N49 -> 0
C50: ='BNB-System'!F46 -> Sommer | F50: ='Bewertung durch Anwender'!G50 -> 
C51: ='BNB-System'!F47 -> Operative Temperatur | D51: ='BNB-System'!G47 -> 30 | F51: ='Bewertung durch Anwender'!G51 -> 0 | G51: ='Bewertung durch Anwender'!N51 -> 0
C52: ='BNB-System'!F48 -> Zugluft | D52: ='BNB-System'!G48 -> 10 | F52: ='Bewertung durch Anwender'!G52 -> 0 | G52: ='Bewertung durch Anwender'!N52 -> 0
C53: ='BNB-System'!F49 -> Stahlungstemperaturasymmetrie und Fußbodentemperatur | D53: ='BNB-System'!G49 -> 10 | F53: ='Bewertung durch Anwender'!G53 -> 0 | G53: ='Bewertung durch Anwender'!N53 -> 0
C54: ='BNB-System'!F50 -> Relative Luftfeuchte | D54: ='BNB-System'!G50 -> 10 | F54: ='Bewertung durch Anwender'!G54 -> 0 | G54: ='Bewertung durch Anwender'!N54 -> 0
B55: ='BNB-System'!E51 -> 3.1.3 | C55: ='BNB-System'!F51 -> Innenraumlufthygiene | D55: ='BNB-System'!G51 -> 100 | E55: ='BNB-System'!J51 -> 0.025 | F55: ='Bewertung durch Anwender'!G55 -> 0 | G55: ='Bewertung durch Anwender'!N55 -> 0 | H55: =SUM(H56:H57) -> 0 | L55: ='BNB-System'!K51 -> 300 | M55: =IF(ISNUMBER(G55*E55/100),G55*E55/100,0) -> 0 | N55: =IF(ISNUMBER(H55*E55/100),H55*E55/100,0) -> 0
C56: ='BNB-System'!F52 -> Flüchtige organische Stoffe (VOC) und Formaldehyd | D56: ='BNB-System'!G52 -> 50 | F56: ='Bewertung durch Anwender'!G56 -> 0 | G56: ='Bewertung durch Anwender'!N56 -> 0
C57: ='BNB-System'!F53 -> Außenluftvolumenstrom | D57: ='BNB-System'!G53 -> 50 | F57: ='Bewertung durch Anwender'!G57 -> 0 | G57: ='Bewertung durch Anwender'!N57 -> 0
B58: ='BNB-System'!E54 -> 3.1.4 | C58: ='BNB-System'!F54 -> Akustischer Komfort | D58: ='BNB-System'!G54 -> 100 | E58: ='BNB-System'!J54 -> 0.01666666667 | F58: ='Bewertung durch Anwender'!G58 -> 0 | G58: ='Bewertung durch Anwender'!N58 -> 0 | H58: =SUM(H60:H67) -> 0 | L58: ='BNB-System'!K54 -> 200 | M58: =IF(ISNUMBER(G58*E58/100),G58*E58/100,0) -> 0 | N58: =IF(ISNUMBER(H58*E58/100),H58*E58/100,0) -> 0
C59: ='BNB-System'!F55 -> Räume Gruppe A
C60: ='BNB-System'!F56 -> Musik | D60: ='BNB-System'!G56 -> 100 | F60: ='Bewertung durch Anwender'!G60 -> 0 | G60: ='Bewertung durch Anwender'!N60 -> 0
C61: ='BNB-System'!F57 -> Sprache/ Vortrag | D61: ='BNB-System'!G57 -> 100 | F61: ='Bewertung durch Anwender'!G61 -> 0 | G61: ='Bewertung durch Anwender'!N61 -> 0
C62: ='BNB-System'!F58 -> Unterricht/ Kommunikation | D62: ='BNB-System'!G58 -> 100 | F62: ='Bewertung durch Anwender'!G62 -> 0 | G62: ='Bewertung durch Anwender'!N62 -> 0
C63: ='BNB-System'!F59 -> Sport | D63: ='BNB-System'!G59 -> 100 | F63: ='Bewertung durch Anwender'!G63 -> 0 | G63: ='Bewertung durch Anwender'!N63 -> 0
C64: ='BNB-System'!F60 -> Räume Gruppe B
C65: ='BNB-System'!F61 -> Einzel- und Mehrpersonenbüros bis 100 m3 | D65: ='BNB-System'!G61 -> 100 | F65: ='Bewertung durch Anwender'!G65 -> 0 | G65: ='Bewertung durch Anwender'!N65 -> 0
C66: ='BNB-System'!F62 -> Mehrpersonenbüros über 100 m3 | D66: ='BNB-System'!G62 -> 100 | F66: ='Bewertung durch Anwender'!G66 -> 0 | G66: ='Bewertung durch Anwender'!N66 -> 0
C67: ='BNB-System'!F63 -> Weitere Räume | D67: ='BNB-System'!G63 -> 100 | F67: ='Bewertung durch Anwender'!G67 -> 0 | G67: ='Bewertung durch Anwender'!N67 -> 0
B68: ='BNB-System'!E64 -> 3.1.5 | C68: ='BNB-System'!F64 -> Visueller Komfort | D68: ='BNB-System'!G64 -> 100 | E68: ='BNB-System'!J64 -> 0.01666666667 | F68: ='Bewertung durch Anwender'!G68 -> 0 | G68: ='Bewertung durch Anwender'!N68 -> 0 | H68: =SUM(H69:H75) -> 0 | L68: ='BNB-System'!K64 -> 200 | M68: =IF(ISNUMBER(G68*E68/100),G68*E68/100,0) -> 0 | N68: =IF(ISNUMBER(#REF!*E68/100),#REF!*E68/100,0) -> 0
C69: ='BNB-System'!F65 -> Tageslichtverfügbarkeit Gesamtgebäude | D69: ='BNB-System'!G65 -> 15 | F69: ='Bewertung durch Anwender'!G69 -> 0 | G69: ='Bewertung durch Anwender'!N69 -> 0
C70: ='BNB-System'!F66 -> Tageslichtverfügbarkeit Unterrichtsräume und weitere ständige Arbeitsplätze | D70: ='BNB-System'!G66 -> 15 | F70: ='Bewertung durch Anwender'!G70 -> 0 | G70: ='Bewertung durch Anwender'!N70 -> 0
C71: ='BNB-System'!F67 -> Nachweis der Sichtverbindung nach außen | D71: ='BNB-System'!G67 -> 35 | F71: ='Bewertung durch Anwender'!G71 -> 0 | G71: ='Bewertung durch Anwender'!N71 -> 0
C72: ='BNB-System'!F68 -> Blendfreiheit Tageslicht | D72: ='BNB-System'!G68 -> 10 | F72: ='Bewertung durch Anwender'!G72 -> 0 | G72: ='Bewertung durch Anwender'!N72 -> 0
C73: ='BNB-System'!F69 -> Blendfreiheit Kunstlicht | D73: ='BNB-System'!G69 -> 5 | F73: ='Bewertung durch Anwender'!G73 -> 0 | G73: ='Bewertung durch Anwender'!N73 -> 0
C74: ='BNB-System'!F70 -> Lichtverteilung | D74: ='BNB-System'!G70 -> 20 | F74: ='Bewertung durch Anwender'!G74 -> 0 | G74: ='Bewertung durch Anwender'!N74 -> 0
C75: ='BNB-System'!F71 -> Farbwiedergabe | D75: ='BNB-System'!G71 -> 10 | F75: ='Bewertung durch Anwender'!G75 -> 0 | G75: ='Bewertung durch Anwender'!N75 -> 0
B76: ='BNB-System'!E72 -> 3.1.6 | C76: ='BNB-System'!F72 -> Einflussnahmemöglichkeiten durch Nutzer | D76: ='BNB-System'!G72 -> 100 | E76: ='BNB-System'!J72 -> 0.01666666667 | F76: ='Bewertung durch Anwender'!G76 -> 0 | G76: ='Bewertung durch Anwender'!N76 -> 0 | H76: =SUM(H77:H85) -> 0 | L76: ='BNB-System'!K72 -> 200 | M76: =IF(ISNUMBER(G76*E76/100),G76*E76/100,0) -> 0 | N76: =IF(ISNUMBER(H76*E76/100),H76*E76/100,0) -> 0
C77: ='BNB-System'!F73 -> Lüftung | D77: ='BNB-System'!G73 -> 10 | F77: ='Bewertung durch Anwender'!G77 -> 0 | G77: ='Bewertung durch Anwender'!N77 -> 0
C78: ='BNB-System'!F74 -> Sonnenschutz | D78: ='BNB-System'!G74 -> 10 | F78: ='Bewertung durch Anwender'!G78 -> 0 | G78: ='Bewertung durch Anwender'!N78 -> 0
C79: ='BNB-System'!F75 -> Blendschutz | D79: ='BNB-System'!G75 -> 10 | F79: ='Bewertung durch Anwender'!G79 -> 0 | G79: ='Bewertung durch Anwender'!N79 -> 0
C80: ='BNB-System'!F76 -> Temperaturen während der Heizperiode | D80: ='BNB-System'!G76 -> 10 | F80: ='Bewertung durch Anwender'!G80 -> 0 | G80: ='Bewertung durch Anwender'!N80 -> 0
C81: ='BNB-System'!F77 -> Temperaturen außerhalb der Heizperiode | D81: ='BNB-System'!G77 -> 15 | F81: ='Bewertung durch Anwender'!G81 -> 0 | G81: ='Bewertung durch Anwender'!N81 -> 0
C82: ='BNB-System'!F78 -> Steuerung von Tageslicht | D82: ='BNB-System'!G78 -> 10 | F82: ='Bewertung durch Anwender'!G82 -> 0 | G82: ='Bewertung durch Anwender'!N82 -> 0
C83: ='BNB-System'!F79 -> Steuerung von Kunstlicht | D83: ='BNB-System'!G79 -> 10 | F83: ='Bewertung durch Anwender'!G83 -> 0 | G83: ='Bewertung durch Anwender'!N83 -> 0
C84: ='BNB-System'!F80 -> Bedienfreundlichkeit | D84: ='BNB-System'!G80 -> 10 | F84: ='Bewertung durch Anwender'!G84 -> 0 | G84: ='Bewertung durch Anwender'!N84 -> 0
C85: ='BNB-System'!F81 -> Funktionskonzept der Haustechnik | D85: ='BNB-System'!G81 -> 15 | F85: ='Bewertung durch Anwender'!G85 -> 0 | G85: ='Bewertung durch Anwender'!N85 -> 0
B86: ='BNB-System'!E82 -> 3.1.7 | C86: ='BNB-System'!F82 -> Aufenthaltsmerkmale im Außenraum | D86: ='BNB-System'!G82 -> 100 | E86: ='BNB-System'!J82 -> 0.01666666667 | F86: ='Bewertung durch Anwender'!G86 -> 0 | G86: ='Bewertung durch Anwender'!N86 -> 0 | H86: =SUM(H87:H90) -> 0 | L86: ='BNB-System'!K82 -> 200 | M86: =IF(ISNUMBER(G86*E86/100),G86*E86/100,0) -> 0 | N86: =IF(ISNUMBER(H86*E86/100),H86*E86/100,0) -> 0
C87: ='BNB-System'!F83 -> Anzahl und Vielfalt Sitzgelegenheiten | D87: ='BNB-System'!G83 -> 30 | F87: ='Bewertung durch Anwender'!G87 -> 0 | G87: ='Bewertung durch Anwender'!N87 -> 0
C88: ='BNB-System'!F84 -> Anzahlund Vielfalt der Spiel- und Sportmöglichkeiten | D88: ='BNB-System'!G84 -> 15 | F88: ='Bewertung durch Anwender'!G88 -> 0 | G88: ='Bewertung durch Anwender'!N88 -> 0
C89: ='BNB-System'!F85 -> Zuordnung von Freibereichen zu Innenräumen | D89: ='BNB-System'!G85 -> 20 | F89: ='Bewertung durch Anwender'!G89 -> 0 | G89: ='Bewertung durch Anwender'!N89 -> 0
C90: ='BNB-System'!F86 -> Ausstattungsmerkmale | D90: ='BNB-System'!G86 -> 39 | F90: ='Bewertung durch Anwender'!G90 -> 0 | G90: ='Bewertung durch Anwender'!N90 -> 0
B91: ='BNB-System'!E87 -> 3.1.8 | C91: ='BNB-System'!F87 -> Sicherheit | D91: ='BNB-System'!G87 -> 100 | E91: ='BNB-System'!J87 -> 0.008333333333 | F91: ='Bewertung durch Anwender'!G91 -> 0 | G91: ='Bewertung durch Anwender'!N91 -> 0 | L91: ='BNB-System'!K87 -> 100 | M91: =IF(ISNUMBER(G91*E91/100),G91*E91/100,0) -> 0 | N91: =IF(ISNUMBER(H91*E91/100),H91*E91/100,0) -> 0
B92: ='BNB-System'!E88 -> 3.1.9 | C92: ='BNB-System'!F88 -> Innenraumqualität | D92: ='BNB-System'!G88 -> 100 | F92: ='Bewertung durch Anwender'!G92 -> 0 | G92: ='Bewertung durch Anwender'!N92 -> 0 | H92: =SUM(H93:H96) -> 0 | L92: ='BNB-System'!K88 -> 300 | M92: =IF(ISNUMBER(G92*E92/100),G92*E92/100,0) -> 0 | N92: =IF(ISNUMBER(H92*E92/100),H92*E92/100,0) -> 0
C93: ='BNB-System'!F89 -> Aufenthaltsqualitäten der Erschließungsflächen | D93: ='BNB-System'!G89 -> 45 | F93: ='Bewertung durch Anwender'!G93 -> 0 | G93: ='Bewertung durch Anwender'!N93 -> 0
C94: ='BNB-System'!F90 -> Innere Sitzbeziehung | D94: ='BNB-System'!G90 -> 15 | F94: ='Bewertung durch Anwender'!G94 -> 0 | G94: ='Bewertung durch Anwender'!N94 -> 0
C95: ='BNB-System'!F91 -> Flexibilität der Raumnutzung | D95: ='BNB-System'!G91 -> 30 | F95: ='Bewertung durch Anwender'!G95 -> 0 | G95: ='Bewertung durch Anwender'!N95 -> 0
C96: ='BNB-System'!F92 -> Aufbewahrungsmöglichkeiten | D96: ='BNB-System'!G92 -> 40 | F96: ='Bewertung durch Anwender'!G96 -> 0 | G96: ='Bewertung durch Anwender'!N96 -> 0
C97: ='BNB-System'!F93 -> Funktionalität
B98: ='BNB-System'!E94 -> 3.2.1 | C98: ='BNB-System'!F94 -> Barrierefreiheit | D98: ='BNB-System'!G94 -> 100 | E98: ='BNB-System'!J94 -> 0.01666666667 | F98: ='Bewertung durch Anwender'!G98 -> 0 | G98: ='Bewertung durch Anwender'!N98 -> 0 | L98: ='BNB-System'!K94 -> 200 | M98: =IF(ISNUMBER(G98*E98/100),G98*E98/100,0) -> 0 | N98: 0
B99: ='BNB-System'!E95 -> 3.2.4 | C99: ='BNB-System'!F95 -> Zugänglichkeit | D99: ='BNB-System'!G95 -> 100 | E99: ='BNB-System'!J95 -> 0.01666666667 | F99: ='Bewertung durch Anwender'!G99 -> 0 | G99: ='Bewertung durch Anwender'!N99 -> 0 | H99: =SUM(H100:H103) -> 0 | L99: ='BNB-System'!K95 -> 200 | M99: =IF(ISNUMBER(G99*E99/100),G99*E99/100,0) -> 0 | N99: =IF(ISNUMBER(H99*E99/100),H99*E99/100,0) -> 0
C100: ='BNB-System'!F96 -> Grundsätzliche öffentliche Zugänglichkeit des Gebäudes | D100: ='BNB-System'!G96 -> 20 | F100: ='Bewertung durch Anwender'!G100 -> 0 | G100: ='Bewertung durch Anwender'!N100 -> 0
C101: ='BNB-System'!F97 -> Qualitative Merkmale der öffentlichen Zugänglichkeit des Gebäudes | D101: ='BNB-System'!G97 -> 50 | F101: ='Bewertung durch Anwender'!G101 -> 0 | G101: ='Bewertung durch Anwender'!N101 -> 0
C102: ='BNB-System'!F98 -> Nutzungsmerkmale der Zugänglichkeit | D102: ='BNB-System'!G98 -> 50 | F102: ='Bewertung durch Anwender'!G102 -> 0 | G102: ='Bewertung durch Anwender'!N102 -> 0
C103: ='BNB-System'!F99 -> Qualitative Aspekte der öffentlichen Zugänglichkeit der Freiflächen | D103: ='BNB-System'!G99 -> 20 | F103: ='Bewertung durch Anwender'!G103 -> 0 | G103: ='Bewertung durch Anwender'!N103 -> 0
B104: ='BNB-System'!E100 -> 3.2.5 | C104: ='BNB-System'!F100 -> Mobilitätsinfrastruktur | D104: ='BNB-System'!G100 -> 100 | E104: ='BNB-System'!J100 -> 0.008333333333 | F104: ='Bewertung durch Anwender'!G104 -> 0 | G104: ='Bewertung durch Anwender'!N104 -> 0 | H104: =SUM(H105:H107) -> 0 | L104: ='BNB-System'!K100 -> 100 | M104: =IF(ISNUMBER(G104*E104/100),G104*E104/100,0) -> 0 | N104: =IF(ISNUMBER(H104*E104/100),H104*E104/100,0) -> 0
C105: ='BNB-System'!F101 -> Anzahl der Fahrradstellplätze | F105: ='Bewertung durch Anwender'!G105 -> 0 | G105: ='Bewertung durch Anwender'!N105 -> 0
C106: ='BNB-System'!F102 -> Anzahl der Lademöglichkeiten und Carsharing-Stellplätze | F106: ='Bewertung durch Anwender'!G106 -> 0 | G106: ='Bewertung durch Anwender'!N106 -> 0
C107: ='BNB-System'!F103 -> Qualitative Anforderungen an Fahrradstellplätze | F107: ='Bewertung durch Anwender'!G107 -> 0 | G107: ='Bewertung durch Anwender'!N107 -> 0
C108: ='BNB-System'!F104 -> Sicherung der Gestaltungsqualität
B109: ='BNB-System'!E105 -> 3.3.1 | C109: ='BNB-System'!F105 -> Gestalterische und städtebauliche Qualität | D109: ='BNB-System'!G105 -> 100 | E109: ='BNB-System'!J105 -> 0.025 | F109: ='Bewertung durch Anwender'!G109 -> 0 | G109: ='Bewertung durch Anwender'!N109 -> 0 | H109: =SUM(H110:H116) -> 0 | L109: ='BNB-System'!K105 -> 300 | M109: =IF(ISNUMBER(G109*E109/100),G109*E109/100,0) -> 0 | N109: =IF(ISNUMBER(H109*E109/100),H109*E109/100,0) -> 0
C110: ='BNB-System'!F106 -> Durchführung von Planungswettbewerben | D110: ='BNB-System'!G106 -> 20 | F110: ='Bewertung durch Anwender'!G110 -> 0 | G110: ='Bewertung durch Anwender'!N110 -> 0
C111: ='BNB-System'!F107 -> Wettbewerbsverfahren | D111: ='BNB-System'!G107 -> 40 | F111: ='Bewertung durch Anwender'!G111 -> 0 | G111: ='Bewertung durch Anwender'!N111 -> 0
C112: ='BNB-System'!F108 -> Ausführung des Entwurfs eines der Preisträger | D112: ='BNB-System'!G108 -> 30 | F112: ='Bewertung durch Anwender'!G112 -> 0 | G112: ='Bewertung durch Anwender'!N112 -> 0
C113: ='BNB-System'!F109 -> Beauftragung des Planungsteams | D113: ='BNB-System'!G109 -> 10 | F113: ='Bewertung durch Anwender'!G113 -> 0 | G113: ='Bewertung durch Anwender'!N113 -> 0
C114: ='BNB-System'!F110 -> Auszeichnung mit einem Architekturpreis | D114: ='BNB-System'!G110 -> 60 | F114: ='Bewertung durch Anwender'!G114 -> 0 | G114: ='Bewertung durch Anwender'!N114 -> 0
C115: ='BNB-System'!F111 -> Unabhängiges Expertengremium | D115: ='BNB-System'!G111 -> 40 | F115: ='Bewertung durch Anwender'!G115 -> 0 | G115: ='Bewertung durch Anwender'!N115 -> 0
C116: ='BNB-System'!F112 -> Sonderfall Mindestanforderung | D116: ='BNB-System'!G112 -> 10 | F116: ='Bewertung durch Anwender'!G116 -> 0 | G116: ='Bewertung durch Anwender'!N116 -> 0
B117: ='BNB-System'!E113 -> 3.3.2 | C117: ='BNB-System'!F113 -> Kunst am Bau | D117: ='BNB-System'!G113 -> 100 | E117: ='BNB-System'!J113 -> 0.008333333333 | F117: ='Bewertung durch Anwender'!G117 -> 0 | G117: ='Bewertung durch Anwender'!N117 -> 0 | H117: =SUM(H118:H121) -> 0 | L117: ='BNB-System'!K113 -> 100 | M117: =IF(ISNUMBER(G117*E117/100),G117*E117/100,0) -> 0 | N117: =IF(ISNUMBER(H117*E117/100),H117*E117/100,0) -> 0
C118: ='BNB-System'!F114 -> Mindestanforderung | D118: ='BNB-System'!G114 -> 10 | F118: ='Bewertung durch Anwender'!G118 -> 0 | G118: ='Bewertung durch Anwender'!N118 -> 0
C119: ='BNB-System'!F115 -> Bereitstellung von Mitteln im Rahmen der Bauaufgabe | D119: ='BNB-System'!G115 -> 30 | F119: ='Bewertung durch Anwender'!G119 -> 0 | G119: ='Bewertung durch Anwender'!N119 -> 0
C120: ='BNB-System'!F116 -> Umsetzung des Leitfadens Kunst am Bau | D120: ='BNB-System'!G116 -> 40 | F120: ='Bewertung durch Anwender'!G120 -> 0 | G120: ='Bewertung durch Anwender'!N120 -> 0
C121: ='BNB-System'!F117 -> Öffentlichkeitsarbeit, Rezeption der Kunst am Bau | D121: ='BNB-System'!G117 -> 20 | F121: ='Bewertung durch Anwender'!G121 -> 0 | G121: ='Bewertung durch Anwender'!N121 -> 0
B123: ='BNB-System'!E119 -> Technische Qualität | E123: ='BNB-System'!J119 -> 0.225 | F123: ='Bewertung durch Anwender'!G123 -> 0 | G123: ='Bewertung durch Anwender'!N123 -> 0 | H123: =H126*($E$126/100)+H131*($E$131/100)+H138*($E$138/100)+H149*($E$149/100)+H150*($E$150/100)+H151*($E$151/100) -> 0 | L123: ='BNB-System'!K119 -> 1000
C125: ='BNB-System'!F121 -> technische Ausführung
B126: ='BNB-System'!E122 -> 4.1.1 | C126: ='BNB-System'!F122 -> Schallschutz | D126: ='BNB-System'!G122 -> 100 | E126: ='BNB-System'!J122 -> 0.045 | F126: ='Bewertung durch Anwender'!G126 -> 0 | G126: ='Bewertung durch Anwender'!N126 -> 0 | H126: =SUM(H127:H130) -> 0 | L126: ='BNB-System'!K122 -> 200 | M126: =IF(ISNUMBER(G126*E126/100),G126*E126/100,0) -> 0 | N126: =IF(ISNUMBER(H126*E126/100),H126*E126/100,0) -> 0
C127: ='BNB-System'!F123 -> Luftschallschutz gegenüber Außenlärm | D127: ='BNB-System'!G123 -> 20 | F127: ='Bewertung durch Anwender'!G127 -> 0 | G127: ='Bewertung durch Anwender'!N127 -> 0
C128: ='BNB-System'!F124 -> Luftschallschutz | D128: ='BNB-System'!G124 -> 30 | F128: ='Bewertung durch Anwender'!G128 -> 0 | G128: ='Bewertung durch Anwender'!N128 -> 0
C129: ='BNB-System'!F125 -> Trittschallschutz | D129: ='BNB-System'!G125 -> 30 | F129: ='Bewertung durch Anwender'!G129 -> 0 | G129: ='Bewertung durch Anwender'!N129 -> 0
C130: ='BNB-System'!F126 -> Schallschutz gegenüber haustechnischen Anlagen | D130: ='BNB-System'!G126 -> 20 | F130: ='Bewertung durch Anwender'!G130 -> 0 | G130: ='Bewertung durch Anwender'!N130 -> 0
B131: ='BNB-System'!E127 -> 4.1.2 | C131: ='BNB-System'!F127 -> Wärme- und Tauwasserschutz | D131: ='BNB-System'!G127 -> 100 | E131: ='BNB-System'!J127 -> 0.045 | F131: ='Bewertung durch Anwender'!G131 -> 0 | G131: ='Bewertung durch Anwender'!N131 -> 0 | H131: =SUM(H132:H137) -> 0 | L131: ='BNB-System'!K127 -> 200 | M131: =IF(ISNUMBER(G131*E131/100),G131*E131/100,0) -> 0 | N131: =IF(ISNUMBER(H131*E131/100),H131*E131/100,0) -> 0
C132: ='BNB-System'!F128 -> Mittlere Wärmeduchgangskoeffizienten | D132: ='BNB-System'!G128 -> 30 | F132: ='Bewertung durch Anwender'!G132 -> 0 | G132: ='Bewertung durch Anwender'!N132 -> 0
C133: ='BNB-System'!F129 -> Wärmebrückenzuschlag | D133: ='BNB-System'!G129 -> 15 | F133: ='Bewertung durch Anwender'!G133 -> 0 | G133: ='Bewertung durch Anwender'!N133 -> 0
C134: ='BNB-System'!F130 -> Klassen der Luftdurchlässigkeit (Fugendurchlässigkeit) | D134: ='BNB-System'!G130 -> 15 | F134: ='Bewertung durch Anwender'!G134 -> 0 | G134: ='Bewertung durch Anwender'!N134 -> 0
C135: ='BNB-System'!F131 -> Tauwasserbildung | D135: ='BNB-System'!G131 -> 10 | F135: ='Bewertung durch Anwender'!G135 -> 0 | G135: ='Bewertung durch Anwender'!N135 -> 0
C136: ='BNB-System'!F132 -> Luftwechsel | D136: ='BNB-System'!G132 -> 15 | F136: ='Bewertung durch Anwender'!G136 -> 0 | G136: ='Bewertung durch Anwender'!N136 -> 0
C137: ='BNB-System'!F133 -> Sonneneintragswert | D137: ='BNB-System'!G133 -> 15 | F137: ='Bewertung durch Anwender'!G137 -> 0 | G137: ='Bewertung durch Anwender'!N137 -> 0
B138: ='BNB-System'!E134 -> 4.1.3 | C138: ='BNB-System'!F134 -> Reinigungs- und Instandhaltungsfreundlichkeit | D138: ='BNB-System'!G134 -> 100 | E138: ='BNB-System'!J134 -> 0.045 | F138: ='Bewertung durch Anwender'!G138 -> 0 | G138: ='Bewertung durch Anwender'!N138 -> 0 | H138: =SUM(H139:H148) -> 0 | L138: ='BNB-System'!K134 -> 200 | M138: =IF(ISNUMBER(G138*E138/100),G138*E138/100,0) -> 0 | N138: =IF(ISNUMBER(#REF!*E138/100),#REF!*E138/100,0) -> 0
C139: ='BNB-System'!F135 -> Tragkonstruktion | D139: ='BNB-System'!G135 -> 15 | F139: ='Bewertung durch Anwender'!G139 -> 0 | G139: ='Bewertung durch Anwender'!N139 -> 0
C140: ='BNB-System'!F136 -> Zugänglichkeit der Außenanlagen | D140: ='BNB-System'!G136 -> 12 | F140: ='Bewertung durch Anwender'!G140 -> 0 | G140: ='Bewertung durch Anwender'!N140 -> 0
C141: ='BNB-System'!F137 -> Außenbauteile | D141: ='BNB-System'!G137 -> 9 | F141: ='Bewertung durch Anwender'!G141 -> 0 | G141: ='Bewertung durch Anwender'!N141 -> 0
C142: ='BNB-System'!F138 -> Bodenbelag | D142: ='BNB-System'!G138 -> 9 | F142: ='Bewertung durch Anwender'!G142 -> 0 | G142: ='Bewertung durch Anwender'!N142 -> 0
C143: ='BNB-System'!F139 -> Schmutzfangzone | D143: ='BNB-System'!G139 -> 9 | F143: ='Bewertung durch Anwender'!G143 -> 0 | G143: ='Bewertung durch Anwender'!N143 -> 0
C144: ='BNB-System'!F140 -> Fußbodenleisten | D144: ='BNB-System'!G140 -> 9 | F144: ='Bewertung durch Anwender'!G144 -> 0 | G144: ='Bewertung durch Anwender'!N144 -> 0
C145: ='BNB-System'!F141 -> Hindernisfreie Grundrissgestaltung | D145: ='BNB-System'!G141 -> 9 | F145: ='Bewertung durch Anwender'!G145 -> 0 | G145: ='Bewertung durch Anwender'!N145 -> 0
C146: ='BNB-System'!F142 -> Einbauten | D146: ='BNB-System'!G142 -> 10 | F146: ='Bewertung durch Anwender'!G146 -> 0 | G146: ='Bewertung durch Anwender'!N146 -> 0
C147: ='BNB-System'!F143 -> Zugänglichkeit der Innenglasflächen | D147: ='BNB-System'!G143 -> 9 | F147: ='Bewertung durch Anwender'!G148 -> 0 | G147: ='Bewertung durch Anwender'!N148 -> 0
C148: ='BNB-System'!F144 -> Wände | D148: ='BNB-System'!G144 -> 9 | F148: ='Bewertung durch Anwender'!G148 -> 0 | G148: ='Bewertung durch Anwender'!N148 -> 0
B149: ='BNB-System'!E145 -> 4.1.4 | C149: ='BNB-System'!F145 -> Rückbau, Trennung und Verwertung | D149: ='BNB-System'!G145 -> 100 | E149: ='BNB-System'!J145 -> 0.045 | F149: ='Bewertung durch Anwender'!G149 -> 0 | G149: ='Bewertung durch Anwender'!N149 -> 0 | L149: ='BNB-System'!K145 -> 200 | M149: =IF(ISNUMBER(G149*E149/100),G149*E149/100,0) -> 0 | N149: =IF(ISNUMBER(H149*E149/100),H149*E149/100,0) -> 0
B150: ='BNB-System'!E146 -> 4.1.5 | C150: ='BNB-System'!F146 -> Widerstandsfähigkeit gegen Naturgefahren | D150: ='BNB-System'!G146 -> 100 | E150: ='BNB-System'!J146 -> 0.0225 | F150: ='Bewertung durch Anwender'!G150 -> 0 | G150: ='Bewertung durch Anwender'!N150 -> 0 | L150: ='BNB-System'!K146 -> 100 | M150: =IF(ISNUMBER(G150*E150/100),G150*E150/100,0) -> 0 | N150: =IF(ISNUMBER(H150*E150/100),H150*E150/100,0) -> 0
B151: ='BNB-System'!E147 -> 4.1.6 | C151: ='BNB-System'!F147 -> Bedienungs- und Instandhaltungsfreundlichkeit der TGA | D151: ='BNB-System'!G147 -> 100 | E151: ='BNB-System'!J147 -> 0.0225 | F151: ='Bewertung durch Anwender'!G151 -> 0 | G151: ='Bewertung durch Anwender'!N151 -> 0 | H151: =SUM(H152:H158) -> 0 | L151: ='BNB-System'!K147 -> 100 | M151: =IF(ISNUMBER(G151*E151/100),G151*E151/100,0) -> 0 | N151: =IF(ISNUMBER(H151*E151/100),H151*E151/100,0) -> 0
C152: ='BNB-System'!F148 -> KG 410 Abwasser-, Wasser-, Gasanlagen | D152: ='BNB-System'!G148 -> 12 | F152: ='Bewertung durch Anwender'!G159 -> 0 | G152: ='Bewertung durch Anwender'!N159 -> 0
C153: ='BNB-System'!F149 -> KG 420 Wärmeversorgungsanlagen | D153: ='BNB-System'!G149 -> 15 | F153: ='Bewertung durch Anwender'!G160 -> 0 | G153: ='Bewertung durch Anwender'!N160 -> 0
C154: ='BNB-System'!F150 -> KG 430 Lufttechnische Anlagen | D154: ='BNB-System'!G150 -> 18 | F154: ='Bewertung durch Anwender'!G161 -> 0 | G154: ='Bewertung durch Anwender'!N161 -> 0
C155: ='BNB-System'!F151 -> KG 435 Kälteversorgungsanlagen | D155: ='BNB-System'!G151 -> 15 | F155: ='Bewertung durch Anwender'!G162 -> 0 | G155: ='Bewertung durch Anwender'!N162 -> 0
C156: ='BNB-System'!F152 -> KG 440 Starkstromanlagen | D156: ='BNB-System'!G152 -> 24 | F156: ='Bewertung durch Anwender'!G163 -> 0 | G156: ='Bewertung durch Anwender'!N163 -> 0
C157: ='BNB-System'!F153 -> KG 460 Förderanlagen | D157: ='BNB-System'!G153 -> 4 | F157: ='Bewertung durch Anwender'!G164 -> 0 | G157: ='Bewertung durch Anwender'!N164 -> 0
C158: ='BNB-System'!F154 -> KG 480 Gebäudeautomation | D158: ='BNB-System'!G154 -> 25 | F158: ='Bewertung durch Anwender'!G165 -> 0 | G158: ='Bewertung durch Anwender'!N165 -> 0
B160: ='BNB-System'!E156 -> Prozessqualität | E160: ='BNB-System'!J156 -> 0.1 | F160: ='Bewertung durch Anwender'!G160 -> 0 | G160: ='Bewertung durch Anwender'!N160 -> 0 | H160: =H163*($E$163/100)+H167*($E$167/100)+H173*($E$173/100)+H189*($E$189/100)+H190*($E$190/100)+H196*($E$196/100)+H201*($E$201/100)+H204*($E$204/100) -> 0 | L160: ='BNB-System'!K156 -> 2100
C162: ='BNB-System'!F158 -> Planung
B163: ='BNB-System'!E159 -> 5.1.1 | C163: ='BNB-System'!F159 -> Projektvorbereitung | D163: ='BNB-System'!G159 -> 100 | E163: ='BNB-System'!J159 -> 0.01428571429 | F163: ='Bewertung durch Anwender'!G163 -> 0 | G163: ='Bewertung durch Anwender'!N163 -> 0 | H163: =SUM(H164:H166) -> 0 | L163: ='BNB-System'!K159 -> 300 | M163: =IF(ISNUMBER(G163*E163/100),G163*E163/100,0) -> 0 | N163: =IF(ISNUMBER(H163*E163/100),H163*E163/100,0) -> 0
C164: ='BNB-System'!F160 -> Bedarfsplanung oder vergleichbare Planung | D164: ='BNB-System'!G160 -> 35 | F164: ='Bewertung durch Anwender'!G164 -> 0 | G164: ='Bewertung durch Anwender'!N164 -> 0
C165: ='BNB-System'!F161 -> Zielvereinbarung | D165: ='BNB-System'!G161 -> 35 | F165: ='Bewertung durch Anwender'!G165 -> 0 | G165: ='Bewertung durch Anwender'!N165 -> 0
C166: ='BNB-System'!F162 -> Architektenwettbewerb | D166: ='BNB-System'!G162 -> 30 | F166: ='Bewertung durch Anwender'!G166 -> 0 | G166: ='Bewertung durch Anwender'!N166 -> 0
B167: ='BNB-System'!E163 -> 5.1.2 | C167: ='BNB-System'!F163 -> Integrale Planung | D167: ='BNB-System'!G163 -> 100 | E167: ='BNB-System'!J163 -> 0.01428571429 | F167: ='Bewertung durch Anwender'!G167 -> 0 | G167: ='Bewertung durch Anwender'!N167 -> 0 | H167: =SUM(H168:H172) -> 0 | L167: ='BNB-System'!K163 -> 300 | M167: =IF(ISNUMBER(G167*E167/100),G167*E167/100,0) -> 0 | N167: =IF(ISNUMBER(H167*E167/100),H167*E167/100,0) -> 0
C168: ='BNB-System'!F164 -> Interdisziplinäres Planungsteam | D168: ='BNB-System'!G164 -> 20 | F168: ='Bewertung durch Anwender'!G168 -> 0 | G168: ='Bewertung durch Anwender'!N168 -> 0
C169: ='BNB-System'!F165 -> Qualifikation des Planungsteams | D169: ='BNB-System'!G165 -> 20 | F169: ='Bewertung durch Anwender'!G169 -> 0 | G169: ='Bewertung durch Anwender'!N169 -> 0
C170: ='BNB-System'!F166 -> Integraler Planungsprozess | D170: ='BNB-System'!G166 -> 20 | F170: ='Bewertung durch Anwender'!G170 -> 0 | G170: ='Bewertung durch Anwender'!N170 -> 0
C171: ='BNB-System'!F167 -> Nutzerbeteiligung | D171: ='BNB-System'!G167 -> 30 | F171: ='Bewertung durch Anwender'!G171 -> 0 | G171: ='Bewertung durch Anwender'!N171 -> 0
C172: ='BNB-System'!F168 -> Öffentlichkeitsbeteiligung | D172: ='BNB-System'!G168 -> 10 | F172: ='Bewertung durch Anwender'!G172 -> 0 | G172: ='Bewertung durch Anwender'!N172 -> 0
B173: ='BNB-System'!E169 -> 5.1.3 | C173: ='BNB-System'!F169 -> Komplexität und Optimierung der Planung | D173: ='BNB-System'!G169 -> 100 | E173: ='BNB-System'!J169 -> 0.01428571429 | F173: ='Bewertung durch Anwender'!G173 -> 0 | G173: ='Bewertung durch Anwender'!N173 -> 0 | H173: =IF(SUM(H174:H188)>100,100,SUM(H174:H188)) -> 0 | L173: ='BNB-System'!K169 -> 300 | M173: =IF(ISNUMBER(G173*E173/100),G173*E173/100,0) -> 0 | N173: =IF(ISNUMBER(H173*E173/100),H173*E173/100,0) -> 0
C174: ='BNB-System'!F170 -> SiGe-Plan | D174: ='BNB-System'!G170 -> 10 | F174: ='Bewertung durch Anwender'!G174 -> 0 | G174: ='Bewertung durch Anwender'!N174 -> 0
C175: ='BNB-System'!F171 -> Ver- und Entsiegelungskonzept | D175: ='BNB-System'!G171 -> 10 | F175: ='Bewertung durch Anwender'!G175 -> 0 | G175: ='Bewertung durch Anwender'!N175 -> 0
C176: ='BNB-System'!F172 -> Energiekonzept | D176: ='BNB-System'!G172 -> 15 | F176: ='Bewertung durch Anwender'!G176 -> 0 | G176: ='Bewertung durch Anwender'!N176 -> 0
C177: ='BNB-System'!F173 -> Mess- und Monitoringkonzept | D177: ='BNB-System'!G173 -> 15 | F177: ='Bewertung durch Anwender'!G177 -> 0 | G177: ='Bewertung durch Anwender'!N177 -> 0
C178: ='BNB-System'!F174 -> Wasserkonzept | D178: ='BNB-System'!G174 -> 10 | F178: ='Bewertung durch Anwender'!G178 -> 0 | G178: ='Bewertung durch Anwender'!N178 -> 0
C179: ='BNB-System'!F175 -> Konzept zur Vermeidung von Umwelt- und Gesundheitsrisiken aus Bauprodukten | D179: ='BNB-System'!G175 -> 10 | F179: ='Bewertung durch Anwender'!G179 -> 0 | G179: ='Bewertung durch Anwender'!N179 -> 0
C180: ='BNB-System'!F176 -> Lüftungskonzept | D180: ='BNB-System'!G176 -> 10 | F180: ='Bewertung durch Anwender'!G180 -> 0 | G180: ='Bewertung durch Anwender'!N180 -> 0
C181: ='BNB-System'!F177 -> Abfallkonzept / Wertstoffkonzept | D181: ='BNB-System'!G177 -> 5 | F181: ='Bewertung durch Anwender'!G181 -> 0 | G181: ='Bewertung durch Anwender'!N181 -> 0
C182: ='BNB-System'!F178 -> Tages- / Kunstlichtoptimierung | D182: ='BNB-System'!G178 -> 10 | F182: ='Bewertung durch Anwender'!G182 -> 0 | G182: ='Bewertung durch Anwender'!N182 -> 0
C183: ='BNB-System'!F179 -> Konzept zur Sicherung der Reinigungs- und Instandhaltungsfreundlichkeit | D183: ='BNB-System'!G179 -> 10 | F183: ='Bewertung durch Anwender'!G183 -> 0 | G183: ='Bewertung durch Anwender'!N183 -> 0
C184: ='BNB-System'!F180 -> Anpassbarkeits-, Rückbau- und Recyclingkonzept | D184: ='BNB-System'!G180 -> 10 | F184: ='Bewertung durch Anwender'!G184 -> 0 | G184: ='Bewertung durch Anwender'!N184 -> 0
C185: ='BNB-System'!F181 -> Konzept zur Vermeidung und Beherrschung von Risiken | D185: ='BNB-System'!G181 -> 10 | F185: ='Bewertung durch Anwender'!G185 -> 0 | G185: ='Bewertung durch Anwender'!N185 -> 0
C186: ='BNB-System'!F182 -> Sonstige Konzepte zum Nachhaltigen Bauen | D186: ='BNB-System'!G182 -> 10 | F186: ='Bewertung durch Anwender'!G186 -> 0 | G186: ='Bewertung durch Anwender'!N186 -> 0
C187: ='BNB-System'!F183 -> Prüfung der Planungsunterlagen durch unabhängige Dritte | D187: ='BNB-System'!G183 -> 5 | F187: ='Bewertung durch Anwender'!G187 -> 0 | G187: ='Bewertung durch Anwender'!N187 -> 0
C188: ='BNB-System'!F184 -> Durchführung von Variantenvergleichen | D188: ='BNB-System'!G184 -> 10 | F188: ='Bewertung durch Anwender'!G188 -> 0 | G188: ='Bewertung durch Anwender'!N188 -> 0
B189: ='BNB-System'!E185 -> 5.1.4 | C189: ='BNB-System'!F185 -> Ausschreibung und Vergabe | D189: ='BNB-System'!G185 -> 100 | E189: ='BNB-System'!J185 -> 0.009523809524 | F189: ='Bewertung durch Anwender'!G189 -> 0 | G189: ='Bewertung durch Anwender'!N189 -> 0 | L189: ='BNB-System'!K185 -> 200 | M189: =IF(ISNUMBER(G189*E189/100),G189*E189/100,0) -> 0 | N189: =IF(ISNUMBER(H189*E189/100),H189*E189/100,0) -> 0
B190: ='BNB-System'!E186 -> 5.1.5 | C190: ='BNB-System'!F186 -> Voraussetzungen für eine optimale Bewirtschaftung | D190: ='BNB-System'!G186 -> 100 | E190: ='BNB-System'!J186 -> 0.009523809524 | F190: ='Bewertung durch Anwender'!G190 -> 0 | G190: ='Bewertung durch Anwender'!N190 -> 0 | H190: =SUM(H191:H194) -> 0 | L190: ='BNB-System'!K186 -> 200 | M190: =IF(ISNUMBER(G190*E190/100),G190*E190/100,0) -> 0 | N190: =IF(ISNUMBER(H190*E190/100),H190*E190/100,0) -> 0
C191: ='BNB-System'!F187 -> Erstellung einer Gebäudeakte / Objektdokumentation | D191: ='BNB-System'!G187 -> 25 | F191: ='Bewertung durch Anwender'!G191 -> 0 | G191: ='Bewertung durch Anwender'!N191 -> 0
C192: ='BNB-System'!F188 -> Erstellung von Wartungs-, Inspektions-, Betriebs-, und Pflegeanleitungen | D192: ='BNB-System'!G188 -> 25 | F192: ='Bewertung durch Anwender'!G192 -> 0 | G192: ='Bewertung durch Anwender'!N192 -> 0
C193: ='BNB-System'!F189 -> Anpassung der Pläne und Berechnungen an das realisierte Gebäude | D193: ='BNB-System'!G189 -> 25 | F193: ='Bewertung durch Anwender'!G193 -> 0 | G193: ='Bewertung durch Anwender'!N193 -> 0
C194: ='BNB-System'!F190 -> Erstellung eines Nutzerhandbuches | D194: ='BNB-System'!G190 -> 25 | F194: ='Bewertung durch Anwender'!G194 -> 0 | G194: ='Bewertung durch Anwender'!N194 -> 0
C195: ='BNB-System'!F191 -> Bauausführung
B196: ='BNB-System'!E192 -> 5.2.1 | C196: ='BNB-System'!F192 -> Baustelle / Bauprozess | D196: ='BNB-System'!G192 -> 100 | E196: ='BNB-System'!J192 -> 0.009523809524 | F196: ='Bewertung durch Anwender'!G196 -> 0 | G196: ='Bewertung durch Anwender'!N196 -> 0 | H196: =SUM(H197:H200) -> 0 | L196: ='BNB-System'!K192 -> 200 | M196: =IF(ISNUMBER(G196*E196/100),G196*E196/100,0) -> 0 | N196: =IF(ISNUMBER(H196*E196/100),H196*E196/100,0) -> 0
C197: ='BNB-System'!F193 -> Wertstoffoptimierte Baustelle | D197: ='BNB-System'!G193 -> 25 | F197: ='Bewertung durch Anwender'!G197 -> 0 | G197: ='Bewertung durch Anwender'!N197 -> 0
C198: ='BNB-System'!F194 -> Lärmarme Baustelle | D198: ='BNB-System'!G194 -> 25 | F198: ='Bewertung durch Anwender'!G198 -> 0 | G198: ='Bewertung durch Anwender'!N198 -> 0
C199: ='BNB-System'!F195 -> Staubarme Baustelle | D199: ='BNB-System'!G195 -> 25 | F199: ='Bewertung durch Anwender'!G199 -> 0 | G199: ='Bewertung durch Anwender'!N199 -> 0
C200: ='BNB-System'!F196 -> Bodenschutz auf der Baustelle | D200: ='BNB-System'!G196 -> 25 | F200: ='Bewertung durch Anwender'!G200 -> 0 | G200: ='Bewertung durch Anwender'!N200 -> 0
B201: ='BNB-System'!E197 -> 5.2.2 | C201: ='BNB-System'!F197 -> Qualitätssicherung der Bauausführung | D201: ='BNB-System'!G197 -> 100 | E201: ='BNB-System'!J197 -> 0.01428571429 | F201: ='Bewertung durch Anwender'!G201 -> 0 | G201: ='Bewertung durch Anwender'!N201 -> 0 | H201: =SUM(H202:H203) -> 0 | L201: ='BNB-System'!K197 -> 300 | M201: =IF(ISNUMBER(G201*E201/100),G201*E201/100,0) -> 0 | N201: =IF(ISNUMBER(H201*E201/100),H201*E201/100,0) -> 0
C202: ='BNB-System'!F198 -> Dokumentation | D202: ='BNB-System'!G198 -> 50 | F202: ='Bewertung durch Anwender'!G202 -> 0 | G202: ='Bewertung durch Anwender'!N202 -> 0
C203: ='BNB-System'!F199 -> Messungen zur Qualitätskontrolle | D203: ='BNB-System'!G199 -> 50 | F203: ='Bewertung durch Anwender'!G203 -> 0 | G203: ='Bewertung durch Anwender'!N203 -> 0
B204: ='BNB-System'!E200 -> 5.2.3 | C204: ='BNB-System'!F200 -> Systematische Inbetriebnahme | D204: ='BNB-System'!G200 -> 100 | E204: ='BNB-System'!J200 -> 0.01428571429 | F204: ='Bewertung durch Anwender'!G204 -> 0 | G204: ='Bewertung durch Anwender'!N204 -> 0 | L204: ='BNB-System'!K200 -> 300 | M204: =IF(ISNUMBER(G204*E204/100),G204*E204/100,0) -> 0 | N204: =IF(ISNUMBER(H204*E204/100),H204*E204/100,0) -> 0
B207: ='BNB-System'!E203 -> Standortmerkmale | E207: ='BNB-System'!J203 -> 1 | F207: =Zielvereinbarung!G207 -> 0 | G207: ='Bewertung durch Anwender'!N207 -> 0 | H207: =H210*($E$210/100)+H216*($E$216/100)+H223*($E$223/100)+H228*($E$228/100)+H233*($E$233/100)+H244*($E$244/100) -> 0 | L207: ='BNB-System'!K203 -> 1300
C209: ='BNB-System'!F205 -> Standortmerkmale
B210: ='BNB-System'!E206 -> 6.1.1 | C210: ='BNB-System'!F206 -> Risiken am Mikrostandort | D210: ='BNB-System'!G206 -> 100 | E210: ='BNB-System'!J206 -> 0.1538461538 | F210: ='Bewertung durch Anwender'!G210 -> 0 | G210: ='Bewertung durch Anwender'!N210 -> 0 | H210: =SUM(H211:H215) -> 0 | L210: ='BNB-System'!K206 -> 200 | M210: =IF(ISNUMBER(G210*E210/100),G210*E210/100,0) -> 0 | N210: =IF(ISNUMBER(H210*E210/100),H210*E210/100,0) -> 0
C211: ='BNB-System'!F207 -> Risiken aus Man-Made-Hazards (Unfälle) | D211: ='BNB-System'!G207 -> 20 | F211: ='Bewertung durch Anwender'!G211 -> 0 | G211: ='Bewertung durch Anwender'!N211 -> 0
C212: ='BNB-System'!F208 -> Risiken aus Erdbeben | D212: ='BNB-System'!G208 -> 20 | F212: ='Bewertung durch Anwender'!G212 -> 0 | G212: ='Bewertung durch Anwender'!N212 -> 0
C213: ='BNB-System'!F209 -> Risiken aus Lawinen | D213: ='BNB-System'!G209 -> 20 | F213: ='Bewertung durch Anwender'!G213 -> 0 | G213: ='Bewertung durch Anwender'!N213 -> 0
C214: ='BNB-System'!F210 -> Risiken aus Sturm | D214: ='BNB-System'!G210 -> 20 | F214: ='Bewertung durch Anwender'!G214 -> 0 | G214: ='Bewertung durch Anwender'!N214 -> 0
... 34 more rows

Sheet Gültigkeitsliste (hidden)
A1: Erfüllt / nicht erfüllt
A2: o
A3: x

Sheet BNB-System (hidden)
B1: Projekt:
B2: Bewertungssystem Nachhaltiges Bauen (BNB)
B3: Systemvariante Unterrichtsgebäude, Modul Neubau (BNB_UN) - Version 2017
B4: identische Inhalte * | E4: Nachhaltigkeitskriterien | G4: Zielwert max. Punktzahl | H4: Punktzahl | I4: Bedeutungs-faktor | J4: Gewichtung Gesamt-bewertung | K4: Zielwert
E6: Ökologische Qualität | J6: 0.225 | K6: =SUM(K9:K22) -> 1800
F8: Wirkungen auf die globale und lokale Umwelt
E9: 1.1.1 | F9: Treibhauspotenzial (GWP) | G9: 100 | I9: 3 | J9: =K9/$K6*J6 -> 0.0375 | K9: =G9*I9 -> 300
E10: 1.1.2 | F10: Ozonschichtabbaupotenzial (ODP) | G10: 100 | I10: 1 | J10: =K10/K6*J6 -> 0.0125 | K10: 100
E11: 1.1.3 | F11: Ozonbildungspotenzial (POCP) | G11: 100 | I11: 1 | J11: =K11/K6*J6 -> 0.0125 | K11: 100
E12: 1.1.4 | F12: Versauerungspotenzial (AP) | G12: 100 | I12: 1 | J12: =K12/K6*J6 -> 0.0125 | K12: 100
E13: 1.1.5 | F13: Überdüngungspotenzial (EP) | G13: 100 | I13: 1 | J13: =K13/K6*J6 -> 0.0125 | K13: 100
B14: BN | E14: 1.1.6 | F14: Risiken für die lokale Umwelt | G14: 100 | I14: 3 | J14: =K14/K6*J6 -> 0.0375 | K14: 300
B15: BN | E15: 1.1.7 | F15: Nachhaltige Materialgewinnung / Biodiversität | G15: 100 | I15: 1 | J15: =K15/K6*J6 -> 0.0125 | K15: 100
F16: Ressourceninanspruchnahme
E17: 1.2.1 | F17: Primärenergiebedarf | G17: 100 | H17: =IF(SUM(H18:H20)>100,100,SUM(H18:H20)) -> 0 | I17: 3 | J17: =K17/$K6*J6 -> 0.0375 | K17: =G17*I17 -> 300
F18: Primärenergiebedarf nicht erneuerbar (PEne) | G18: 60
F19: Gesamtenergiebedarf (PEges) | G19: 40
F20: Anteil erneuerbarer Primärenergie (PEe) | G20: 20
D21: UK | E21: 1.2.3 | F21: Trinkwasserbedarf und Abwasseraufkommen | G21: 100 | I21: 2 | J21: =K21/$K$6*$J$6 -> 0.025 | K21: =G21*I21 -> 200
B22: BN | E22: 1.2.4 | F22: Flächeninanspruchnahme | G22: 100 | I22: 2 | J22: =K22/$K$6*$J$6 -> 0.025 | K22: =G22*I22 -> 200
E24: Ökonomische Qualität | J24: 0.225 | K24: =SUM(K27:K29) -> 500
F26: Lebenszykluskosten
E27: 2.1.1 | F27: Gebäudebezogene Kosten im Lebenszyklus | G27: 100 | I27: 3 | J27: =K27/$K24*J24 -> 0.135 | K27: =G27*I27 -> 300
F28: Wertentwicklung
E29: 2.2.2 | F29: Anpassungsfähigkeit | G29: 100 | H29: =IF(SUM(H30:H35)>100,100,SUM(H30:H35)) -> 0 | I29: 2 | J29: =K29/$K$24*$J$24 -> 0.09 | K29: =G29*I29 -> 200
F30: Lichte Raumhöhe | G30: 15
F31: Gebäudetiefe | G31: 15
F32: Vertikale Erschlließung | G32: 15
F33: Grundrisse | G33: 25
F34: Konstruktion | G34: 20
F35: Technische Ausstattung | G35: 10
E37: Soziokulturelle und funktionale Qualität | J37: 0.225 | K37: =SUM(K40:K117) -> 2700
F39: Gesundheit, Behaglichkeit und Nutzerzufriedenheit
B40: BN | C40: BK | D40: UK | E40: 3.1.1 | F40: Thermischer Komfort | G40: 100 | H40: =IF(SUM(H42:H50)>100,100,SUM(H42:H50)) -> 0 | I40: 3 | J40: =K40/$K$37*$J$37 -> 0.025 | K40: =G40*I40 -> 300
B41: BN | F41: Winter
B42: BN | F42: Operative Temperatur | G42: 10
B43: BN | F43: Zugluft | G43: 10
B44: BN | F44: Stahlungstemperaturasymmetrie und Fußbodentemperatur | G44: 10
B45: BN | F45: Relative Luftfeuchte | G45: 10
B46: BN | F46: Sommer
B47: BN | F47: Operative Temperatur | G47: 30
B48: BN | F48: Zugluft | G48: 10
B49: BN | F49: Stahlungstemperaturasymmetrie und Fußbodentemperatur | G49: 10
B50: BN | F50: Relative Luftfeuchte | G50: 10
B51: BN | C51: BK | D51: UK | E51: 3.1.3 | F51: Innenraumlufthygiene | G51: 100 | H51: =IF(SUM(H52:H53)>100,100,SUM(H52:H53)) -> 0 | I51: 3 | J51: =K51/$K$37*$J$37 -> 0.025 | K51: =G51*I51 -> 300
B52: BN | C52: BK | D52: UK | F52: Flüchtige organische Stoffe (VOC) und Formaldehyd | G52: 50
B53: BN | C53: BK | D53: UK | F53: Außenluftvolumenstrom | G53: 50
B54: BN | C54: BK | D54: UK | E54: 3.1.4 | F54: Akustischer Komfort | G54: 100 | H54: =IF(SUM(H56:H63)>100,100,SUM(H56:H63)) -> 0 | I54: 2 | J54: =K54/$K$37*$J$37 -> 0.01666666667 | K54: =G54*I54 -> 200
F55: Räume Gruppe A
F56: Musik | G56: 100
F57: Sprache/ Vortrag | G57: 100
F58: Unterricht/ Kommunikation | G58: 100
F59: Sport | G59: 100
F60: Räume Gruppe B
F61: Einzel- und Mehrpersonenbüros bis 100 m3 | G61: 100
F62: Mehrpersonenbüros über 100 m3 | G62: 100
F63: Weitere Räume | G63: 100
D64: UK | E64: 3.1.5 | F64: Visueller Komfort | G64: 100 | H64: =IF(SUM(H65:H71)>100,100,SUM(H65:H71)) -> 0 | I64: 2 | J64: =K64/$K$37*$J$37 -> 0.01666666667 | K64: =G64*I64 -> 200
D65: UK | F65: Tageslichtverfügbarkeit Gesamtgebäude | G65: 15
D66: UK | F66: Tageslichtverfügbarkeit Unterrichtsräume und weitere ständige Arbeitsplätze | G66: 15
D67: UK | F67: Nachweis der Sichtverbindung nach außen | G67: 35
D68: UK | F68: Blendfreiheit Tageslicht | G68: 10
D69: UK | F69: Blendfreiheit Kunstlicht | G69: 5
D70: UK | F70: Lichtverteilung | G70: 20
D71: UK | F71: Farbwiedergabe | G71: 10
D72: UK | E72: 3.1.6 | F72: Einflussnahmemöglichkeiten durch Nutzer | G72: 100 | H72: =IF(SUM(H73:H81)>100,100,SUM(H73:H81)) -> 0 | I72: 2 | J72: =K72/$K$37*$J$37 -> 0.01666666667 | K72: =G72*I72 -> 200
D73: UK | F73: Lüftung | G73: 10
D74: UK | F74: Sonnenschutz | G74: 10
D75: UK | F75: Blendschutz | G75: 10
D76: UK | F76: Temperaturen während der Heizperiode | G76: 10
D77: UK | F77: Temperaturen außerhalb der Heizperiode | G77: 15
D78: UK | F78: Steuerung von Tageslicht | G78: 10
D79: UK | F79: Steuerung von Kunstlicht | G79: 10
D80: UK | F80: Bedienfreundlichkeit | G80: 10
D81: UK | F81: Funktionskonzept der Haustechnik | G81: 15
D82: UK | E82: 3.1.7 | F82: Aufenthaltsmerkmale im Außenraum | G82: 100 | H82: =IF(SUM(H83:H86)>100,100,SUM(H83:H86)) -> 0 | I82: 2 | J82: =K82/$K$37*$J$37 -> 0.01666666667 | K82: =G82*I82 -> 200
F83: Anzahl und Vielfalt Sitzgelegenheiten | G83: 30
F84: Anzahlund Vielfalt der Spiel- und Sportmöglichkeiten | G84: 15
F85: Zuordnung von Freibereichen zu Innenräumen | G85: 20
F86: Ausstattungsmerkmale | G86: 39
B87: BN | C87: BK | D87: UK | E87: 3.1.8 | F87: Sicherheit | G87: 100 | I87: 1 | J87: =K87/$K$37*$J$37 -> 0.008333333333 | K87: =G87*I87 -> 100
D88: UK | E88: 3.1.9 | F88: Innenraumqualität | G88: 100 | I88: 3 | J88: =K88/$K$37*$J$37 -> 0.025 | K88: =G88*I88 -> 300
F89: Aufenthaltsqualitäten der Erschließungsflächen | G89: 45
F90: Innere Sitzbeziehung | G90: 15
F91: Flexibilität der Raumnutzung | G91: 30
F92: Aufbewahrungsmöglichkeiten | G92: 40
F93: Funktionalität
D94: UK | E94: 3.2.1 | F94: Barrierefreiheit | G94: 100 | I94: 2 | J94: =K94/$K$37*$J$37 -> 0.01666666667 | K94: =G94*I94 -> 200
D95: UK | E95: 3.2.4 | F95: Zugänglichkeit | G95: =IF(SUM(G96:G99)>100,100,SUM(G96:G99)) -> 100 | H95: =IF(SUM(H96:H99)>100,100,SUM(H96:H99)) -> 0 | I95: 2 | J95: =K95/$K$37*$J$37 -> 0.01666666667 | K95: =G95*I95 -> 200
F96: Grundsätzliche öffentliche Zugänglichkeit des Gebäudes | G96: 20
F97: Qualitative Merkmale der öffentlichen Zugänglichkeit des Gebäudes | G97: 50
F98: Nutzungsmerkmale der Zugänglichkeit | G98: 50
F99: Qualitative Aspekte der öffentlichen Zugänglichkeit der Freiflächen | G99: 20
B100: BN | C100: BK | D100: UK | E100: 3.2.5 | F100: Mobilitätsinfrastruktur | G100: =IF(SUM(G101:G103)>100,100,SUM(G101:G103)) -> 100 | H100: =IF(SUM(H101:H103)>100,100,SUM(H101:H103)) -> 0 | I100: 1 | J100: =K100/$K$37*$J$37 -> 0.008333333333 | K100: =G100*I100 -> 100
F101: Anzahl der Fahrradstellplätze | G101: 40
F102: Anzahl der Lademöglichkeiten und Carsharing-Stellplätze | G102: 20
F103: Qualitative Anforderungen an Fahrradstellplätze | G103: 60
F104: Sicherung der Gestaltungsqualität
B105: BN | E105: 3.3.1 | F105: Gestalterische und städtebauliche Qualität | G105: =IF(SUM(G106:G112)>100,100,SUM(G106:G112)) -> 100 | H105: =IF(AND(H106>0,H110<=H111),SUM(H106:H109),IF(AND(H106>0,H111<=H110),SUM(H106:H109),IF(H110>0,H110,IF(H111>0,H111,H112)))) -> 0 | I105: 3 | J105: =K105/$K$37*$J$37 -> 0.025 | K105: =G105*I105 -> 300
B106: BN | F106: Durchführung von Planungswettbewerben | G106: 20
B107: BN | F107: Wettbewerbsverfahren | G107: 40
B108: BN | F108: Ausführung des Entwurfs eines der Preisträger | G108: 30
B109: BN | F109: Beauftragung des Planungsteams | G109: 10
B110: BN | F110: Auszeichnung mit einem Architekturpreis | G110: 60
B111: BN | F111: Unabhängiges Expertengremium | G111: 40
B112: BN | F112: Sonderfall Mindestanforderung | G112: 10
B113: BN | E113: 3.3.2 | F113: Kunst am Bau | G113: =IF(SUM(G114:G117)>100,100,SUM(G114:G117)) -> 100 | H113: =IF(SUM(H114:H117)>100,100,SUM(H114:H117)) -> 0 | I113: 1 | J113: =K113/$K$37*$J$37 -> 0.008333333333 | K113: =G113*I113 -> 100
F114: Mindestanforderung | G114: 10
F115: Bereitstellung von Mitteln im Rahmen der Bauaufgabe | G115: 30
F116: Umsetzung des Leitfadens Kunst am Bau | G116: 40
F117: Öffentlichkeitsarbeit, Rezeption der Kunst am Bau | G117: 20
E119: Technische Qualität | J119: 0.225 | K119: =SUM(K122:K147) -> 1000
F121: technische Ausführung
D122: UK | E122: 4.1.1 | F122: Schallschutz | G122: =IF(SUM(G123:G126)>100,100,SUM(G123:G126)) -> 100 | H122: =IF(SUM(H123:H126)>100,100,SUM(H123:H126)) -> 0 | I122: 2 | J122: =K122/$K$119*$J$119 -> 0.045 | K122: =G122*I122 -> 200
F123: Luftschallschutz gegenüber Außenlärm | G123: 20
F124: Luftschallschutz | G124: 30
F125: Trittschallschutz | G125: 30
F126: Schallschutz gegenüber haustechnischen Anlagen | G126: 20
B127: BN | E127: 4.1.2 | F127: Wärme- und Tauwasserschutz | G127: =IF(SUM(G128:G133)>100,100,SUM(G128:G133)) -> 100 | H127: =IF(SUM(H128:H129)>100,100,SUM(H128:H129)) -> 0 | I127: 2 | J127: =K127/$K$119*$J$119 -> 0.045 | K127: =G127*I127 -> 200
F128: Mittlere Wärmeduchgangskoeffizienten | G128: 30
F129: Wärmebrückenzuschlag | G129: 15
F130: Klassen der Luftdurchlässigkeit (Fugendurchlässigkeit) | G130: 15
F131: Tauwasserbildung | G131: 10
F132: Luftwechsel | G132: 15
F133: Sonneneintragswert | G133: 15
D134: UK | E134: 4.1.3 | F134: Reinigungs- und Instandhaltungsfreundlichkeit | G134: =IF(SUM(G135:G144)>100,100,SUM(G135:G144)) -> 100 | H134: =IF(SUM(H135:H144)>100,100,SUM(H135:H144)) -> 0 | I134: 2 | J134: =K134/$K$119*$J$119 -> 0.045 | K134: =G134*I134 -> 200
F135: Tragkonstruktion | G135: 15
F136: Zugänglichkeit der Außenanlagen | G136: 12
F137: Außenbauteile | G137: 9
F138: Bodenbelag | G138: 9
F139: Schmutzfangzone | G139: 9
F140: Fußbodenleisten | G140: 9
F141: Hindernisfreie Grundrissgestaltung | G141: 9
F142: Einbauten | G142: 10
F143: Zugänglichkeit der Innenglasflächen | G143: 9
F144: Wände | G144: 9
B145: BN | C145: BK | D145: UK | E145: 4.1.4 | F145: Rückbau, Trennung und Verwertung | G145: 100 | I145: 2 | J145: =K145/$K$119*$J$119 -> 0.045 | K145: =G145*I145 -> 200
B146: BN | C146: BK | D146: UK | E146: 4.1.5 | F146: Widerstandsfähigkeit gegen Naturgefahren | G146: 100 | I146: 1 | J146: =K146/$K$119*$J$119 -> 0.0225 | K146: =G146*I146 -> 100
B147: BN | C147: BK | D147: UK | E147: 4.1.6 | F147: Bedienungs- und Instandhaltungsfreundlichkeit der TGA | G147: =IF(SUM(G148:G154)>100,100,SUM(G148:G157)) -> 100 | H147: =IF(SUM(H148:H154)>100,100,SUM(H148:H154)) -> 0 | I147: 1 | J147: =K147/$K$119*$J$119 -> 0.0225 | K147: =G147*I147 -> 100
F148: KG 410 Abwasser-, Wasser-, Gasanlagen | G148: 12
F149: KG 420 Wärmeversorgungsanlagen | G149: 15
F150: KG 430 Lufttechnische Anlagen | G150: 18
F151: KG 435 Kälteversorgungsanlagen | G151: 15
F152: KG 440 Starkstromanlagen | G152: 24
F153: KG 460 Förderanlagen | G153: 4
F154: KG 480 Gebäudeautomation | G154: 25
E156: Prozessqualität | J156: 0.1 | K156: =SUM(K159:K200) -> 2100
F158: Planung
D159: UK | E159: 5.1.1 | F159: Projektvorbereitung | G159: =IF(SUM(G160:G162)>100,100,SUM(G160:G162)) -> 100 | H159: =IF(SUM(H160:H162)>100,100,SUM(H160:H162)) -> 0 | I159: 3 | J159: =K159/$K$156*$J$156 -> 0.01428571429 | K159: =G159*I159 -> 300
D160: UK | F160: Bedarfsplanung oder vergleichbare Planung | G160: 35
D161: UK | F161: Zielvereinbarung | G161: 35
D162: UK | F162: Architektenwettbewerb | G162: 30
D163: UK | E163: 5.1.2 | F163: Integrale Planung | G163: =IF(SUM(G164:G168)>100,100,SUM(G164:G168)) -> 100 | H163: =IF(SUM(H164:H168)>100,100,SUM(H164:H168)) -> 0 | I163: 3 | J163: =K163/$K$156*$J$156 -> 0.01428571429 | K163: =G163*I163 -> 300
F164: Interdisziplinäres Planungsteam | G164: 20
F165: Qualifikation des Planungsteams | G165: 20
F166: Integraler Planungsprozess | G166: 20
F167: Nutzerbeteiligung | G167: 30
F168: Öffentlichkeitsbeteiligung | G168: 10
B169: BN | C169: BK | D169: UK | E169: 5.1.3 | F169: Komplexität und Optimierung der Planung | G169: =IF(SUM(G170:G184)>100,100,SUM(G170:G184)) -> 100 | H169: =IF(SUM(H170:H184)>100,100,SUM(H170:H184)) -> 0 | I169: 3 | J169: =K169/$K$156*$J$156 -> 0.01428571429 | K169: =G169*I169 -> 300
B170: BN | C170: BK | D170: UK | F170: SiGe-Plan | G170: 10
B171: BN | C171: BK | D171: UK | F171: Ver- und Entsiegelungskonzept | G171: 10
B172: BN | C172: BK | D172: UK | F172: Energiekonzept | G172: 15
B173: BN | C173: BK | D173: UK | F173: Mess- und Monitoringkonzept | G173: 15
B174: BN | C174: BK | D174: UK | F174: Wasserkonzept | G174: 10
B175: BN | C175: BK | D175: UK | F175: Konzept zur Vermeidung von Umwelt- und Gesundheitsrisiken aus Bauprodukten | G175: 10
B176: BN | C176: BK | D176: UK | F176: Lüftungskonzept | G176: 10
B177: BN | C177: BK | D177: UK | F177: Abfallkonzept / Wertstoffkonzept | G177: 5
B178: BN | C178: BK | D178: UK | F178: Tages- / Kunstlichtoptimierung | G178: 10
B179: BN | C179: BK | D179: UK | F179: Konzept zur Sicherung der Reinigungs- und Instandhaltungsfreundlichkeit | G179: 10
B180: BN | C180: BK | D180: UK | F180: Anpassbarkeits-, Rückbau- und Recyclingkonzept | G180: 10
B181: BN | C181: BK | D181: UK | F181: Konzept zur Vermeidung und Beherrschung von Risiken | G181: 10
B182: BN | C182: BK | D182: UK | F182: Sonstige Konzepte zum Nachhaltigen Bauen | G182: 10
B183: BN | C183: BK | D183: UK | F183: Prüfung der Planungsunterlagen durch unabhängige Dritte | G183: 5
B184: BN | C184: BK | D184: UK | F184: Durchführung von Variantenvergleichen | G184: 10
B185: BN | C185: BK | D185: UK | E185: 5.1.4 | F185: Ausschreibung und Vergabe | G185: 100 | I185: 2 | J185: =K185/$K$156*$J$156 -> 0.009523809524 | K185: =G185*I185 -> 200
B186: BN | C186: BK | D186: UK | E186: 5.1.5 | F186: Voraussetzungen für eine optimale Bewirtschaftung | G186: =IF(SUM(G187:G190)>100,100,SUM(G187:G190)) -> 100 | H186: =IF(SUM(H187:H190)>100,100,SUM(H187:H190)) -> 0 | I186: 2 | J186: =K186/$K$156*$J$156 -> 0.009523809524 | K186: =G186*I186 -> 200
F187: Erstellung einer Gebäudeakte / Objektdokumentation | G187: 25
F188: Erstellung von Wartungs-, Inspektions-, Betriebs-, und Pflegeanleitungen | G188: 25
F189: Anpassung der Pläne und Berechnungen an das realisierte Gebäude | G189: 25
F190: Erstellung eines Nutzerhandbuches | G190: 25
F191: Bauausführung
B192: BN | C192: BK | D192: UK | E192: 5.2.1 | F192: Baustelle / Bauprozess | G192: =IF(SUM(G193:G196)>100,100,SUM(G193:G196)) -> 100 | H192: =IF(SUM(H193:H196)>100,100,SUM(H193:H196)) -> 0 | I192: 2 | J192: =K192/$K$156*$J$156 -> 0.009523809524 | K192: =G192*I192 -> 200
B193: BN | C193: BK | D193: UK | F193: Wertstoffoptimierte Baustelle | G193: 25
B194: BN | C194: BK | D194: UK | F194: Lärmarme Baustelle | G194: 25
B195: BN | C195: BK | D195: UK | F195: Staubarme Baustelle | G195: 25
B196: BN | C196: BK | D196: UK | F196: Bodenschutz auf der Baustelle | G196: 25
B197: BN | C197: BK | D197: UK | E197: 5.2.2 | F197: Qualitätssicherung der Bauausführung | G197: =IF(SUM(G198:G200)>100,100,SUM(G198:G200)) -> 100 | H197: =IF(SUM(H198:H199)>100,100,SUM(H198:H199)) -> 0 | I197: 3 | J197: =K197/$K$156*$J$156 -> 0.01428571429 | K197: =G197*I197 -> 300
B198: BN | C198: BK | D198: UK | F198: Dokumentation | G198: 50
B199: BN | C199: BK | D199: UK | F199: Messungen zur Qualitätskontrolle | G199: 50
B200: BN | C200: BK | D200: UK | E200: 5.2.3 | F200: Systematische Inbetriebnahme | G200: 100 | I200: 3 | J200: =K200/$K$156*$J$156 -> 0.01428571429 | K200: =G200*I200 -> 300
E203: Standortmerkmale | J203: 1 | K203: =SUM(K206:K240) -> 1300
F205: Standortmerkmale
B206: BN | C206: BK | D206: UK | E206: 6.1.1 | F206: Risiken am Mikrostandort | G206: 100 | H206: =IF(SUM(H207:H211)>100,100,SUM(H207:H211)) -> 0 | I206: 2 | J206: =K206/$K$203*$J$203 -> 0.1538461538 | K206: =G206*I206 -> 200
B207: BN | C207: BK | D207: UK | F207: Risiken aus Man-Made-Hazards (Unfälle) | G207: 20
B208: BN | C208: BK | D208: UK | F208: Risiken aus Erdbeben | G208: 20
B209: BN | C209: BK | D209: UK | F209: Risiken aus Lawinen | G209: 20
B210: BN | C210: BK | D210: UK | F210: Risiken aus Sturm | G210: 20
B211: BN | C211: BK | D211: UK | F211: Risiken aus Hochwasser | G211: 20
B212: BN | C212: BK | D212: UK | E212: 6.1.2 | F212: Verhältnisse am Mikrostandort | G212: 100 | H212: =IF(SUM(H213:H218)>100,100,SUM(H213:H218)) -> 0 | I212: 2 | J212: 0.1538461538 | K212: 200
B213: BN | C213: BK | D213: UK | F213: Außenluftqualität | G213: 16
... 32 more rows

Sheet Hilfstabelle (hidden)
A4: Eingereichte Endbewertung | C4: Bemerkung Konformitätsprüfung Prüfung vom: | D4: Bearbeiter
A5: Anwender | B5: Konformitätsprüfung | C5: =TODAY() -> 2019-10-23
A7: =Konformitätsprüfung!$G7 -> 0 | B7: =B10+B28+B41+B123+B159 -> 0
A10: =Konformitätsprüfung!$G10 -> 0 | B10: =B13*($E$13/100)+B14*($E$14/100)+B15*($E$15/100)+B16*($E$16/100)+B17*($E$17/100)+B18*($E$18/100)+B19*($E$19/100)+B21*($E$21/100)+B25*($E$25/100)+B26*($E$26/100) -> 0
A13: =Konformitätsprüfung!$G13 -> 0 | B13: =Konformitätsprüfung!$H13 -> 0
A14: =Konformitätsprüfung!$G14 -> 0 | B14: =Konformitätsprüfung!$H14 -> 0
A15: =Konformitätsprüfung!$G15 -> 0 | B15: =Konformitätsprüfung!$H15 -> 0
A16: =Konformitätsprüfung!$G16 -> 0 | B16: =Konformitätsprüfung!$H16 -> 0
A17: =Konformitätsprüfung!$G17 -> 0 | B17: =Konformitätsprüfung!$H17 -> 0
A18: =Konformitätsprüfung!$G18 -> 0 | B18: =Konformitätsprüfung!$H18 -> 0
A19: =Konformitätsprüfung!$G19 -> 0 | B19: =Konformitätsprüfung!$H19 -> 0
A21: =Konformitätsprüfung!$G21 -> 0 | B21: =SUM(B22:B24) -> 0
A22: =Konformitätsprüfung!$G22 -> 0 | B22: =Konformitätsprüfung!$H22 -> 0
A23: =Konformitätsprüfung!$G23 -> 0 | B23: =Konformitätsprüfung!$H23 -> 0
A24: =Konformitätsprüfung!$G24 -> 0 | B24: =Konformitätsprüfung!$H24 -> 0
A25: =Konformitätsprüfung!$G25 -> 0 | B25: =Konformitätsprüfung!$H25 -> 0
A26: =Konformitätsprüfung!$G26 -> 0 | B26: =Konformitätsprüfung!$H26 -> 0
A28: =Konformitätsprüfung!$G28 -> 0 | B28: =B31*($E$31/100)+B33*($E$33/100)+B34*($E$34/100) -> 0
A31: =Konformitätsprüfung!$G31 -> 0 | B31: =Konformitätsprüfung!$H31 -> 0
A33: =Konformitätsprüfung!$G33 -> 0 | B33: =SUM(B34:B39) -> 0
A34: =Konformitätsprüfung!$G34 -> 0 | B34: =Konformitätsprüfung!$H34 -> 0
A35: =Konformitätsprüfung!$G35 -> 0 | B35: =Konformitätsprüfung!$H35 -> 0
A36: =Konformitätsprüfung!$G36 -> 0 | B36: =Konformitätsprüfung!$H36 -> 0
A37: =Konformitätsprüfung!$G37 -> 0 | B37: =Konformitätsprüfung!$H37 -> 0
A38: =Konformitätsprüfung!$G38 -> 0 | B38: =Konformitätsprüfung!$H38 -> 0
A39: =Konformitätsprüfung!$G39 -> 0 | B39: =Konformitätsprüfung!$H39 -> 0
A41: =Konformitätsprüfung!$G41 -> 0 | B41: =B44*($E$44/100)+B55*($E$55/100)+B58*($E$58/100)+B68*($E$68/100)+B76*($E$76/100)+B86*($E$86/100)+B91*($E$91/100)+B98*($E$98/100)+B99*($E$99/100)+B104*($E$104/100)+B109*($E$109/100)+B117*($E$117/100) -> 0
A44: =Konformitätsprüfung!$G44 -> 0 | B44: =SUM(B46:B54) -> 0
A46: =Konformitätsprüfung!$G46 -> 0 | B46: =Konformitätsprüfung!$H46 -> 0
A47: =Konformitätsprüfung!$G47 -> 0 | B47: =Konformitätsprüfung!$H47 -> 0
A48: =Konformitätsprüfung!$G48 -> 0 | B48: =Konformitätsprüfung!$H48 -> 0
A49: =Konformitätsprüfung!$G49 -> 0 | B49: =Konformitätsprüfung!$H49 -> 0
A51: =Konformitätsprüfung!$G51 -> 0 | B51: =Konformitätsprüfung!$H51 -> 0
A52: =Konformitätsprüfung!$G52 -> 0 | B52: =Konformitätsprüfung!$H52 -> 0
A53: =Konformitätsprüfung!$G53 -> 0 | B53: =Konformitätsprüfung!$H53 -> 0
A54: =Konformitätsprüfung!$G54 -> 0 | B54: =Konformitätsprüfung!$H54 -> 0
A55: =Konformitätsprüfung!$G55 -> 0 | B55: =SUM(B56:B57) -> 0
A56: =Konformitätsprüfung!$G56 -> 0 | B56: =Konformitätsprüfung!$H56 -> 0
A57: =Konformitätsprüfung!$G57 -> 0 | B57: =Konformitätsprüfung!$H57 -> 0
A58: =Konformitätsprüfung!$G58 -> 0 | B58: =SUM(B60:B67) -> 0
A60: =Konformitätsprüfung!$G60 -> 0 | B60: =Konformitätsprüfung!$H60 -> 0
A61: =Konformitätsprüfung!$G61 -> 0 | B61: =Konformitätsprüfung!$H61 -> 0
A62: =Konformitätsprüfung!$G62 -> 0 | B62: =Konformitätsprüfung!$H62 -> 0
A63: =Konformitätsprüfung!$G63 -> 0 | B63: =Konformitätsprüfung!$H63 -> 0
A65: =Konformitätsprüfung!$G65 -> 0 | B65: =Konformitätsprüfung!$H65 -> 0
A66: =Konformitätsprüfung!$G66 -> 0 | B66: =Konformitätsprüfung!$H66 -> 0
A67: =Konformitätsprüfung!$G67 -> 0 | B67: =Konformitätsprüfung!$H67 -> 0
A68: =Konformitätsprüfung!$G68 -> 0 | B68: =SUM(B69:B75) -> 0
A69: =Konformitätsprüfung!$G69 -> 0 | B69: =Konformitätsprüfung!$H69 -> 0
A70: =Konformitätsprüfung!$G70 -> 0 | B70: =Konformitätsprüfung!$H70 -> 0
A71: =Konformitätsprüfung!$G71 -> 0 | B71: =Konformitätsprüfung!$H71 -> 0
A72: =Konformitätsprüfung!$G72 -> 0 | B72: =Konformitätsprüfung!$H72 -> 0
A73: =Konformitätsprüfung!$G73 -> 0 | B73: =Konformitätsprüfung!$H73 -> 0
A74: =Konformitätsprüfung!$G74 -> 0 | B74: =Konformitätsprüfung!$H74 -> 0
A75: =Konformitätsprüfung!$G75 -> 0 | B75: =Konformitätsprüfung!$H75 -> 0
A76: =Konformitätsprüfung!$G76 -> 0 | B76: =SUM(B77:B85) -> 0
A77: =Konformitätsprüfung!$G77 -> 0 | B77: =Konformitätsprüfung!$H77 -> 0
A78: =Konformitätsprüfung!$G78 -> 0 | B78: =Konformitätsprüfung!$H78 -> 0
A79: =Konformitätsprüfung!$G79 -> 0 | B79: =Konformitätsprüfung!$H79 -> 0
A80: =Konformitätsprüfung!$G80 -> 0 | B80: =Konformitätsprüfung!$H80 -> 0
A81: =Konformitätsprüfung!$G81 -> 0 | B81: =Konformitätsprüfung!$H81 -> 0
A82: =Konformitätsprüfung!$G82 -> 0 | B82: =Konformitätsprüfung!$H82 -> 0
A83: =Konformitätsprüfung!$G83 -> 0 | B83: =Konformitätsprüfung!$H83 -> 0
A84: =Konformitätsprüfung!$G84 -> 0 | B84: =Konformitätsprüfung!$H84 -> 0
A85: =Konformitätsprüfung!$G85 -> 0 | B85: =Konformitätsprüfung!$H85 -> 0
A86: =Konformitätsprüfung!$G86 -> 0 | B86: =SUM(B87:B90) -> 0
A87: =Konformitätsprüfung!$G87 -> 0 | B87: =Konformitätsprüfung!$H87 -> 0
A88: =Konformitätsprüfung!$G88 -> 0 | B88: =Konformitätsprüfung!$H88 -> 0
A89: =Konformitätsprüfung!$G89 -> 0 | B89: =Konformitätsprüfung!$H89 -> 0
A90: =Konformitätsprüfung!$G90 -> 0 | B90: =Konformitätsprüfung!$H90 -> 0
A91: =Konformitätsprüfung!$G91 -> 0 | B91: =Konformitätsprüfung!$H91 -> 0
A92: =Konformitätsprüfung!$G92 -> 0 | B92: =SUM(B93:B96) -> 0
A93: =Konformitätsprüfung!$G93 -> 0 | B93: =Konformitätsprüfung!$H93 -> 0
A94: =Konformitätsprüfung!$G94 -> 0 | B94: =Konformitätsprüfung!$H94 -> 0
A95: =Konformitätsprüfung!$G95 -> 0 | B95: =Konformitätsprüfung!$H95 -> 0
A96: =Konformitätsprüfung!$G96 -> 0 | B96: =Konformitätsprüfung!$H96 -> 0
A98: =Konformitätsprüfung!$G98 -> 0
A99: =Konformitätsprüfung!$G99 -> 0 | B99: =SUM(B100:B103) -> 0
A100: =Konformitätsprüfung!$G100 -> 0 | B100: =Konformitätsprüfung!$H100 -> 0
A101: =Konformitätsprüfung!$G101 -> 0 | B101: =Konformitätsprüfung!$H101 -> 0
A102: =Konformitätsprüfung!$G102 -> 0 | B102: =Konformitätsprüfung!$H102 -> 0
A103: =Konformitätsprüfung!$G103 -> 0 | B103: =Konformitätsprüfung!$H103 -> 0
A104: =Konformitätsprüfung!$G104 -> 0 | B104: =SUM(B105:B107) -> 0
A105: =Konformitätsprüfung!$G105 -> 0 | B105: =Konformitätsprüfung!$H105 -> 0
A106: =Konformitätsprüfung!$G106 -> 0 | B106: =Konformitätsprüfung!$H106 -> 0
A107: =Konformitätsprüfung!$G107 -> 0 | B107: =Konformitätsprüfung!$H107 -> 0
A109: =Konformitätsprüfung!$G109 -> 0 | B109: =IF(AND(B110>0,B114<=B115),SUM(B110:B113),IF(AND(B110>0,B115<=B114),SUM(B110:B113),IF(B114>0,B114,IF(B115>0,B115,B116)))) -> 0
A110: =Konformitätsprüfung!$G110 -> 0 | B110: =Konformitätsprüfung!$H110 -> 0
A111: =Konformitätsprüfung!$G111 -> 0 | B111: =Konformitätsprüfung!$H111 -> 0
A112: =Konformitätsprüfung!$G112 -> 0 | B112: =Konformitätsprüfung!$H112 -> 0
A113: =Konformitätsprüfung!$G113 -> 0 | B113: =Konformitätsprüfung!$H113 -> 0
A114: =Konformitätsprüfung!$G114 -> 0 | B114: =Konformitätsprüfung!$H114 -> 0
A115: =Konformitätsprüfung!$G115 -> 0 | B115: =Konformitätsprüfung!$H115 -> 0
A116: =Konformitätsprüfung!$G116 -> 0 | B116: =Konformitätsprüfung!$H116 -> 0
A117: =Konformitätsprüfung!$G117 -> 0 | B117: =SUM(B118:B121) -> 0
A118: =Konformitätsprüfung!$G118 -> 0 | B118: =Konformitätsprüfung!$H118 -> 0
A119: =Konformitätsprüfung!$G119 -> 0 | B119: =Konformitätsprüfung!$H119 -> 0
A120: =Konformitätsprüfung!$G120 -> 0 | B120: =Konformitätsprüfung!$H120 -> 0
A121: =Konformitätsprüfung!$G121 -> 0 | B121: =Konformitätsprüfung!$H121 -> 0
A123: =Konformitätsprüfung!$G123 -> 0 | B123: =Konformitätsprüfung!$H123 -> 0
A126: =Konformitätsprüfung!$G126 -> 0 | B126: =SUM(B127:B130) -> 0
A127: =Konformitätsprüfung!$G127 -> 0 | B127: =Konformitätsprüfung!$H127 -> 0
A128: =Konformitätsprüfung!$G128 -> 0 | B128: =Konformitätsprüfung!$H128 -> 0
A129: =Konformitätsprüfung!$G129 -> 0 | B129: =Konformitätsprüfung!$H129 -> 0
A130: =Konformitätsprüfung!$G130 -> 0 | B130: =Konformitätsprüfung!$H130 -> 0
A131: =Konformitätsprüfung!$G131 -> 0 | B131: =SUM(B132:B137) -> 0
A132: =Konformitätsprüfung!$G132 -> 0 | B132: =Konformitätsprüfung!$H132 -> 0
A133: =Konformitätsprüfung!$G133 -> 0 | B133: =Konformitätsprüfung!$H133 -> 0
A134: =Konformitätsprüfung!$G134 -> 0 | B134: =Konformitätsprüfung!$H134 -> 0
A135: =Konformitätsprüfung!$G135 -> 0 | B135: =Konformitätsprüfung!$H135 -> 0
A136: =Konformitätsprüfung!$G136 -> 0 | B136: =Konformitätsprüfung!$H136 -> 0
A137: =Konformitätsprüfung!$G137 -> 0 | B137: =Konformitätsprüfung!$H137 -> 0
A138: =Konformitätsprüfung!$G138 -> 0 | B138: =SUM(B139:B147) -> 0
A139: =Konformitätsprüfung!$G139 -> 0 | B139: =Konformitätsprüfung!$H139 -> 0
A140: =Konformitätsprüfung!$G140 -> 0 | B140: =Konformitätsprüfung!$H140 -> 0
A141: =Konformitätsprüfung!$G141 -> 0 | B141: =Konformitätsprüfung!$H141 -> 0
A142: =Konformitätsprüfung!$G142 -> 0 | B142: =Konformitätsprüfung!$H142 -> 0
A143: =Konformitätsprüfung!$G143 -> 0 | B143: =Konformitätsprüfung!$H143 -> 0
A144: =Konformitätsprüfung!$G144 -> 0 | B144: =Konformitätsprüfung!$H144 -> 0
A145: =Konformitätsprüfung!$G145 -> 0 | B145: =Konformitätsprüfung!$H145 -> 0
A146: =Konformitätsprüfung!$G146 -> 0 | B146: =Konformitätsprüfung!$H146 -> 0
A147: =Konformitätsprüfung!$G148 -> 0 | B147: =Konformitätsprüfung!$H148 -> 0
A148: =Konformitätsprüfung!$G149 -> 0 | B148: =Konformitätsprüfung!$H149 -> 0
A149: =Konformitätsprüfung!$G150 -> 0 | B149: =Konformitätsprüfung!$H150 -> 0
A150: =Konformitätsprüfung!$G151 -> 0 | B150: =SUM(B151:B157) -> 0
A151: =Konformitätsprüfung!$G152 -> 0 | B151: =Konformitätsprüfung!$H152 -> 0
A152: =Konformitätsprüfung!$G153 -> 0 | B152: =Konformitätsprüfung!$H153 -> 0
A153: =Konformitätsprüfung!$G154 -> 0 | B153: =Konformitätsprüfung!$H154 -> 0
A154: =Konformitätsprüfung!$G155 -> 0 | B154: =Konformitätsprüfung!$H155 -> 0
A155: =Konformitätsprüfung!$G156 -> 0 | B155: =Konformitätsprüfung!$H156 -> 0
A156: =Konformitätsprüfung!$G157 -> 0 | B156: =Konformitätsprüfung!$H157 -> 0
A157: =Konformitätsprüfung!$G158 -> 0 | B157: =Konformitätsprüfung!$H158 -> 0
A159: =Konformitätsprüfung!$G160 -> 0 | B159: =Konformitätsprüfung!$H160 -> 0
A162: =Konformitätsprüfung!$G163 -> 0 | B162: =SUM(B163:B165) -> 0
A163: =Konformitätsprüfung!$G164 -> 0 | B163: =Konformitätsprüfung!$H164 -> 0
A164: =Konformitätsprüfung!$G165 -> 0 | B164: =Konformitätsprüfung!$H165 -> 0
A165: =Konformitätsprüfung!$G166 -> 0 | B165: =Konformitätsprüfung!$H166 -> 0
A166: =Konformitätsprüfung!$G167 -> 0 | B166: =SUM(B167:B171) -> 0
A167: =Konformitätsprüfung!$G168 -> 0 | B167: =Konformitätsprüfung!$H168 -> 0
A168: =Konformitätsprüfung!$G169 -> 0 | B168: =Konformitätsprüfung!$H169 -> 0
A169: =Konformitätsprüfung!$G170 -> 0 | B169: =Konformitätsprüfung!$H170 -> 0
A170: =Konformitätsprüfung!$G171 -> 0 | B170: =Konformitätsprüfung!$H171 -> 0
A171: =Konformitätsprüfung!$G172 -> 0 | B171: =Konformitätsprüfung!$H172 -> 0
A172: =Konformitätsprüfung!$G173 -> 0 | B172: =SUM(B173:B187) -> 0
A173: =Konformitätsprüfung!$G174 -> 0 | B173: =Konformitätsprüfung!$H174 -> 0
A174: =Konformitätsprüfung!$G175 -> 0 | B174: =Konformitätsprüfung!$H175 -> 0
A175: =Konformitätsprüfung!$G176 -> 0 | B175: =Konformitätsprüfung!$H176 -> 0
A176: =Konformitätsprüfung!$G177 -> 0 | B176: =Konformitätsprüfung!$H177 -> 0
A177: =Konformitätsprüfung!$G178 -> 0 | B177: =Konformitätsprüfung!$H178 -> 0
A178: =Konformitätsprüfung!$G179 -> 0 | B178: =Konformitätsprüfung!$H179 -> 0
A179: =Konformitätsprüfung!$G180 -> 0 | B179: =Konformitätsprüfung!$H180 -> 0
A180: =Konformitätsprüfung!$G181 -> 0 | B180: =Konformitätsprüfung!$H181 -> 0
A181: =Konformitätsprüfung!$G182 -> 0 | B181: =Konformitätsprüfung!$H182 -> 0
A182: =Konformitätsprüfung!$G183 -> 0 | B182: =Konformitätsprüfung!$H183 -> 0
A183: =Konformitätsprüfung!$G184 -> 0 | B183: =Konformitätsprüfung!$H184 -> 0
A184: =Konformitätsprüfung!$G185 -> 0 | B184: =Konformitätsprüfung!$H185 -> 0
A185: =Konformitätsprüfung!$G186 -> 0 | B185: =Konformitätsprüfung!$H186 -> 0
A186: =Konformitätsprüfung!$G187 -> 0 | B186: =Konformitätsprüfung!$H187 -> 0
A187: =Konformitätsprüfung!$G188 -> 0 | B187: =Konformitätsprüfung!$H188 -> 0
A188: =Konformitätsprüfung!$G189 -> 0 | B188: =Konformitätsprüfung!$H189 -> 0
A189: =Konformitätsprüfung!$G190 -> 0 | B189: =SUM(B190:B193) -> 0
A190: =Konformitätsprüfung!$G191 -> 0 | B190: =Konformitätsprüfung!$H191 -> 0
A191: =Konformitätsprüfung!$G192 -> 0 | B191: =Konformitätsprüfung!$H192 -> 0
A192: =Konformitätsprüfung!$G193 -> 0 | B192: =Konformitätsprüfung!$H193 -> 0
A193: =Konformitätsprüfung!$G194 -> 0 | B193: =Konformitätsprüfung!$H194 -> 0
A195: =Konformitätsprüfung!$G196 -> 0 | B195: =SUM(B196:B199) -> 0
A196: =Konformitätsprüfung!$G197 -> 0 | B196: =Konformitätsprüfung!$H197 -> 0
A197: =Konformitätsprüfung!$G198 -> 0 | B197: =Konformitätsprüfung!$H198 -> 0
A198: =Konformitätsprüfung!$G199 -> 0 | B198: =Konformitätsprüfung!$H199 -> 0
A199: =Konformitätsprüfung!$G200 -> 0 | B199: =Konformitätsprüfung!$H200 -> 0
A200: =Konformitätsprüfung!$G201 -> 0 | B200: =SUM(B201:B202) -> 0
A201: =Konformitätsprüfung!$G202 -> 0 | B201: =Konformitätsprüfung!$H202 -> 0
A202: =Konformitätsprüfung!$G203 -> 0 | B202: =Konformitätsprüfung!$H203 -> 0
A203: =Konformitätsprüfung!$G204 -> 0 | B203: =Konformitätsprüfung!$H204 -> 0
A206: =Konformitätsprüfung!$G207 -> 0 | B206: =Konformitätsprüfung!$H207 -> 0
A209: =Konformitätsprüfung!$G210 -> 0 | B209: =SUM(B210:B214) -> 0
A210: =Konformitätsprüfung!$G211 -> 0 | B210: =Konformitätsprüfung!$H211 -> 0
A211: =Konformitätsprüfung!$G212 -> 0 | B211: =Konformitätsprüfung!$H212 -> 0
A212: =Konformitätsprüfung!$G213 -> 0 | B212: =Konformitätsprüfung!$H213 -> 0
A213: =Konformitätsprüfung!$G214 -> 0 | B213: =Konformitätsprüfung!$H214 -> 0
A214: =Konformitätsprüfung!$G215 -> 0 | B214: =Konformitätsprüfung!$H215 -> 0
A215: =Konformitätsprüfung!$G216 -> 0 | B215: =SUM(B216:B221) -> 0
A216: =Konformitätsprüfung!$G217 -> 0 | B216: =Konformitätsprüfung!$H217 -> 0
A217: =Konformitätsprüfung!$G218 -> 0 | B217: =Konformitätsprüfung!$H218 -> 0
A218: =Konformitätsprüfung!$G219 -> 0 | B218: =Konformitätsprüfung!$H219 -> 0
A219: =Konformitätsprüfung!$G220 -> 0 | B219: =Konformitätsprüfung!$H220 -> 0
A220: =Konformitätsprüfung!$G221 -> 0 | B220: =Konformitätsprüfung!$H221 -> 0
A221: =Konformitätsprüfung!$G222 -> 0 | B221: =Konformitätsprüfung!$H222 -> 0
A222: =Konformitätsprüfung!$G223 -> 0 | B222: =SUM(B223:B226) -> 0
A223: =Konformitätsprüfung!$G224 -> 0 | B223: =Konformitätsprüfung!$H224 -> 0
A224: =Konformitätsprüfung!$G225 -> 0 | B224: =Konformitätsprüfung!$H225 -> 0
A225: =Konformitätsprüfung!$G226 -> 0 | B225: =Konformitätsprüfung!$H226 -> 0
A226: =Konformitätsprüfung!$G227 -> 0 | B226: =Konformitätsprüfung!$H227 -> 0
A227: =Konformitätsprüfung!$G228 -> 0 | B227: =SUM(B228:B231) -> 0
A228: =Konformitätsprüfung!$G229 -> 0 | B228: =Konformitätsprüfung!$H229 -> 0
A229: =Konformitätsprüfung!$G230 -> 0 | B229: =Konformitätsprüfung!$H230 -> 0
A230: =Konformitätsprüfung!$G231 -> 0 | B230: =Konformitätsprüfung!$H231 -> 0
A231: =Konformitätsprüfung!$G232 -> 0 | B231: =Konformitätsprüfung!$H232 -> 0
A232: =Konformitätsprüfung!$G233 -> 0 | B232: =SUM(B233:B242) -> 0
A233: =Konformitätsprüfung!$G234 -> 0 | B233: =Konformitätsprüfung!$H234 -> 0
... 14 more rows
